Workbook

Sheet Workbook Contents
B2: King James Bible In Excel
B3: Old Testament | D3: New Testament
B4: Genesis | C4: Ecclesiastes | D4: Matthew | E4: 1 Timothy
B5: Exodus | C5: Song of Songs | D5: Mark | E5: 2 Timothy
B6: Leviticus | C6: Isaiah | D6: Luke | E6: Titus
B7: Numbers | C7: Jeremiah | D7: John | E7: Philemon
B8: Deuteronomy | C8: Lamentations | D8: Acts | E8: Hebrews
B9: Joshua | C9: Ezekiel | D9: Romans | E9: James
B10: Judges | C10: Daniel | D10: 1 Corinthians | E10: 1 Peter
B11: Ruth | C11: Hosea | D11: 2 Corinthians | E11: 2 Peter
B12: 1 Samuel | C12: Joel | D12: Galatians | E12: 1 John
B13: 2 Samuel | C13: Amos | D13: Ephesians | E13: 2 John
B14: 1 Kings | C14: Obadiah | D14: Philippians | E14: 3 John
B15: 2 Kings | C15: Jonah | D15: Colossians | E15: Jude
B16: 1 Chronicles | C16: Micah | D16: 1 Thessalonians | E16: Revelation
B17: 2 Chronicles | C17: Nahum | D17: 2 Thessalonians
B18: Ezra | C18: Habakkuk
B19: Nehemia | C19: Zephaniah
B20: Esther | C20: Haggai
B21: Job | C21: Zechariah
B22: Psalms | C22: Malachi
B23: Proverbs
B25: Right-click a book name to specify chapter & versse. For more options, use the controls on the Bible tab.

Sheet Stats
B2: (The table below can be sorted) | I2: Enter a word ---> | K2: b
K3: =Table1[[#Totals],[Occurrences of the word]] -> 48555
B4: Book No. | C4: Testament | D4: Book | E4: No. of Verses | F4: No. of Characters | G4: Characters Per Verse | H4: Words | I4: Words Per Verse | J4: Avg Word Length | K4: Occurrences of the word
B5: 1 | C5: Old | D5: Genesis | E5: =COUNTA(INDIRECT("'"&D5&"'!A:A")) -> 1533 | F5: =SUM(LEN(INDIRECT("'"&D5&"'!B1:B"&E5))) -> 195285 | G5: =F5/E5 -> 127.3874755 | H5: =COUNTA(INDIRECT("'"&D5&"'!B1:B"&E5))+SUMPRODUCT(LEN(TRIM(INDIRECT("'"&D5&"'!B1:B"&E5)))-LEN(SUBSTITUTE(TRIM(INDIRECT("'"&D5&"'!B1:B"&E5))," ",""))) -> 38265 | I5: =H5/E5 -> 24.96086106 | J5: =F5/H5 -> 5.103488828 | K5: =SUM(LEN(UPPER(INDIRECT("'"&D5&"'!B1:B"&E5)))-LEN(SUBSTITUTE(UPPER(INDIRECT("'"&D5&"'!B1:B"&E5)),UPPER($K$2),"")))/LEN($K$2) -> 2663
B6: 2 | C6: Old | D6: Exodus | E6: 1213 | F6: =SUM(LEN(INDIRECT("'"&D6&"'!B1:B"&E6))) -> 168161 | G6: 138.6323166 | H6: =COUNTA(INDIRECT("'"&D6&"'!B1:B"&E6))+SUMPRODUCT(LEN(TRIM(INDIRECT("'"&D6&"'!B1:B"&E6)))-LEN(SUBSTITUTE(TRIM(INDIRECT("'"&D6&"'!B1:B"&E6))," ",""))) -> 32684 | I6: 26.94476505 | J6: =F6/H6 -> 5.145055685 | K6: =SUM(LEN(UPPER(INDIRECT("'"&D6&"'!B1:B"&E6)))-LEN(SUBSTITUTE(UPPER(INDIRECT("'"&D6&"'!B1:B"&E6)),UPPER($K$2),"")))/LEN($K$2) -> 1993
B7: 3 | C7: Old | D7: Leviticus | E7: 859 | F7: =SUM(LEN(INDIRECT("'"&D7&"'!B1:B"&E7))) -> 126004 | G7: 146.6868452 | H7: =COUNTA(INDIRECT("'"&D7&"'!B1:B"&E7))+SUMPRODUCT(LEN(TRIM(INDIRECT("'"&D7&"'!B1:B"&E7)))-LEN(SUBSTITUTE(TRIM(INDIRECT("'"&D7&"'!B1:B"&E7))," ",""))) -> 24541 | I7: 28.56926659 | J7: 5.1344281 | K7: =SUM(LEN(UPPER(INDIRECT("'"&D7&"'!B1:B"&E7)))-LEN(SUBSTITUTE(UPPER(INDIRECT("'"&D7&"'!B1:B"&E7)),UPPER($K$2),"")))/LEN($K$2) -> 1871
B8: 4 | C8: Old | D8: Numbers | E8: 1288 | F8: =SUM(LEN(INDIRECT("'"&D8&"'!B1:B"&E8))) -> 174323 | G8: 135.3439441 | H8: =COUNTA(INDIRECT("'"&D8&"'!B1:B"&E8))+SUMPRODUCT(LEN(TRIM(INDIRECT("'"&D8&"'!B1:B"&E8)))-LEN(SUBSTITUTE(TRIM(INDIRECT("'"&D8&"'!B1:B"&E8))," ",""))) -> 32893 | I8: 25.53804348 | J8: 5.299699024 | K8: =SUM(LEN(UPPER(INDIRECT("'"&D8&"'!B1:B"&E8)))-LEN(SUBSTITUTE(UPPER(INDIRECT("'"&D8&"'!B1:B"&E8)),UPPER($K$2),"")))/LEN($K$2) -> 2262
B9: 5 | C9: Old | D9: Deuteronomy | E9: 959 | F9: =SUM(LEN(INDIRECT("'"&D9&"'!B1:B"&E9))) -> 145475 | G9: 151.6944734 | H9: =COUNTA(INDIRECT("'"&D9&"'!B1:B"&E9))+SUMPRODUCT(LEN(TRIM(INDIRECT("'"&D9&"'!B1:B"&E9)))-LEN(SUBSTITUTE(TRIM(INDIRECT("'"&D9&"'!B1:B"&E9))," ",""))) -> 28351 | I9: 29.56308655 | J9: 5.131212303 | K9: =SUM(LEN(UPPER(INDIRECT("'"&D9&"'!B1:B"&E9)))-LEN(SUBSTITUTE(UPPER(INDIRECT("'"&D9&"'!B1:B"&E9)),UPPER($K$2),"")))/LEN($K$2) -> 1531
B10: 6 | C10: Old | D10: Joshua | E10: 658 | F10: =SUM(LEN(INDIRECT("'"&D10&"'!B1:B"&E10))) -> 99475 | G10: 151.1778116 | H10: =COUNTA(INDIRECT("'"&D10&"'!B1:B"&E10))+SUMPRODUCT(LEN(TRIM(INDIRECT("'"&D10&"'!B1:B"&E10)))-LEN(SUBSTITUTE(TRIM(INDIRECT("'"&D10&"'!B1:B"&E10))," ",""))) -> 18853 | I10: 28.65197568 | J10: 5.276348592 | K10: =SUM(LEN(UPPER(INDIRECT("'"&D10&"'!B1:B"&E10)))-LEN(SUBSTITUTE(UPPER(INDIRECT("'"&D10&"'!B1:B"&E10)),UPPER($K$2),"")))/LEN($K$2) -> 1243
B11: 7 | C11: Old | D11: Judges | E11: 618 | F11: =SUM(LEN(INDIRECT("'"&D11&"'!B1:B"&E11))) -> 98065 | G11: 158.6812298 | H11: =COUNTA(INDIRECT("'"&D11&"'!B1:B"&E11))+SUMPRODUCT(LEN(TRIM(INDIRECT("'"&D11&"'!B1:B"&E11)))-LEN(SUBSTITUTE(TRIM(INDIRECT("'"&D11&"'!B1:B"&E11))," ",""))) -> 18966 | I11: 30.68932039 | J11: 5.170568386 | K11: =SUM(LEN(UPPER(INDIRECT("'"&D11&"'!B1:B"&E11)))-LEN(SUBSTITUTE(UPPER(INDIRECT("'"&D11&"'!B1:B"&E11)),UPPER($K$2),"")))/LEN($K$2) -> 1123
B12: 8 | C12: Old | D12: Ruth | E12: 85 | F12: =SUM(LEN(INDIRECT("'"&D12&"'!B1:B"&E12))) -> 12919 | G12: 151.9882353 | H12: =COUNTA(INDIRECT("'"&D12&"'!B1:B"&E12))+SUMPRODUCT(LEN(TRIM(INDIRECT("'"&D12&"'!B1:B"&E12)))-LEN(SUBSTITUTE(TRIM(INDIRECT("'"&D12&"'!B1:B"&E12))," ",""))) -> 2574 | I12: 30.28235294 | J12: 5.019036519 | K12: =SUM(LEN(UPPER(INDIRECT("'"&D12&"'!B1:B"&E12)))-LEN(SUBSTITUTE(UPPER(INDIRECT("'"&D12&"'!B1:B"&E12)),UPPER($K$2),"")))/LEN($K$2) -> 160
B13: 9 | C13: Old | D13: 1 Samuel | E13: 810 | F13: =SUM(LEN(INDIRECT("'"&D13&"'!B1:B"&E13))) -> 128453 | G13: 158.5839506 | H13: =COUNTA(INDIRECT("'"&D13&"'!B1:B"&E13))+SUMPRODUCT(LEN(TRIM(INDIRECT("'"&D13&"'!B1:B"&E13)))-LEN(SUBSTITUTE(TRIM(INDIRECT("'"&D13&"'!B1:B"&E13))," ",""))) -> 25048 | I13: 30.92345679 | J13: 5.128273714 | K13: =SUM(LEN(UPPER(INDIRECT("'"&D13&"'!B1:B"&E13)))-LEN(SUBSTITUTE(UPPER(INDIRECT("'"&D13&"'!B1:B"&E13)),UPPER($K$2),"")))/LEN($K$2) -> 1268
B14: 10 | C14: Old | D14: 2 Samuel | E14: 695 | F14: =SUM(LEN(INDIRECT("'"&D14&"'!B1:B"&E14))) -> 105687 | G14: 152.0676259 | H14: =COUNTA(INDIRECT("'"&D14&"'!B1:B"&E14))+SUMPRODUCT(LEN(TRIM(INDIRECT("'"&D14&"'!B1:B"&E14)))-LEN(SUBSTITUTE(TRIM(INDIRECT("'"&D14&"'!B1:B"&E14))," ",""))) -> 20599 | I14: 29.63884892 | J14: 5.130685956 | K14: =SUM(LEN(UPPER(INDIRECT("'"&D14&"'!B1:B"&E14)))-LEN(SUBSTITUTE(UPPER(INDIRECT("'"&D14&"'!B1:B"&E14)),UPPER($K$2),"")))/LEN($K$2) -> 1445
B15: 11 | C15: Old | D15: 1 Kings | E15: 816 | F15: =SUM(LEN(INDIRECT("'"&D15&"'!B1:B"&E15))) -> 126163 | G15: 154.6115196 | H15: =COUNTA(INDIRECT("'"&D15&"'!B1:B"&E15))+SUMPRODUCT(LEN(TRIM(INDIRECT("'"&D15&"'!B1:B"&E15)))-LEN(SUBSTITUTE(TRIM(INDIRECT("'"&D15&"'!B1:B"&E15))," ",""))) -> 24512 | I15: 30.03921569 | J15: 5.14698923 | K15: =SUM(LEN(UPPER(INDIRECT("'"&D15&"'!B1:B"&E15)))-LEN(SUBSTITUTE(UPPER(INDIRECT("'"&D15&"'!B1:B"&E15)),UPPER($K$2),"")))/LEN($K$2) -> 1544
B16: 12 | C16: Old | D16: 2 Kings | E16: 719 | F16: =SUM(LEN(INDIRECT("'"&D16&"'!B1:B"&E16))) -> 120005 | G16: 166.9054242 | H16: =COUNTA(INDIRECT("'"&D16&"'!B1:B"&E16))+SUMPRODUCT(LEN(TRIM(INDIRECT("'"&D16&"'!B1:B"&E16)))-LEN(SUBSTITUTE(TRIM(INDIRECT("'"&D16&"'!B1:B"&E16))," ",""))) -> 23519 | I16: 32.71070932 | J16: 5.102470343 | K16: =SUM(LEN(UPPER(INDIRECT("'"&D16&"'!B1:B"&E16)))-LEN(SUBSTITUTE(UPPER(INDIRECT("'"&D16&"'!B1:B"&E16)),UPPER($K$2),"")))/LEN($K$2) -> 1194
B17: 13 | C17: Old | D17: 1 Chronicles | E17: 942 | F17: =SUM(LEN(INDIRECT("'"&D17&"'!B1:B"&E17))) -> 110021 | G17: 116.7951168 | H17: =COUNTA(INDIRECT("'"&D17&"'!B1:B"&E17))+SUMPRODUCT(LEN(TRIM(INDIRECT("'"&D17&"'!B1:B"&E17)))-LEN(SUBSTITUTE(TRIM(INDIRECT("'"&D17&"'!B1:B"&E17))," ",""))) -> 20365 | I17: 21.61889597 | J17: 5.402455193 | K17: =SUM(LEN(UPPER(INDIRECT("'"&D17&"'!B1:B"&E17)))-LEN(SUBSTITUTE(UPPER(INDIRECT("'"&D17&"'!B1:B"&E17)),UPPER($K$2),"")))/LEN($K$2) -> 1620
B18: 14 | C18: Old | D18: 2 Chronicles | E18: 822 | F18: =SUM(LEN(INDIRECT("'"&D18&"'!B1:B"&E18))) -> 138234 | G18: 168.1678832 | H18: =COUNTA(INDIRECT("'"&D18&"'!B1:B"&E18))+SUMPRODUCT(LEN(TRIM(INDIRECT("'"&D18&"'!B1:B"&E18)))-LEN(SUBSTITUTE(TRIM(INDIRECT("'"&D18&"'!B1:B"&E18))," ",""))) -> 26069 | I18: 31.71411192 | J18: 5.30261997 | K18: =SUM(LEN(UPPER(INDIRECT("'"&D18&"'!B1:B"&E18)))-LEN(SUBSTITUTE(UPPER(INDIRECT("'"&D18&"'!B1:B"&E18)),UPPER($K$2),"")))/LEN($K$2) -> 1480
B19: 15 | C19: Old | D19: Ezra | E19: 280 | F19: =SUM(LEN(INDIRECT("'"&D19&"'!B1:B"&E19))) -> 40108 | G19: 143.2428571 | H19: =COUNTA(INDIRECT("'"&D19&"'!B1:B"&E19))+SUMPRODUCT(LEN(TRIM(INDIRECT("'"&D19&"'!B1:B"&E19)))-LEN(SUBSTITUTE(TRIM(INDIRECT("'"&D19&"'!B1:B"&E19))," ",""))) -> 7440 | I19: 26.57142857 | J19: 5.390860215 | K19: =SUM(LEN(UPPER(INDIRECT("'"&D19&"'!B1:B"&E19)))-LEN(SUBSTITUTE(UPPER(INDIRECT("'"&D19&"'!B1:B"&E19)),UPPER($K$2),"")))/LEN($K$2) -> 453
B20: 16 | C20: Old | D20: Nehemia | E20: 406 | F20: =SUM(LEN(INDIRECT("'"&D20&"'!B1:B"&E20))) -> 56711 | G20: 139.682266 | H20: =COUNTA(INDIRECT("'"&D20&"'!B1:B"&E20))+SUMPRODUCT(LEN(TRIM(INDIRECT("'"&D20&"'!B1:B"&E20)))-LEN(SUBSTITUTE(TRIM(INDIRECT("'"&D20&"'!B1:B"&E20))," ",""))) -> 10480 | I20: 25.81280788 | J20: 5.411354962 | K20: =SUM(LEN(UPPER(INDIRECT("'"&D20&"'!B1:B"&E20)))-LEN(SUBSTITUTE(UPPER(INDIRECT("'"&D20&"'!B1:B"&E20)),UPPER($K$2),"")))/LEN($K$2) -> 675
B21: 17 | C21: Old | D21: Esther | E21: 167 | F21: =SUM(LEN(INDIRECT("'"&D21&"'!B1:B"&E21))) -> 30064 | G21: 180.0239521 | H21: =COUNTA(INDIRECT("'"&D21&"'!B1:B"&E21))+SUMPRODUCT(LEN(TRIM(INDIRECT("'"&D21&"'!B1:B"&E21)))-LEN(SUBSTITUTE(TRIM(INDIRECT("'"&D21&"'!B1:B"&E21))," ",""))) -> 5633 | I21: 33.73053892 | J21: 5.33712054 | K21: =SUM(LEN(UPPER(INDIRECT("'"&D21&"'!B1:B"&E21)))-LEN(SUBSTITUTE(UPPER(INDIRECT("'"&D21&"'!B1:B"&E21)),UPPER($K$2),"")))/LEN($K$2) -> 238
B22: 18 | C22: Old | D22: Job | E22: 1070 | F22: =SUM(LEN(INDIRECT("'"&D22&"'!B1:B"&E22))) -> 93164 | G22: 87.06915888 | H22: =COUNTA(INDIRECT("'"&D22&"'!B1:B"&E22))+SUMPRODUCT(LEN(TRIM(INDIRECT("'"&D22&"'!B1:B"&E22)))-LEN(SUBSTITUTE(TRIM(INDIRECT("'"&D22&"'!B1:B"&E22))," ",""))) -> 18098 | I22: 16.91401869 | J22: 5.147751133 | K22: =SUM(LEN(UPPER(INDIRECT("'"&D22&"'!B1:B"&E22)))-LEN(SUBSTITUTE(UPPER(INDIRECT("'"&D22&"'!B1:B"&E22)),UPPER($K$2),"")))/LEN($K$2) -> 983
B23: 19 | C23: Old | D23: Psalms | E23: 2461 | F23: =SUM(LEN(INDIRECT("'"&D23&"'!B1:B"&E23))) -> 221248 | G23: 89.90166599 | H23: =COUNTA(INDIRECT("'"&D23&"'!B1:B"&E23))+SUMPRODUCT(LEN(TRIM(INDIRECT("'"&D23&"'!B1:B"&E23)))-LEN(SUBSTITUTE(TRIM(INDIRECT("'"&D23&"'!B1:B"&E23))," ",""))) -> 42685 | I23: 17.34457538 | J23: 5.183272812 | K23: =SUM(LEN(UPPER(INDIRECT("'"&D23&"'!B1:B"&E23)))-LEN(SUBSTITUTE(UPPER(INDIRECT("'"&D23&"'!B1:B"&E23)),UPPER($K$2),"")))/LEN($K$2) -> 2100
B24: 20 | C24: Old | D24: Proverbs | E24: 915 | F24: =SUM(LEN(INDIRECT("'"&D24&"'!B1:B"&E24))) -> 79056 | G24: 86.4 | H24: =COUNTA(INDIRECT("'"&D24&"'!B1:B"&E24))+SUMPRODUCT(LEN(TRIM(INDIRECT("'"&D24&"'!B1:B"&E24)))-LEN(SUBSTITUTE(TRIM(INDIRECT("'"&D24&"'!B1:B"&E24))," ",""))) -> 15038 | I24: 16.43497268 | J24: 5.257082059 | K24: =SUM(LEN(UPPER(INDIRECT("'"&D24&"'!B1:B"&E24)))-LEN(SUBSTITUTE(UPPER(INDIRECT("'"&D24&"'!B1:B"&E24)),UPPER($K$2),"")))/LEN($K$2) -> 977
B25: 21 | C25: Old | D25: Ecclesiastes | E25: 222 | F25: =SUM(LEN(INDIRECT("'"&D25&"'!B1:B"&E25))) -> 28142 | G25: 126.7657658 | H25: =COUNTA(INDIRECT("'"&D25&"'!B1:B"&E25))+SUMPRODUCT(LEN(TRIM(INDIRECT("'"&D25&"'!B1:B"&E25)))-LEN(SUBSTITUTE(TRIM(INDIRECT("'"&D25&"'!B1:B"&E25))," ",""))) -> 5580 | I25: 25.13513514 | J25: 5.043369176 | K25: =SUM(LEN(UPPER(INDIRECT("'"&D25&"'!B1:B"&E25)))-LEN(SUBSTITUTE(UPPER(INDIRECT("'"&D25&"'!B1:B"&E25)),UPPER($K$2),"")))/LEN($K$2) -> 321
B26: 22 | C26: Old | D26: Song of Songs | E26: 117 | F26: =SUM(LEN(INDIRECT("'"&D26&"'!B1:B"&E26))) -> 13570 | G26: 115.982906 | H26: =COUNTA(INDIRECT("'"&D26&"'!B1:B"&E26))+SUMPRODUCT(LEN(TRIM(INDIRECT("'"&D26&"'!B1:B"&E26)))-LEN(SUBSTITUTE(TRIM(INDIRECT("'"&D26&"'!B1:B"&E26))," ",""))) -> 2658 | I26: 22.71794872 | J26: 5.105342363 | K26: =SUM(LEN(UPPER(INDIRECT("'"&D26&"'!B1:B"&E26)))-LEN(SUBSTITUTE(UPPER(INDIRECT("'"&D26&"'!B1:B"&E26)),UPPER($K$2),"")))/LEN($K$2) -> 183
B27: 23 | C27: Old | D27: Isaiah | E27: 1292 | F27: =SUM(LEN(INDIRECT("'"&D27&"'!B1:B"&E27))) -> 192695 | G27: 149.1447368 | H27: =COUNTA(INDIRECT("'"&D27&"'!B1:B"&E27))+SUMPRODUCT(LEN(TRIM(INDIRECT("'"&D27&"'!B1:B"&E27)))-LEN(SUBSTITUTE(TRIM(INDIRECT("'"&D27&"'!B1:B"&E27))," ",""))) -> 37040 | I27: 28.66873065 | J27: 5.202348812 | K27: =SUM(LEN(UPPER(INDIRECT("'"&D27&"'!B1:B"&E27)))-LEN(SUBSTITUTE(UPPER(INDIRECT("'"&D27&"'!B1:B"&E27)),UPPER($K$2),"")))/LEN($K$2) -> 2223
B28: 24 | C28: Old | D28: Jeremiah | E28: 1364 | F28: =SUM(LEN(INDIRECT("'"&D28&"'!B1:B"&E28))) -> 222339 | G28: 163.005132 | H28: =COUNTA(INDIRECT("'"&D28&"'!B1:B"&E28))+SUMPRODUCT(LEN(TRIM(INDIRECT("'"&D28&"'!B1:B"&E28)))-LEN(SUBSTITUTE(TRIM(INDIRECT("'"&D28&"'!B1:B"&E28))," ",""))) -> 42654 | I28: 31.271261 | J28: 5.212617808 | K28: =SUM(LEN(UPPER(INDIRECT("'"&D28&"'!B1:B"&E28)))-LEN(SUBSTITUTE(UPPER(INDIRECT("'"&D28&"'!B1:B"&E28)),UPPER($K$2),"")))/LEN($K$2) -> 2669
B29: 25 | C29: Old | D29: Lamentations | E29: 154 | F29: =SUM(LEN(INDIRECT("'"&D29&"'!B1:B"&E29))) -> 17930 | G29: 116.4285714 | H29: =COUNTA(INDIRECT("'"&D29&"'!B1:B"&E29))+SUMPRODUCT(LEN(TRIM(INDIRECT("'"&D29&"'!B1:B"&E29)))-LEN(SUBSTITUTE(TRIM(INDIRECT("'"&D29&"'!B1:B"&E29))," ",""))) -> 3411 | I29: 22.14935065 | J29: 5.256523014 | K29: =SUM(LEN(UPPER(INDIRECT("'"&D29&"'!B1:B"&E29)))-LEN(SUBSTITUTE(UPPER(INDIRECT("'"&D29&"'!B1:B"&E29)),UPPER($K$2),"")))/LEN($K$2) -> 159
B30: 26 | C30: Old | D30: Ezekiel | E30: 1273 | F30: =SUM(LEN(INDIRECT("'"&D30&"'!B1:B"&E30))) -> 203991 | G30: 160.2443048 | H30: =COUNTA(INDIRECT("'"&D30&"'!B1:B"&E30))+SUMPRODUCT(LEN(TRIM(INDIRECT("'"&D30&"'!B1:B"&E30)))-LEN(SUBSTITUTE(TRIM(INDIRECT("'"&D30&"'!B1:B"&E30))," ",""))) -> 39402 | I30: 30.9520817 | J30: 5.177173748 | K30: =SUM(LEN(UPPER(INDIRECT("'"&D30&"'!B1:B"&E30)))-LEN(SUBSTITUTE(UPPER(INDIRECT("'"&D30&"'!B1:B"&E30)),UPPER($K$2),"")))/LEN($K$2) -> 2505
B31: 27 | C31: Old | D31: Daniel | E31: 357 | F31: =SUM(LEN(INDIRECT("'"&D31&"'!B1:B"&E31))) -> 61512 | G31: 172.302521 | H31: =COUNTA(INDIRECT("'"&D31&"'!B1:B"&E31))+SUMPRODUCT(LEN(TRIM(INDIRECT("'"&D31&"'!B1:B"&E31)))-LEN(SUBSTITUTE(TRIM(INDIRECT("'"&D31&"'!B1:B"&E31))," ",""))) -> 11602 | I31: 32.49859944 | J31: 5.30184451 | K31: =SUM(LEN(UPPER(INDIRECT("'"&D31&"'!B1:B"&E31)))-LEN(SUBSTITUTE(UPPER(INDIRECT("'"&D31&"'!B1:B"&E31)),UPPER($K$2),"")))/LEN($K$2) -> 705
B32: 28 | C32: Old | D32: Hosea | E32: 197 | F32: =SUM(LEN(INDIRECT("'"&D32&"'!B1:B"&E32))) -> 26918 | G32: 136.6395939 | H32: =COUNTA(INDIRECT("'"&D32&"'!B1:B"&E32))+SUMPRODUCT(LEN(TRIM(INDIRECT("'"&D32&"'!B1:B"&E32)))-LEN(SUBSTITUTE(TRIM(INDIRECT("'"&D32&"'!B1:B"&E32))," ",""))) -> 5174 | I32: 26.26395939 | J32: 5.202551218 | K32: =SUM(LEN(UPPER(INDIRECT("'"&D32&"'!B1:B"&E32)))-LEN(SUBSTITUTE(UPPER(INDIRECT("'"&D32&"'!B1:B"&E32)),UPPER($K$2),"")))/LEN($K$2) -> 306
B33: 29 | C33: Old | D33: Joel | E33: 73 | F33: =SUM(LEN(INDIRECT("'"&D33&"'!B1:B"&E33))) -> 10643 | G33: 145.7945205 | H33: =COUNTA(INDIRECT("'"&D33&"'!B1:B"&E33))+SUMPRODUCT(LEN(TRIM(INDIRECT("'"&D33&"'!B1:B"&E33)))-LEN(SUBSTITUTE(TRIM(INDIRECT("'"&D33&"'!B1:B"&E33))," ",""))) -> 2033 | I33: 27.84931507 | J33: 5.235120512 | K33: =SUM(LEN(UPPER(INDIRECT("'"&D33&"'!B1:B"&E33)))-LEN(SUBSTITUTE(UPPER(INDIRECT("'"&D33&"'!B1:B"&E33)),UPPER($K$2),"")))/LEN($K$2) -> 103
B34: 30 | C34: Old | D34: Amos | E34: 146 | F34: =SUM(LEN(INDIRECT("'"&D34&"'!B1:B"&E34))) -> 21713 | G34: 148.7191781 | H34: =COUNTA(INDIRECT("'"&D34&"'!B1:B"&E34))+SUMPRODUCT(LEN(TRIM(INDIRECT("'"&D34&"'!B1:B"&E34)))-LEN(SUBSTITUTE(TRIM(INDIRECT("'"&D34&"'!B1:B"&E34))," ",""))) -> 4216 | I34: 28.87671233 | J34: 5.150142315 | K34: =SUM(LEN(UPPER(INDIRECT("'"&D34&"'!B1:B"&E34)))-LEN(SUBSTITUTE(UPPER(INDIRECT("'"&D34&"'!B1:B"&E34)),UPPER($K$2),"")))/LEN($K$2) -> 228
B35: 31 | C35: Old | D35: Obadiah | E35: 21 | F35: =SUM(LEN(INDIRECT("'"&D35&"'!B1:B"&E35))) -> 3557 | G35: 169.3809524 | H35: =COUNTA(INDIRECT("'"&D35&"'!B1:B"&E35))+SUMPRODUCT(LEN(TRIM(INDIRECT("'"&D35&"'!B1:B"&E35)))-LEN(SUBSTITUTE(TRIM(INDIRECT("'"&D35&"'!B1:B"&E35))," ",""))) -> 669 | I35: 31.85714286 | J35: 5.316890882 | K35: =SUM(LEN(UPPER(INDIRECT("'"&D35&"'!B1:B"&E35)))-LEN(SUBSTITUTE(UPPER(INDIRECT("'"&D35&"'!B1:B"&E35)),UPPER($K$2),"")))/LEN($K$2) -> 37
B36: 32 | C36: Old | D36: Jonah | E36: 48 | F36: =SUM(LEN(INDIRECT("'"&D36&"'!B1:B"&E36))) -> 6581 | G36: 137.1041667 | H36: =COUNTA(INDIRECT("'"&D36&"'!B1:B"&E36))+SUMPRODUCT(LEN(TRIM(INDIRECT("'"&D36&"'!B1:B"&E36)))-LEN(SUBSTITUTE(TRIM(INDIRECT("'"&D36&"'!B1:B"&E36))," ",""))) -> 1320 | I36: 27.5 | J36: 4.985606061 | K36: =SUM(LEN(UPPER(INDIRECT("'"&D36&"'!B1:B"&E36)))-LEN(SUBSTITUTE(UPPER(INDIRECT("'"&D36&"'!B1:B"&E36)),UPPER($K$2),"")))/LEN($K$2) -> 60
B37: 33 | C37: Old | D37: Micah | E37: =COUNTA(INDIRECT("'"&D37&"'!A:A")) -> 105 | F37: =SUM(LEN(INDIRECT("'"&D37&"'!B1:B"&E37))) -> 16224 | G37: =F37/E37 -> 154.5142857 | H37: =COUNTA(INDIRECT("'"&D37&"'!B1:B"&E37))+SUMPRODUCT(LEN(TRIM(INDIRECT("'"&D37&"'!B1:B"&E37)))-LEN(SUBSTITUTE(TRIM(INDIRECT("'"&D37&"'!B1:B"&E37))," ",""))) -> 3152 | I37: =H37/E37 -> 30.01904762 | J37: 5.147208122 | K37: =SUM(LEN(UPPER(INDIRECT("'"&D37&"'!B1:B"&E37)))-LEN(SUBSTITUTE(UPPER(INDIRECT("'"&D37&"'!B1:B"&E37)),UPPER($K$2),"")))/LEN($K$2) -> 171
B38: 34 | C38: Old | D38: Nahum | E38: 47 | F38: =SUM(LEN(INDIRECT("'"&D38&"'!B1:B"&E38))) -> 6865 | G38: 146.0638298 | H38: =COUNTA(INDIRECT("'"&D38&"'!B1:B"&E38))+SUMPRODUCT(LEN(TRIM(INDIRECT("'"&D38&"'!B1:B"&E38)))-LEN(SUBSTITUTE(TRIM(INDIRECT("'"&D38&"'!B1:B"&E38))," ",""))) -> 1284 | I38: 27.31914894 | J38: 5.346573209 | K38: =SUM(LEN(UPPER(INDIRECT("'"&D38&"'!B1:B"&E38)))-LEN(SUBSTITUTE(UPPER(INDIRECT("'"&D38&"'!B1:B"&E38)),UPPER($K$2),"")))/LEN($K$2) -> 80
B39: 35 | C39: Old | D39: Habakkuk | E39: 56 | F39: =SUM(LEN(INDIRECT("'"&D39&"'!B1:B"&E39))) -> 7867 | G39: 140.4821429 | H39: =COUNTA(INDIRECT("'"&D39&"'!B1:B"&E39))+SUMPRODUCT(LEN(TRIM(INDIRECT("'"&D39&"'!B1:B"&E39)))-LEN(SUBSTITUTE(TRIM(INDIRECT("'"&D39&"'!B1:B"&E39))," ",""))) -> 1475 | I39: 26.33928571 | J39: 5.333559322 | K39: =SUM(LEN(UPPER(INDIRECT("'"&D39&"'!B1:B"&E39)))-LEN(SUBSTITUTE(UPPER(INDIRECT("'"&D39&"'!B1:B"&E39)),UPPER($K$2),"")))/LEN($K$2) -> 85
B40: 36 | C40: Old | D40: Zephaniah | E40: 53 | F40: =SUM(LEN(INDIRECT("'"&D40&"'!B1:B"&E40))) -> 8448 | G40: 159.3962264 | H40: =COUNTA(INDIRECT("'"&D40&"'!B1:B"&E40))+SUMPRODUCT(LEN(TRIM(INDIRECT("'"&D40&"'!B1:B"&E40)))-LEN(SUBSTITUTE(TRIM(INDIRECT("'"&D40&"'!B1:B"&E40))," ",""))) -> 1617 | I40: 30.50943396 | J40: 5.224489796 | K40: =SUM(LEN(UPPER(INDIRECT("'"&D40&"'!B1:B"&E40)))-LEN(SUBSTITUTE(UPPER(INDIRECT("'"&D40&"'!B1:B"&E40)),UPPER($K$2),"")))/LEN($K$2) -> 89
B41: 37 | C41: Old | D41: Haggai | E41: 38 | F41: =SUM(LEN(INDIRECT("'"&D41&"'!B1:B"&E41))) -> 5696 | G41: 149.8947368 | H41: =COUNTA(INDIRECT("'"&D41&"'!B1:B"&E41))+SUMPRODUCT(LEN(TRIM(INDIRECT("'"&D41&"'!B1:B"&E41)))-LEN(SUBSTITUTE(TRIM(INDIRECT("'"&D41&"'!B1:B"&E41))," ",""))) -> 1130 | I41: 29.73684211 | J41: 5.040707965 | K41: =SUM(LEN(UPPER(INDIRECT("'"&D41&"'!B1:B"&E41)))-LEN(SUBSTITUTE(UPPER(INDIRECT("'"&D41&"'!B1:B"&E41)),UPPER($K$2),"")))/LEN($K$2) -> 64
B42: 38 | C42: Old | D42: Zechariah | E42: 211 | F42: =SUM(LEN(INDIRECT("'"&D42&"'!B1:B"&E42))) -> 32743 | G42: 155.1800948 | H42: =COUNTA(INDIRECT("'"&D42&"'!B1:B"&E42))+SUMPRODUCT(LEN(TRIM(INDIRECT("'"&D42&"'!B1:B"&E42)))-LEN(SUBSTITUTE(TRIM(INDIRECT("'"&D42&"'!B1:B"&E42))," ",""))) -> 6443 | I42: 30.53554502 | J42: 5.081949402 | K42: =SUM(LEN(UPPER(INDIRECT("'"&D42&"'!B1:B"&E42)))-LEN(SUBSTITUTE(UPPER(INDIRECT("'"&D42&"'!B1:B"&E42)),UPPER($K$2),"")))/LEN($K$2) -> 357
B43: 39 | C43: Old | D43: Malachi | E43: 55 | F43: =SUM(LEN(INDIRECT("'"&D43&"'!B1:B"&E43))) -> 9138 | G43: 166.1454545 | H43: =COUNTA(INDIRECT("'"&D43&"'!B1:B"&E43))+SUMPRODUCT(LEN(TRIM(INDIRECT("'"&D43&"'!B1:B"&E43)))-LEN(SUBSTITUTE(TRIM(INDIRECT("'"&D43&"'!B1:B"&E43))," ",""))) -> 1781 | I43: 32.38181818 | J43: 5.130825379 | K43: =SUM(LEN(UPPER(INDIRECT("'"&D43&"'!B1:B"&E43)))-LEN(SUBSTITUTE(UPPER(INDIRECT("'"&D43&"'!B1:B"&E43)),UPPER($K$2),"")))/LEN($K$2) -> 100
B44: 40 | C44: New | D44: Matthew | E44: 1071 | F44: =SUM(LEN(INDIRECT("'"&D44&"'!B1:B"&E44))) -> 123349 | G44: 115.1718021 | H44: =COUNTA(INDIRECT("'"&D44&"'!B1:B"&E44))+SUMPRODUCT(LEN(TRIM(INDIRECT("'"&D44&"'!B1:B"&E44)))-LEN(SUBSTITUTE(TRIM(INDIRECT("'"&D44&"'!B1:B"&E44))," ",""))) -> 23684 | I44: 22.11391223 | J44: 5.208115183 | K44: =SUM(LEN(UPPER(INDIRECT("'"&D44&"'!B1:B"&E44)))-LEN(SUBSTITUTE(UPPER(INDIRECT("'"&D44&"'!B1:B"&E44)),UPPER($K$2),"")))/LEN($K$2) -> 1510
B45: 41 | C45: New | D45: Mark | E45: 678 | F45: =SUM(LEN(INDIRECT("'"&D45&"'!B1:B"&E45))) -> 78443 | G45: 115.6976401 | H45: =COUNTA(INDIRECT("'"&D45&"'!B1:B"&E45))+SUMPRODUCT(LEN(TRIM(INDIRECT("'"&D45&"'!B1:B"&E45)))-LEN(SUBSTITUTE(TRIM(INDIRECT("'"&D45&"'!B1:B"&E45))," ",""))) -> 15166 | I45: 22.36873156 | J45: 5.172293288 | K45: =SUM(LEN(UPPER(INDIRECT("'"&D45&"'!B1:B"&E45)))-LEN(SUBSTITUTE(UPPER(INDIRECT("'"&D45&"'!B1:B"&E45)),UPPER($K$2),"")))/LEN($K$2) -> 856
B46: 42 | C46: New | D46: Luke | E46: 1151 | F46: =SUM(LEN(INDIRECT("'"&D46&"'!B1:B"&E46))) -> 133523 | G46: 116.0060817 | H46: =COUNTA(INDIRECT("'"&D46&"'!B1:B"&E46))+SUMPRODUCT(LEN(TRIM(INDIRECT("'"&D46&"'!B1:B"&E46)))-LEN(SUBSTITUTE(TRIM(INDIRECT("'"&D46&"'!B1:B"&E46))," ",""))) -> 25939 | I46: 22.5360556 | J46: 5.147577008 | K46: =SUM(LEN(UPPER(INDIRECT("'"&D46&"'!B1:B"&E46)))-LEN(SUBSTITUTE(UPPER(INDIRECT("'"&D46&"'!B1:B"&E46)),UPPER($K$2),"")))/LEN($K$2) -> 1425
B47: 43 | C47: New | D47: John | E47: 879 | F47: =SUM(LEN(INDIRECT("'"&D47&"'!B1:B"&E47))) -> 97154 | G47: 110.5278726 | H47: =COUNTA(INDIRECT("'"&D47&"'!B1:B"&E47))+SUMPRODUCT(LEN(TRIM(INDIRECT("'"&D47&"'!B1:B"&E47)))-LEN(SUBSTITUTE(TRIM(INDIRECT("'"&D47&"'!B1:B"&E47))," ",""))) -> 19094 | I47: 21.72241183 | J47: 5.088195245 | K47: =SUM(LEN(UPPER(INDIRECT("'"&D47&"'!B1:B"&E47)))-LEN(SUBSTITUTE(UPPER(INDIRECT("'"&D47&"'!B1:B"&E47)),UPPER($K$2),"")))/LEN($K$2) -> 1029
B48: 44 | C48: New | D48: Acts | E48: 1007 | F48: =SUM(LEN(INDIRECT("'"&D48&"'!B1:B"&E48))) -> 128829 | G48: 127.9334657 | H48: =COUNTA(INDIRECT("'"&D48&"'!B1:B"&E48))+SUMPRODUCT(LEN(TRIM(INDIRECT("'"&D48&"'!B1:B"&E48)))-LEN(SUBSTITUTE(TRIM(INDIRECT("'"&D48&"'!B1:B"&E48))," ",""))) -> 24245 | I48: 24.07646475 | J48: 5.313631677 | K48: =SUM(LEN(UPPER(INDIRECT("'"&D48&"'!B1:B"&E48)))-LEN(SUBSTITUTE(UPPER(INDIRECT("'"&D48&"'!B1:B"&E48)),UPPER($K$2),"")))/LEN($K$2) -> 1310
B49: 45 | C49: New | D49: Romans | E49: 433 | F49: =SUM(LEN(INDIRECT("'"&D49&"'!B1:B"&E49))) -> 49794 | G49: 114.9976905 | H49: =COUNTA(INDIRECT("'"&D49&"'!B1:B"&E49))+SUMPRODUCT(LEN(TRIM(INDIRECT("'"&D49&"'!B1:B"&E49)))-LEN(SUBSTITUTE(TRIM(INDIRECT("'"&D49&"'!B1:B"&E49))," ",""))) -> 9422 | I49: 21.75981524 | J49: 5.284865209 | K49: =SUM(LEN(UPPER(INDIRECT("'"&D49&"'!B1:B"&E49)))-LEN(SUBSTITUTE(UPPER(INDIRECT("'"&D49&"'!B1:B"&E49)),UPPER($K$2),"")))/LEN($K$2) -> 746
B50: 46 | C50: New | D50: 1 Corinthians | E50: 437 | F50: =SUM(LEN(INDIRECT("'"&D50&"'!B1:B"&E50))) -> 48490 | G50: 110.9610984 | H50: =COUNTA(INDIRECT("'"&D50&"'!B1:B"&E50))+SUMPRODUCT(LEN(TRIM(INDIRECT("'"&D50&"'!B1:B"&E50)))-LEN(SUBSTITUTE(TRIM(INDIRECT("'"&D50&"'!B1:B"&E50))," ",""))) -> 9462 | I50: 21.65217391 | J50: 5.124709364 | K50: =SUM(LEN(UPPER(INDIRECT("'"&D50&"'!B1:B"&E50)))-LEN(SUBSTITUTE(UPPER(INDIRECT("'"&D50&"'!B1:B"&E50)),UPPER($K$2),"")))/LEN($K$2) -> 734
B51: 47 | C51: New | D51: 2 Corinthians | E51: 257 | F51: =SUM(LEN(INDIRECT("'"&D51&"'!B1:B"&E51))) -> 31746 | G51: 123.5252918 | H51: =COUNTA(INDIRECT("'"&D51&"'!B1:B"&E51))+SUMPRODUCT(LEN(TRIM(INDIRECT("'"&D51&"'!B1:B"&E51)))-LEN(SUBSTITUTE(TRIM(INDIRECT("'"&D51&"'!B1:B"&E51))," ",""))) -> 6065 | I51: 23.59922179 | J51: 5.234295136 | K51: =SUM(LEN(UPPER(INDIRECT("'"&D51&"'!B1:B"&E51)))-LEN(SUBSTITUTE(UPPER(INDIRECT("'"&D51&"'!B1:B"&E51)),UPPER($K$2),"")))/LEN($K$2) -> 487
B52: 48 | C52: New | D52: Galatians | E52: 149 | F52: =SUM(LEN(INDIRECT("'"&D52&"'!B1:B"&E52))) -> 16084 | G52: 107.9463087 | H52: =COUNTA(INDIRECT("'"&D52&"'!B1:B"&E52))+SUMPRODUCT(LEN(TRIM(INDIRECT("'"&D52&"'!B1:B"&E52)))-LEN(SUBSTITUTE(TRIM(INDIRECT("'"&D52&"'!B1:B"&E52))," ",""))) -> 3084 | I52: 20.69798658 | J52: 5.215304799 | K52: =SUM(LEN(UPPER(INDIRECT("'"&D52&"'!B1:B"&E52)))-LEN(SUBSTITUTE(UPPER(INDIRECT("'"&D52&"'!B1:B"&E52)),UPPER($K$2),"")))/LEN($K$2) -> 274
B53: 49 | C53: New | D53: Ephesians | E53: 155 | F53: =SUM(LEN(INDIRECT("'"&D53&"'!B1:B"&E53))) -> 16127 | G53: 104.0451613 | H53: =COUNTA(INDIRECT("'"&D53&"'!B1:B"&E53))+SUMPRODUCT(LEN(TRIM(INDIRECT("'"&D53&"'!B1:B"&E53)))-LEN(SUBSTITUTE(TRIM(INDIRECT("'"&D53&"'!B1:B"&E53))," ",""))) -> 3022 | I53: 19.49677419 | J53: 5.336532098 | K53: =SUM(LEN(UPPER(INDIRECT("'"&D53&"'!B1:B"&E53)))-LEN(SUBSTITUTE(UPPER(INDIRECT("'"&D53&"'!B1:B"&E53)),UPPER($K$2),"")))/LEN($K$2) -> 200
B54: 50 | C54: New | D54: Philippians | E54: 104 | F54: =SUM(LEN(INDIRECT("'"&D54&"'!B1:B"&E54))) -> 11454 | G54: 110.1346154 | H54: =COUNTA(INDIRECT("'"&D54&"'!B1:B"&E54))+SUMPRODUCT(LEN(TRIM(INDIRECT("'"&D54&"'!B1:B"&E54)))-LEN(SUBSTITUTE(TRIM(INDIRECT("'"&D54&"'!B1:B"&E54))," ",""))) -> 2183 | I54: 20.99038462 | J54: 5.246907925 | K54: =SUM(LEN(UPPER(INDIRECT("'"&D54&"'!B1:B"&E54)))-LEN(SUBSTITUTE(UPPER(INDIRECT("'"&D54&"'!B1:B"&E54)),UPPER($K$2),"")))/LEN($K$2) -> 176
B55: 51 | C55: New | D55: Colossians | E55: 95 | F55: =SUM(LEN(INDIRECT("'"&D55&"'!B1:B"&E55))) -> 10625 | G55: 111.8421053 | H55: =COUNTA(INDIRECT("'"&D55&"'!B1:B"&E55))+SUMPRODUCT(LEN(TRIM(INDIRECT("'"&D55&"'!B1:B"&E55)))-LEN(SUBSTITUTE(TRIM(INDIRECT("'"&D55&"'!B1:B"&E55))," ",""))) -> 1979 | I55: 20.83157895 | J55: 5.368873168 | K55: =SUM(LEN(UPPER(INDIRECT("'"&D55&"'!B1:B"&E55)))-LEN(SUBSTITUTE(UPPER(INDIRECT("'"&D55&"'!B1:B"&E55)),UPPER($K$2),"")))/LEN($K$2) -> 115
B56: 52 | C56: New | D56: 1 Thessalonians | E56: 89 | F56: =SUM(LEN(INDIRECT("'"&D56&"'!B1:B"&E56))) -> 9574 | G56: 107.5730337 | H56: =COUNTA(INDIRECT("'"&D56&"'!B1:B"&E56))+SUMPRODUCT(LEN(TRIM(INDIRECT("'"&D56&"'!B1:B"&E56)))-LEN(SUBSTITUTE(TRIM(INDIRECT("'"&D56&"'!B1:B"&E56))," ",""))) -> 1837 | I56: 20.64044944 | J56: 5.211758302 | K56: =SUM(LEN(UPPER(INDIRECT("'"&D56&"'!B1:B"&E56)))-LEN(SUBSTITUTE(UPPER(INDIRECT("'"&D56&"'!B1:B"&E56)),UPPER($K$2),"")))/LEN($K$2) -> 132
B57: 53 | C57: New | D57: 2 Thessalonians | E57: 47 | F57: =SUM(LEN(INDIRECT("'"&D57&"'!B1:B"&E57))) -> 5395 | G57: 114.787234 | H57: =COUNTA(INDIRECT("'"&D57&"'!B1:B"&E57))+SUMPRODUCT(LEN(TRIM(INDIRECT("'"&D57&"'!B1:B"&E57)))-LEN(SUBSTITUTE(TRIM(INDIRECT("'"&D57&"'!B1:B"&E57))," ",""))) -> 1022 | I57: 21.74468085 | J57: 5.278864971 | K57: =SUM(LEN(UPPER(INDIRECT("'"&D57&"'!B1:B"&E57)))-LEN(SUBSTITUTE(UPPER(INDIRECT("'"&D57&"'!B1:B"&E57)),UPPER($K$2),"")))/LEN($K$2) -> 89
B58: 54 | C58: New | D58: 1 Timothy | E58: 113 | F58: =SUM(LEN(INDIRECT("'"&D58&"'!B1:B"&E58))) -> 12585 | G58: 111.3716814 | H58: =COUNTA(INDIRECT("'"&D58&"'!B1:B"&E58))+SUMPRODUCT(LEN(TRIM(INDIRECT("'"&D58&"'!B1:B"&E58)))-LEN(SUBSTITUTE(TRIM(INDIRECT("'"&D58&"'!B1:B"&E58))," ",""))) -> 2244 | I58: 19.85840708 | J58: 5.60828877 | K58: =SUM(LEN(UPPER(INDIRECT("'"&D58&"'!B1:B"&E58)))-LEN(SUBSTITUTE(UPPER(INDIRECT("'"&D58&"'!B1:B"&E58)),UPPER($K$2),"")))/LEN($K$2) -> 170
B59: 55 | C59: New | D59: 2 Timothy | E59: 83 | F59: =SUM(LEN(INDIRECT("'"&D59&"'!B1:B"&E59))) -> 9106 | G59: 109.7108434 | H59: =COUNTA(INDIRECT("'"&D59&"'!B1:B"&E59))+SUMPRODUCT(LEN(TRIM(INDIRECT("'"&D59&"'!B1:B"&E59)))-LEN(SUBSTITUTE(TRIM(INDIRECT("'"&D59&"'!B1:B"&E59))," ",""))) -> 1666 | I59: 20.07228916 | J59: 5.465786315 | K59: =SUM(LEN(UPPER(INDIRECT("'"&D59&"'!B1:B"&E59)))-LEN(SUBSTITUTE(UPPER(INDIRECT("'"&D59&"'!B1:B"&E59)),UPPER($K$2),"")))/LEN($K$2) -> 106
B60: 56 | C60: New | D60: Titus | E60: 46 | F60: =SUM(LEN(INDIRECT("'"&D60&"'!B1:B"&E60))) -> 5084 | G60: 110.5217391 | H60: =COUNTA(INDIRECT("'"&D60&"'!B1:B"&E60))+SUMPRODUCT(LEN(TRIM(INDIRECT("'"&D60&"'!B1:B"&E60)))-LEN(SUBSTITUTE(TRIM(INDIRECT("'"&D60&"'!B1:B"&E60))," ",""))) -> 896 | I60: 19.47826087 | J60: 5.674107143 | K60: =SUM(LEN(UPPER(INDIRECT("'"&D60&"'!B1:B"&E60)))-LEN(SUBSTITUTE(UPPER(INDIRECT("'"&D60&"'!B1:B"&E60)),UPPER($K$2),"")))/LEN($K$2) -> 87
B61: 57 | C61: New | D61: Philemon | E61: 25 | F61: =SUM(LEN(INDIRECT("'"&D61&"'!B1:B"&E61))) -> 2295 | G61: 91.8 | H61: =COUNTA(INDIRECT("'"&D61&"'!B1:B"&E61))+SUMPRODUCT(LEN(TRIM(INDIRECT("'"&D61&"'!B1:B"&E61)))-LEN(SUBSTITUTE(TRIM(INDIRECT("'"&D61&"'!B1:B"&E61))," ",""))) -> 430 | I61: 17.2 | J61: 5.337209302 | K61: =SUM(LEN(UPPER(INDIRECT("'"&D61&"'!B1:B"&E61)))-LEN(SUBSTITUTE(UPPER(INDIRECT("'"&D61&"'!B1:B"&E61)),UPPER($K$2),"")))/LEN($K$2) -> 41
B62: 58 | C62: New | D62: Hebrews | E62: 303 | F62: =SUM(LEN(INDIRECT("'"&D62&"'!B1:B"&E62))) -> 36905 | G62: 121.7986799 | H62: =COUNTA(INDIRECT("'"&D62&"'!B1:B"&E62))+SUMPRODUCT(LEN(TRIM(INDIRECT("'"&D62&"'!B1:B"&E62)))-LEN(SUBSTITUTE(TRIM(INDIRECT("'"&D62&"'!B1:B"&E62))," ",""))) -> 6897 | I62: 22.76237624 | J62: 5.350877193 | K62: =SUM(LEN(UPPER(INDIRECT("'"&D62&"'!B1:B"&E62)))-LEN(SUBSTITUTE(UPPER(INDIRECT("'"&D62&"'!B1:B"&E62)),UPPER($K$2),"")))/LEN($K$2) -> 482
B63: 59 | C63: New | D63: James | E63: 108 | F63: =SUM(LEN(INDIRECT("'"&D63&"'!B1:B"&E63))) -> 12029 | G63: 111.3796296 | H63: =COUNTA(INDIRECT("'"&D63&"'!B1:B"&E63))+SUMPRODUCT(LEN(TRIM(INDIRECT("'"&D63&"'!B1:B"&E63)))-LEN(SUBSTITUTE(TRIM(INDIRECT("'"&D63&"'!B1:B"&E63))," ",""))) -> 2304 | I63: 21.33333333 | J63: 5.220920139 | K63: =SUM(LEN(UPPER(INDIRECT("'"&D63&"'!B1:B"&E63)))-LEN(SUBSTITUTE(UPPER(INDIRECT("'"&D63&"'!B1:B"&E63)),UPPER($K$2),"")))/LEN($K$2) -> 178
B64: 60 | C64: New | D64: 1 Peter | E64: 105 | F64: =SUM(LEN(INDIRECT("'"&D64&"'!B1:B"&E64))) -> 13358 | G64: 127.2190476 | H64: =COUNTA(INDIRECT("'"&D64&"'!B1:B"&E64))+SUMPRODUCT(LEN(TRIM(INDIRECT("'"&D64&"'!B1:B"&E64)))-LEN(SUBSTITUTE(TRIM(INDIRECT("'"&D64&"'!B1:B"&E64))," ",""))) -> 2476 | I64: 23.58095238 | J64: 5.394991922 | K64: =SUM(LEN(UPPER(INDIRECT("'"&D64&"'!B1:B"&E64)))-LEN(SUBSTITUTE(UPPER(INDIRECT("'"&D64&"'!B1:B"&E64)),UPPER($K$2),"")))/LEN($K$2) -> 212
B65: 61 | C65: New | D65: 2 Peter | E65: 61 | F65: =SUM(LEN(INDIRECT("'"&D65&"'!B1:B"&E65))) -> 8639 | G65: 141.6229508 | H65: =COUNTA(INDIRECT("'"&D65&"'!B1:B"&E65))+SUMPRODUCT(LEN(TRIM(INDIRECT("'"&D65&"'!B1:B"&E65)))-LEN(SUBSTITUTE(TRIM(INDIRECT("'"&D65&"'!B1:B"&E65))," ",""))) -> 1553 | I65: 25.45901639 | J65: 5.562781713 | K65: =SUM(LEN(UPPER(INDIRECT("'"&D65&"'!B1:B"&E65)))-LEN(SUBSTITUTE(UPPER(INDIRECT("'"&D65&"'!B1:B"&E65)),UPPER($K$2),"")))/LEN($K$2) -> 112
B66: 62 | C66: New | D66: 1 John | E66: 105 | F66: =SUM(LEN(INDIRECT("'"&D66&"'!B1:B"&E66))) -> 12648 | G66: 120.4571429 | H66: =COUNTA(INDIRECT("'"&D66&"'!B1:B"&E66))+SUMPRODUCT(LEN(TRIM(INDIRECT("'"&D66&"'!B1:B"&E66)))-LEN(SUBSTITUTE(TRIM(INDIRECT("'"&D66&"'!B1:B"&E66))," ",""))) -> 2516 | I66: 23.96190476 | J66: 5.027027027 | K66: =SUM(LEN(UPPER(INDIRECT("'"&D66&"'!B1:B"&E66)))-LEN(SUBSTITUTE(UPPER(INDIRECT("'"&D66&"'!B1:B"&E66)),UPPER($K$2),"")))/LEN($K$2) -> 152
B67: 63 | C67: New | D67: 2 John | E67: 13 | F67: =SUM(LEN(INDIRECT("'"&D67&"'!B1:B"&E67))) -> 1540 | G67: 118.4615385 | H67: =COUNTA(INDIRECT("'"&D67&"'!B1:B"&E67))+SUMPRODUCT(LEN(TRIM(INDIRECT("'"&D67&"'!B1:B"&E67)))-LEN(SUBSTITUTE(TRIM(INDIRECT("'"&D67&"'!B1:B"&E67))," ",""))) -> 298 | I67: 22.92307692 | J67: 5.167785235 | K67: =SUM(LEN(UPPER(INDIRECT("'"&D67&"'!B1:B"&E67)))-LEN(SUBSTITUTE(UPPER(INDIRECT("'"&D67&"'!B1:B"&E67)),UPPER($K$2),"")))/LEN($K$2) -> 16
B68: 64 | C68: New | D68: 3 John | E68: 14 | F68: =SUM(LEN(INDIRECT("'"&D68&"'!B1:B"&E68))) -> 1579 | G68: 112.7857143 | H68: =COUNTA(INDIRECT("'"&D68&"'!B1:B"&E68))+SUMPRODUCT(LEN(TRIM(INDIRECT("'"&D68&"'!B1:B"&E68)))-LEN(SUBSTITUTE(TRIM(INDIRECT("'"&D68&"'!B1:B"&E68))," ",""))) -> 294 | I68: 21 | J68: 5.370748299 | K68: =SUM(LEN(UPPER(INDIRECT("'"&D68&"'!B1:B"&E68)))-LEN(SUBSTITUTE(UPPER(INDIRECT("'"&D68&"'!B1:B"&E68)),UPPER($K$2),"")))/LEN($K$2) -> 24
B69: 65 | C69: New | D69: Jude | E69: =COUNTA(INDIRECT("'"&D69&"'!A:A")) -> 25 | F69: =SUM(LEN(INDIRECT("'"&D69&"'!B1:B"&E69))) -> 3498 | G69: =F69/E69 -> 139.92 | H69: =COUNTA(INDIRECT("'"&D69&"'!B1:B"&E69))+SUMPRODUCT(LEN(TRIM(INDIRECT("'"&D69&"'!B1:B"&E69)))-LEN(SUBSTITUTE(TRIM(INDIRECT("'"&D69&"'!B1:B"&E69))," ",""))) -> 608 | I69: =H69/E69 -> 24.32 | J69: 5.753289474 | K69: =SUM(LEN(UPPER(INDIRECT("'"&D69&"'!B1:B"&E69)))-LEN(SUBSTITUTE(UPPER(INDIRECT("'"&D69&"'!B1:B"&E69)),UPPER($K$2),"")))/LEN($K$2) -> 39
B70: 66 | C70: New | D70: Revelation | E70: =COUNTA(INDIRECT("'"&D70&"'!A:A")) -> 404 | F70: =SUM(LEN(INDIRECT("'"&D70&"'!B1:B"&E70))) -> 61671 | G70: =F70/E70 -> 152.6509901 | H70: =COUNTA(INDIRECT("'"&D70&"'!B1:B"&E70))+SUMPRODUCT(LEN(TRIM(INDIRECT("'"&D70&"'!B1:B"&E70)))-LEN(SUBSTITUTE(TRIM(INDIRECT("'"&D70&"'!B1:B"&E70))," ",""))) -> 11995 | I70: =H70/E70 -> 29.69059406 | J70: =F70/H70 -> 5.141392247 | K70: =SUM(LEN(UPPER(INDIRECT("'"&D70&"'!B1:B"&E70)))-LEN(SUBSTITUTE(UPPER(INDIRECT("'"&D70&"'!B1:B"&E70)),UPPER($K$2),"")))/LEN($K$2) -> 585
B71: Total | E71: =SUBTOTAL(109,Table1[No. of Verses]) -> 31102 | F71: =SUBTOTAL(109,Table1[No. of Characters]) -> 4106717 | G71: =F71/E71 -> 132.0402868 | H71: =SUBTOTAL(109,Table1[Words]) -> 789635 | I71: =H71/E71 -> 25.38856022 | J71: =F71/H71 -> 5.200778841 | K71: =SUBTOTAL(109,Table1[Occurrences of the word]) -> 48555

Sheet Genesis
A1: Ge1:1 | B1: In the beginning God created the heaven and the earth.
A2: Ge1:2 | B2: And the earth was without form, and void; and darkness was upon the face of the deep. And the Spirit of God moved upon the face of the waters.
A3: Ge1:3 | B3: And God said, Let there be light: and there was light.
A4: Ge1:4 | B4: And God saw the light, that it was good: and God divided the light from the darkness.
A5: Ge1:5 | B5: And God called the light Day, and the darkness he called Night. And the evening and the morning were the first day.
A6: Ge1:6 | B6: And God said, Let there be a firmament in the midst of the waters, and let it divide the waters from the waters.
A7: Ge1:7 | B7: And God made the firmament, and divided the waters which were under the firmament from the waters which were above the firmament: and it was so.
A8: Ge1:8 | B8: And God called the firmament Heaven. And the evening and the morning were the second day.
A9: Ge1:9 | B9: And God said, Let the waters under the heaven be gathered together unto one place, and let the dry land appear: and it was so.
A10: Ge1:10 | B10: And God called the dry land Earth; and the gathering together of the waters called he Seas: and God saw that it was good.
A11: Ge1:11 | B11: And God said, Let the earth bring forth grass, the herb yielding seed, and the fruit tree yielding fruit after his kind, whose seed is in itself, upon the earth: and it was so.
A12: Ge1:12 | B12: And the earth brought forth grass, and herb yielding seed after his kind, and the tree yielding fruit, whose seed was in itself, after his kind: and God saw that it was good.
A13: Ge1:13 | B13: And the evening and the morning were the third day.
A14: Ge1:14 | B14: And God said, Let there be lights in the firmament of the heaven to divide the day from the night; and let them be for signs, and for seasons, and for days, and years:
A15: Ge1:15 | B15: And let them be for lights in the firmament of the heaven to give light upon the earth: and it was so.
A16: Ge1:16 | B16: And God made two great lights; the greater light to rule the day, and the lesser light to rule the night: he made the stars also.
A17: Ge1:17 | B17: And God set them in the firmament of the heaven to give light upon the earth,
A18: Ge1:18 | B18: And to rule over the day and over the night, and to divide the light from the darkness: and God saw that it was good.
A19: Ge1:19 | B19: And the evening and the morning were the fourth day.
A20: Ge1:20 | B20: And God said, Let the waters bring forth abundantly the moving creature that hath life, and fowl that may fly above the earth in the open firmament of heaven.
A21: Ge1:21 | B21: And God created great whales, and every living creature that moveth, which the waters brought forth abundantly, after their kind, and every winged fowl after his kind: and God saw that it was good.
A22: Ge1:22 | B22: And God blessed them, saying, Be fruitful, and multiply, and fill the waters in the seas, and let fowl multiply in the earth.
A23: Ge1:23 | B23: And the evening and the morning were the fifth day.
A24: Ge1:24 | B24: And God said, Let the earth bring forth the living creature after his kind, cattle, and creeping thing, and beast of the earth after his kind: and it was so.
A25: Ge1:25 | B25: And God made the beast of the earth after his kind, and cattle after their kind, and every thing that creepeth upon the earth after his kind: and God saw that it was good.
A26: Ge1:26 | B26: And God said, Let us make man in our image, after our likeness: and let them have dominion over the fish of the sea, and over the fowl of the air, and over the cattle, and over all the earth, and over every creeping thing that creepeth upon the earth.
A27: Ge1:27 | B27: So God created man in his own image, in the image of God created he him; male and female created he them.
A28: Ge1:28 | B28: And God blessed them, and God said unto them, Be fruitful, and multiply, and replenish the earth, and subdue it: and have dominion over the fish of the sea, and over the fowl of the air, and over every living thing that moveth upon the earth.
A29: Ge1:29 | B29: And God said, Behold, I have given you every herb bearing seed, which is upon the face of all the earth, and every tree, in the which is the fruit of a tree yielding seed; to you it shall be for meat.
A30: Ge1:30 | B30: And to every beast of the earth, and to every fowl of the air, and to every thing that creepeth upon the earth, wherein there is life, I have given every green herb for meat: and it was so.
A31: Ge1:31 | B31: And God saw every thing that he had made, and, behold, it was very good. And the evening and the morning were the sixth day.
A32: Ge2:1 | B32: Thus the heavens and the earth were finished, and all the host of them.
A33: Ge2:2 | B33: And on the seventh day God ended his work which he had made; and he rested on the seventh day from all his work which he had made.
A34: Ge2:3 | B34: And God blessed the seventh day, and sanctified it: because that in it he had rested from all his work which God created and made.
A35: Ge2:4 | B35: These are the generations of the heavens and of the earth when they were created, in the day that the LORD God made the earth and the heavens,
A36: Ge2:5 | B36: And every plant of the field before it was in the earth, and every herb of the field before it grew: for the LORD God had not caused it to rain upon the earth, and there was not a man to till the ground.
A37: Ge2:6 | B37: But there went up a mist from the earth, and watered the whole face of the ground.
A38: Ge2:7 | B38: And the LORD God formed man of the dust of the ground, and breathed into his nostrils the breath of life; and man became a living soul.
A39: Ge2:8 | B39: And the LORD God planted a garden eastward in Eden; and there he put the man whom he had formed.
A40: Ge2:9 | B40: And out of the ground made the LORD God to grow every tree that is pleasant to the sight, and good for food; the tree of life also in the midst of the garden, and the tree of knowledge of good and evil.
A41: Ge2:10 | B41: And a river went out of Eden to water the garden; and from thence it was parted, and became into four heads.
A42: Ge2:11 | B42: The name of the first is Pison: that is it which compasseth the whole land of Havilah, where there is gold;
A43: Ge2:12 | B43: And the gold of that land is good: there is bdellium and the onyx stone.
A44: Ge2:13 | B44: And the name of the second river is Gihon: the same is it that compasseth the whole land of Ethiopia.
A45: Ge2:14 | B45: And the name of the third river is Hiddekel: that is it which goeth toward the east of Assyria. And the fourth river is Euphrates.
A46: Ge2:15 | B46: And the LORD God took the man, and put him into the garden of Eden to dress it and to keep it.
A47: Ge2:16 | B47: And the LORD God commanded the man, saying, Of every tree of the garden thou mayest freely eat:
A48: Ge2:17 | B48: But of the tree of the knowledge of good and evil, thou shalt not eat of it: for in the day that thou eatest thereof thou shalt surely die.
A49: Ge2:18 | B49: And the LORD God said, It is not good that the man should be alone; I will make him an help meet for him.
A50: Ge2:19 | B50: And out of the ground the LORD God formed every beast of the field, and every fowl of the air; and brought them unto Adam to see what he would call them: and whatsoever Adam called every living creature, that was the name thereof.
A51: Ge2:20 | B51: And Adam gave names to all cattle, and to the fowl of the air, and to every beast of the field; but for Adam there was not found an help meet for him.
A52: Ge2:21 | B52: And the LORD God caused a deep sleep to fall upon Adam, and he slept: and he took one of his ribs, and closed up the flesh instead thereof;
A53: Ge2:22 | B53: And the rib, which the LORD God had taken from man, made he a woman, and brought her unto the man.
A54: Ge2:23 | B54: And Adam said, This is now bone of my bones, and flesh of my flesh: she shall be called Woman, because she was taken out of Man.
A55: Ge2:24 | B55: Therefore shall a man leave his father and his mother, and shall cleave unto his wife: and they shall be one flesh.
A56: Ge2:25 | B56: And they were both naked, the man and his wife, and were not ashamed.
A57: Ge3:1 | B57: Now the serpent was more subtil than any beast of the field which the LORD God had made. And he said unto the woman, Yea, hath God said, Ye shall not eat of every tree of the garden?
A58: Ge3:2 | B58: And the woman said unto the serpent, We may eat of the fruit of the trees of the garden:
A59: Ge3:3 | B59: But of the fruit of the tree which is in the midst of the garden, God hath said, Ye shall not eat of it, neither shall ye touch it, lest ye die.
A60: Ge3:4 | B60: And the serpent said unto the woman, Ye shall not surely die:
A61: Ge3:5 | B61: For God doth know that in the day ye eat thereof, then your eyes shall be opened, and ye shall be as gods, knowing good and evil.
A62: Ge3:6 | B62: And when the woman saw that the tree was good for food, and that it was pleasant to the eyes, and a tree to be desired to make one wise, she took of the fruit thereof, and did eat, and gave also unto her husband with her; and he did eat.
A63: Ge3:7 | B63: And the eyes of them both were opened, and they knew that they were naked; and they sewed fig leaves together, and made themselves aprons.
A64: Ge3:8 | B64: And they heard the voice of the LORD God walking in the garden in the cool of the day: and Adam and his wife hid themselves from the presence of the LORD God amongst the trees of the garden.
A65: Ge3:9 | B65: And the LORD God called unto Adam, and said unto him, Where art thou?
A66: Ge3:10 | B66: And he said, I heard thy voice in the garden, and I was afraid, because I was naked; and I hid myself.
A67: Ge3:11 | B67: And he said, Who told thee that thou wast naked? Hast thou eaten of the tree, whereof I commanded thee that thou shouldest not eat?
A68: Ge3:12 | B68: And the man said, The woman whom thou gavest to be with me, she gave me of the tree, and I did eat.
A69: Ge3:13 | B69: And the LORD God said unto the woman, What is this that thou hast done? And the woman said, The serpent beguiled me, and I did eat.
A70: Ge3:14 | B70: And the LORD God said unto the serpent, Because thou hast done this, thou art cursed above all cattle, and above every beast of the field; upon thy belly shalt thou go, and dust shalt thou eat all the days of thy life:
A71: Ge3:15 | B71: And I will put enmity between thee and the woman, and between thy seed and her seed; it shall bruise thy head, and thou shalt bruise his heel.
A72: Ge3:16 | B72: Unto the woman he said, I will greatly multiply thy sorrow and thy conception; in sorrow thou shalt bring forth children; and thy desire shall be to thy husband, and he shall rule over thee.
A73: Ge3:17 | B73: And unto Adam he said, Because thou hast hearkened unto the voice of thy wife, and hast eaten of the tree, of which I commanded thee, saying, Thou shalt not eat of it: cursed is the ground for thy sake; in sorrow shalt thou eat of it all the days of thy life;
A74: Ge3:18 | B74: Thorns also and thistles shall it bring forth to thee; and thou shalt eat the herb of the field;
A75: Ge3:19 | B75: In the sweat of thy face shalt thou eat bread, till thou return unto the ground; for out of it wast thou taken: for dust thou art, and unto dust shalt thou return.
A76: Ge3:20 | B76: And Adam called his wife's name Eve; because she was the mother of all living.
A77: Ge3:21 | B77: Unto Adam also and to his wife did the LORD God make coats of skins, and clothed them.
A78: Ge3:22 | B78: And the LORD God said, Behold, the man is become as one of us, to know good and evil: and now, lest he put forth his hand, and take also of the tree of life, and eat, and live for ever:
A79: Ge3:23 | B79: Therefore the LORD God sent him forth from the garden of Eden, to till the ground from whence he was taken.
A80: Ge3:24 | B80: So he drove out the man; and he placed at the east of the garden of Eden Cherubims, and a flaming sword which turned every way, to keep the way of the tree of life.
A81: Ge4:1 | B81: And Adam knew Eve his wife; and she conceived, and bare Cain, and said, I have gotten a man from the LORD.
A82: Ge4:2 | B82: And she again bare his brother Abel. And Abel was a keeper of sheep, but Cain was a tiller of the ground.
A83: Ge4:3 | B83: And in process of time it came to pass, that Cain brought of the fruit of the ground an offering unto the LORD.
A84: Ge4:4 | B84: And Abel, he also brought of the firstlings of his flock and of the fat thereof. And the LORD had respect unto Abel and to his offering:
A85: Ge4:5 | B85: But unto Cain and to his offering he had not respect. And Cain was very wroth, and his countenance fell.
A86: Ge4:6 | B86: And the LORD said unto Cain, Why art thou wroth? and why is thy countenance fallen?
A87: Ge4:7 | B87: If thou doest well, shalt thou not be accepted? and if thou doest not well, sin lieth at the door. And unto thee shall be his desire, and thou shalt rule over him.
A88: Ge4:8 | B88: And Cain talked with Abel his brother: and it came to pass, when they were in the field, that Cain rose up against Abel his brother, and slew him.
A89: Ge4:9 | B89: And the LORD said unto Cain, Where is Abel thy brother? And he said, I know not: Am I my brother's keeper?
A90: Ge4:10 | B90: And he said, What hast thou done? the voice of thy brother's blood crieth unto me from the ground.
A91: Ge4:11 | B91: And now art thou cursed from the earth, which hath opened her mouth to receive thy brother's blood from thy hand;
A92: Ge4:12 | B92: When thou tillest the ground, it shall not henceforth yield unto thee her strength; a fugitive and a vagabond shalt thou be in the earth.
A93: Ge4:13 | B93: And Cain said unto the LORD, My punishment is greater than I can bear.
A94: Ge4:14 | B94: Behold, thou hast driven me out this day from the face of the earth; and from thy face shall I be hid; and I shall be a fugitive and a vagabond in the earth; and it shall come to pass, that every one that findeth me shall slay me.
A95: Ge4:15 | B95: And the LORD said unto him, Therefore whosoever slayeth Cain, vengeance shall be taken on him sevenfold. And the LORD set a mark upon Cain, lest any finding him should kill him.
A96: Ge4:16 | B96: And Cain went out from the presence of the LORD, and dwelt in the land of Nod, on the east of Eden.
A97: Ge4:17 | B97: And Cain knew his wife; and she conceived, and bare Enoch: and he builded a city, and called the name of the city, after the name of his son, Enoch.
A98: Ge4:18 | B98: And unto Enoch was born Irad: and Irad begat Mehujael: and Mehujael begat Methusael: and Methusael begat Lamech.
A99: Ge4:19 | B99: And Lamech took unto him two wives: the name of the one was Adah, and the name of the other Zillah.
A100: Ge4:20 | B100: And Adah bare Jabal: he was the father of such as dwell in tents, and of such as have cattle.
A101: Ge4:21 | B101: And his brother's name was Jubal: he was the father of all such as handle the harp and organ.
A102: Ge4:22 | B102: And Zillah, she also bare Tubalcain, an instructer of every artificer in brass and iron: and the sister of Tubalcain was Naamah.
A103: Ge4:23 | B103: And Lamech said unto his wives, Adah and Zillah, Hear my voice; ye wives of Lamech, hearken unto my speech: for I have slain a man to my wounding, and a young man to my hurt.
A104: Ge4:24 | B104: If Cain shall be avenged sevenfold, truly Lamech seventy and sevenfold.
A105: Ge4:25 | B105: And Adam knew his wife again; and she bare a son, and called his name Seth: For God, said she, hath appointed me another seed instead of Abel, whom Cain slew.
A106: Ge4:26 | B106: And to Seth, to him also there was born a son; and he called his name Enos: then began men to call upon the name of the LORD.
A107: Ge5:1 | B107: This is the book of the generations of Adam. In the day that God created man, in the likeness of God made he him;
A108: Ge5:2 | B108: Male and female created he them; and blessed them, and called their name Adam, in the day when they were created.
A109: Ge5:3 | B109: And Adam lived an hundred and thirty years, and begat a son in his own likeness, after his image; and called his name Seth:
A110: Ge5:4 | B110: And the days of Adam after he had begotten Seth were eight hundred years: and he begat sons and daughters:
A111: Ge5:5 | B111: And all the days that Adam lived were nine hundred and thirty years: and he died.
A112: Ge5:6 | B112: And Seth lived an hundred and five years, and begat Enos:
A113: Ge5:7 | B113: And Seth lived after he begat Enos eight hundred and seven years, and begat sons and daughters:
A114: Ge5:8 | B114: And all the days of Seth were nine hundred and twelve years: and he died.
A115: Ge5:9 | B115: And Enos lived ninety years, and begat Cainan:
A116: Ge5:10 | B116: And Enos lived after he begat Cainan eight hundred and fifteen years, and begat sons and daughters:
A117: Ge5:11 | B117: And all the days of Enos were nine hundred and five years: and he died.
A118: Ge5:12 | B118: And Cainan lived seventy years, and begat Mahalaleel:
A119: Ge5:13 | B119: And Cainan lived after he begat Mahalaleel eight hundred and forty years, and begat sons and daughters:
A120: Ge5:14 | B120: And all the days of Cainan were nine hundred and ten years: and he died.
A121: Ge5:15 | B121: And Mahalaleel lived sixty and five years, and begat Jared:
A122: Ge5:16 | B122: And Mahalaleel lived after he begat Jared eight hundred and thirty years, and begat sons and daughters:
A123: Ge5:17 | B123: And all the days of Mahalaleel were eight hundred ninety and five years: and he died.
A124: Ge5:18 | B124: And Jared lived an hundred sixty and two years, and he begat Enoch:
A125: Ge5:19 | B125: And Jared lived after he begat Enoch eight hundred years, and begat sons and daughters:
A126: Ge5:20 | B126: And all the days of Jared were nine hundred sixty and two years: and he died.
A127: Ge5:21 | B127: And Enoch lived sixty and five years, and begat Methuselah:
A128: Ge5:22 | B128: And Enoch walked with God after he begat Methuselah three hundred years, and begat sons and daughters:
A129: Ge5:23 | B129: And all the days of Enoch were three hundred sixty and five years:
A130: Ge5:24 | B130: And Enoch walked with God: and he was not; for God took him.
A131: Ge5:25 | B131: And Methuselah lived an hundred eighty and seven years, and begat Lamech:
A132: Ge5:26 | B132: And Methuselah lived after he begat Lamech seven hundred eighty and two years, and begat sons and daughters:
A133: Ge5:27 | B133: And all the days of Methuselah were nine hundred sixty and nine years: and he died.
A134: Ge5:28 | B134: And Lamech lived an hundred eighty and two years, and begat a son:
A135: Ge5:29 | B135: And he called his name Noah, saying, This same shall comfort us concerning our work and toil of our hands, because of the ground which the LORD hath cursed.
A136: Ge5:30 | B136: And Lamech lived after he begat Noah five hundred ninety and five years, and begat sons and daughters:
A137: Ge5:31 | B137: And all the days of Lamech were seven hundred seventy and seven years: and he died.
A138: Ge5:32 | B138: And Noah was five hundred years old: and Noah begat Shem, Ham, and Japheth.
A139: Ge6:1 | B139: And it came to pass, when men began to multiply on the face of the earth, and daughters were born unto them,
A140: Ge6:2 | B140: That the sons of God saw the daughters of men that they were fair; and they took them wives of all which they chose.
A141: Ge6:3 | B141: And the LORD said, My spirit shall not always strive with man, for that he also is flesh: yet his days shall be an hundred and twenty years.
A142: Ge6:4 | B142: There were giants in the earth in those days; and also after that, when the sons of God came in unto the daughters of men, and they bare children to them, the same became mighty men which were of old, men of renown.
A143: Ge6:5 | B143: And God saw that the wickedness of man was great in the earth, and that every imagination of the thoughts of his heart was only evil continually.
A144: Ge6:6 | B144: And it repented the LORD that he had made man on the earth, and it grieved him at his heart.
A145: Ge6:7 | B145: And the LORD said, I will destroy man whom I have created from the face of the earth; both man, and beast, and the creeping thing, and the fowls of the air; for it repenteth me that I have made them.
A146: Ge6:8 | B146: But Noah found grace in the eyes of the LORD.
A147: Ge6:9 | B147: These are the generations of Noah: Noah was a just man and perfect in his generations, and Noah walked with God.
A148: Ge6:10 | B148: And Noah begat three sons, Shem, Ham, and Japheth.
A149: Ge6:11 | B149: The earth also was corrupt before God, and the earth was filled with violence.
A150: Ge6:12 | B150: And God looked upon the earth, and, behold, it was corrupt; for all flesh had corrupted his way upon the earth.
A151: Ge6:13 | B151: And God said unto Noah, The end of all flesh is come before me; for the earth is filled with violence through them; and, behold, I will destroy them with the earth.
A152: Ge6:14 | B152: Make thee an ark of gopher wood; rooms shalt thou make in the ark, and shalt pitch it within and without with pitch.
A153: Ge6:15 | B153: And this is the fashion which thou shalt make it of: The length of the ark shall be three hundred cubits, the breadth of it fifty cubits, and the height of it thirty cubits.
A154: Ge6:16 | B154: A window shalt thou make to the ark, and in a cubit shalt thou finish it above; and the door of the ark shalt thou set in the side thereof; with lower, second, and third stories shalt thou make it.
A155: Ge6:17 | B155: And, behold, I, even I, do bring a flood of waters upon the earth, to destroy all flesh, wherein is the breath of life, from under heaven; and every thing that is in the earth shall die.
A156: Ge6:18 | B156: But with thee will I establish my covenant; and thou shalt come into the ark, thou, and thy sons, and thy wife, and thy sons' wives with thee.
A157: Ge6:19 | B157: And of every living thing of all flesh, two of every sort shalt thou bring into the ark, to keep them alive with thee; they shall be male and female.
A158: Ge6:20 | B158: Of fowls after their kind, and of cattle after their kind, of every creeping thing of the earth after his kind, two of every sort shall come unto thee, to keep them alive.
A159: Ge6:21 | B159: And take thou unto thee of all food that is eaten, and thou shalt gather it to thee; and it shall be for food for thee, and for them.
A160: Ge6:22 | B160: Thus did Noah; according to all that God commanded him, so did he.
A161: Ge7:1 | B161: And the LORD said unto Noah, Come thou and all thy house into the ark; for thee have I seen righteous before me in this generation.
A162: Ge7:2 | B162: Of every clean beast thou shalt take to thee by sevens, the male and his female: and of beasts that are not clean by two, the male and his female.
A163: Ge7:3 | B163: Of fowls also of the air by sevens, the male and the female; to keep seed alive upon the face of all the earth.
A164: Ge7:4 | B164: For yet seven days, and I will cause it to rain upon the earth forty days and forty nights; and every living substance that I have made will I destroy from off the face of the earth.
A165: Ge7:5 | B165: And Noah did according unto all that the LORD commanded him.
A166: Ge7:6 | B166: And Noah was six hundred years old when the flood of waters was upon the earth.
A167: Ge7:7 | B167: And Noah went in, and his sons, and his wife, and his sons' wives with him, into the ark, because of the waters of the flood.
A168: Ge7:8 | B168: Of clean beasts, and of beasts that are not clean, and of fowls, and of every thing that creepeth upon the earth,
A169: Ge7:9 | B169: There went in two and two unto Noah into the ark, the male and the female, as God had commanded Noah.
A170: Ge7:10 | B170: And it came to pass after seven days, that the waters of the flood were upon the earth.
A171: Ge7:11 | B171: In the six hundredth year of Noah's life, in the second month, the seventeenth day of the month, the same day were all the fountains of the great deep broken up, and the windows of heaven were opened.
A172: Ge7:12 | B172: And the rain was upon the earth forty days and forty nights.
A173: Ge7:13 | B173: In the selfsame day entered Noah, and Shem, and Ham, and Japheth, the sons of Noah, and Noah's wife, and the three wives of his sons with them, into the ark;
A174: Ge7:14 | B174: They, and every beast after his kind, and all the cattle after their kind, and every creeping thing that creepeth upon the earth after his kind, and every fowl after his kind, every bird of every sort.
A175: Ge7:15 | B175: And they went in unto Noah into the ark, two and two of all flesh, wherein is the breath of life.
A176: Ge7:16 | B176: And they that went in, went in male and female of all flesh, as God had commanded him: and the LORD shut him in.
A177: Ge7:17 | B177: And the flood was forty days upon the earth; and the waters increased, and bare up the ark, and it was lift up above the earth.
A178: Ge7:18 | B178: And the waters prevailed, and were increased greatly upon the earth; and the ark went upon the face of the waters.
A179: Ge7:19 | B179: And the waters prevailed exceedingly upon the earth; and all the high hills, that were under the whole heaven, were covered.
A180: Ge7:20 | B180: Fifteen cubits upward did the waters prevail; and the mountains were covered.
A181: Ge7:21 | B181: And all flesh died that moved upon the earth, both of fowl, and of cattle, and of beast, and of every creeping thing that creepeth upon the earth, and every man:
A182: Ge7:22 | B182: All in whose nostrils was the breath of life, of all that was in the dry land, died.
A183: Ge7:23 | B183: And every living substance was destroyed which was upon the face of the ground, both man, and cattle, and the creeping things, and the fowl of the heaven; and they were destroyed from the earth: and Noah only remained alive, and they that were with him in the ark.
A184: Ge7:24 | B184: And the waters prevailed upon the earth an hundred and fifty days.
A185: Ge8:1 | B185: And God remembered Noah, and every living thing, and all the cattle that was with him in the ark: and God made a wind to pass over the earth, and the waters asswaged;
A186: Ge8:2 | B186: The fountains also of the deep and the windows of heaven were stopped, and the rain from heaven was restrained;
A187: Ge8:3 | B187: And the waters returned from off the earth continually: and after the end of the hundred and fifty days the waters were abated.
A188: Ge8:4 | B188: And the ark rested in the seventh month, on the seventeenth day of the month, upon the mountains of Ararat.
A189: Ge8:5 | B189: And the waters decreased continually until the tenth month: in the tenth month, on the first day of the month, were the tops of the mountains seen.
A190: Ge8:6 | B190: And it came to pass at the end of forty days, that Noah opened the window of the ark which he had made:
A191: Ge8:7 | B191: And he sent forth a raven, which went forth to and fro, until the waters were dried up from off the earth.
A192: Ge8:8 | B192: Also he sent forth a dove from him, to see if the waters were abated from off the face of the ground;
A193: Ge8:9 | B193: But the dove found no rest for the sole of her foot, and she returned unto him into the ark, for the waters were on the face of the whole earth: then he put forth his hand, and took her, and pulled her in unto him into the ark.
A194: Ge8:10 | B194: And he stayed yet other seven days; and again he sent forth the dove out of the ark;
A195: Ge8:11 | B195: And the dove came in to him in the evening; and, lo, in her mouth was an olive leaf pluckt off: so Noah knew that the waters were abated from off the earth.
A196: Ge8:12 | B196: And he stayed yet other seven days; and sent forth the dove; which returned not again unto him any more.
A197: Ge8:13 | B197: And it came to pass in the six hundredth and first year, in the first month, the first day of the month, the waters were dried up from off the earth: and Noah removed the covering of the ark, and looked, and, behold, the face of the ground was dry.
A198: Ge8:14 | B198: And in the second month, on the seven and twentieth day of the month, was the earth dried.
A199: Ge8:15 | B199: And God spake unto Noah, saying,
A200: Ge8:16 | B200: Go forth of the ark, thou, and thy wife, and thy sons, and thy sons' wives with thee.
... 1333 more rows

Sheet Exodus
A1: Exo1:1 | B1: Now these are the names of the children of Israel, which came into Egypt; every man and his household came with Jacob.
A2: Exo1:2 | B2: Reuben, Simeon, Levi, and Judah,
A3: Exo1:3 | B3: Issachar, Zebulun, and Benjamin,
A4: Exo1:4 | B4: Dan, and Naphtali, Gad, and Asher.
A5: Exo1:5 | B5: And all the souls that came out of the loins of Jacob were seventy souls: for Joseph was in Egypt already.
A6: Exo1:6 | B6: And Joseph died, and all his brethren, and all that generation.
A7: Exo1:7 | B7: And the children of Israel were fruitful, and increased abundantly, and multiplied, and waxed exceeding mighty; and the land was filled with them.
A8: Exo1:8 | B8: Now there arose up a new king over Egypt, which knew not Joseph.
A9: Exo1:9 | B9: And he said unto his people, Behold, the people of the children of Israel are more and mightier than we:
A10: Exo1:10 | B10: Come on, let us deal wisely with them; lest they multiply, and it come to pass, that, when there falleth out any war, they join also unto our enemies, and fight against us, and so get them up out of the land.
A11: Exo1:11 | B11: Therefore they did set over them taskmasters to afflict them with their burdens. And they built for Pharaoh treasure cities, Pithom and Raamses.
A12: Exo1:12 | B12: But the more they afflicted them, the more they multiplied and grew. And they were grieved because of the children of Israel.
A13: Exo1:13 | B13: And the Egyptians made the children of Israel to serve with rigour:
A14: Exo1:14 | B14: And they made their lives bitter with hard bondage, in morter, and in brick, and in all manner of service in the field: all their service, wherein they made them serve, was with rigour.
A15: Exo1:15 | B15: And the king of Egypt spake to the Hebrew midwives, of which the name of the one was Shiphrah, and the name of the other Puah:
A16: Exo1:16 | B16: And he said, When ye do the office of a midwife to the Hebrew women, and see them upon the stools; if it be a son, then ye shall kill him: but if it be a daughter, then she shall live.
A17: Exo1:17 | B17: But the midwives feared God, and did not as the king of Egypt commanded them, but saved the men children alive.
A18: Exo1:18 | B18: And the king of Egypt called for the midwives, and said unto them, Why have ye done this thing, and have saved the men children alive?
A19: Exo1:19 | B19: And the midwives said unto Pharaoh, Because the Hebrew women are not as the Egyptian women; for they are lively, and are delivered ere the midwives come in unto them.
A20: Exo1:20 | B20: Therefore God dealt well with the midwives: and the people multiplied, and waxed very mighty.
A21: Exo1:21 | B21: And it came to pass, because the midwives feared God, that he made them houses.
A22: Exo1:22 | B22: And Pharaoh charged all his people, saying, Every son that is born ye shall cast into the river, and every daughter ye shall save alive.
A23: Exo2:1 | B23: And there went a man of the house of Levi, and took to wife a daughter of Levi.
A24: Exo2:2 | B24: And the woman conceived, and bare a son: and when she saw him that he was a goodly child, she hid him three months.
A25: Exo2:3 | B25: And when she could not longer hide him, she took for him an ark of bulrushes, and daubed it with slime and with pitch, and put the child therein; and she laid it in the flags by the river's brink.
A26: Exo2:4 | B26: And his sister stood afar off, to wit what would be done to him.
A27: Exo2:5 | B27: And the daughter of Pharaoh came down to wash herself at the river; and her maidens walked along by the river's side; and when she saw the ark among the flags, she sent her maid to fetch it.
A28: Exo2:6 | B28: And when she had opened it, she saw the child: and, behold, the babe wept. And she had compassion on him, and said, This is one of the Hebrews' children.
A29: Exo2:7 | B29: Then said his sister to Pharaoh's daughter, Shall I go and call to thee a nurse of the Hebrew women, that she may nurse the child for thee?
A30: Exo2:8 | B30: And Pharaoh's daughter said to her, Go. And the maid went and called the child's mother.
A31: Exo2:9 | B31: And Pharaoh's daughter said unto her, Take this child away, and nurse it for me, and I will give thee thy wages. And the woman took the child, and nursed it.
A32: Exo2:10 | B32: And the child grew, and she brought him unto Pharaoh's daughter, and he became her son. And she called his name Moses: and she said, Because I drew him out of the water.
A33: Exo2:11 | B33: And it came to pass in those days, when Moses was grown, that he went out unto his brethren, and looked on their burdens: and he spied an Egyptian smiting an Hebrew, one of his brethren.
A34: Exo2:12 | B34: And he looked this way and that way, and when he saw that there was no man, he slew the Egyptian, and hid him in the sand.
A35: Exo2:13 | B35: And when he went out the second day, behold, two men of the Hebrews strove together: and he said to him that did the wrong, Wherefore smitest thou thy fellow?
A36: Exo2:14 | B36: And he said, Who made thee a prince and a judge over us? intendest thou to kill me, as thou killedst the Egyptian? And Moses feared, and said, Surely this thing is known.
A37: Exo2:15 | B37: Now when Pharaoh heard this thing, he sought to slay Moses. But Moses fled from the face of Pharaoh, and dwelt in the land of Midian: and he sat down by a well.
A38: Exo2:16 | B38: Now the priest of Midian had seven daughters: and they came and drew water, and filled the troughs to water their father's flock.
A39: Exo2:17 | B39: And the shepherds came and drove them away: but Moses stood up and helped them, and watered their flock.
A40: Exo2:18 | B40: And when they came to Reuel their father, he said, How is it that ye are come so soon to day?
A41: Exo2:19 | B41: And they said, An Egyptian delivered us out of the hand of the shepherds, and also drew water enough for us, and watered the flock.
A42: Exo2:20 | B42: And he said unto his daughters, And where is he? why is it that ye have left the man? call him, that he may eat bread.
A43: Exo2:21 | B43: And Moses was content to dwell with the man: and he gave Moses Zipporah his daughter.
A44: Exo2:22 | B44: And she bare him a son, and he called his name Gershom: for he said, I have been a stranger in a strange land.
A45: Exo2:23 | B45: And it came to pass in process of time, that the king of Egypt died: and the children of Israel sighed by reason of the bondage, and they cried, and their cry came up unto God by reason of the bondage.
A46: Exo2:24 | B46: And God heard their groaning, and God remembered his covenant with Abraham, with Isaac, and with Jacob.
A47: Exo2:25 | B47: And God looked upon the children of Israel, and God had respect unto them.
A48: Exo3:1 | B48: Now Moses kept the flock of Jethro his father in law, the priest of Midian: and he led the flock to the backside of the desert, and came to the mountain of God, even to Horeb.
A49: Exo3:2 | B49: And the angel of the LORD appeared unto him in a flame of fire out of the midst of a bush: and he looked, and, behold, the bush burned with fire, and the bush was not consumed.
A50: Exo3:3 | B50: And Moses said, I will now turn aside, and see this great sight, why the bush is not burnt.
A51: Exo3:4 | B51: And when the LORD saw that he turned aside to see, God called unto him out of the midst of the bush, and said, Moses, Moses. And he said, Here am I.
A52: Exo3:5 | B52: And he said, Draw not nigh hither: put off thy shoes from off thy feet, for the place whereon thou standest is holy ground.
A53: Exo3:6 | B53: Moreover he said, I am the God of thy father, the God of Abraham, the God of Isaac, and the God of Jacob. And Moses hid his face; for he was afraid to look upon God.
A54: Exo3:7 | B54: And the LORD said, I have surely seen the affliction of my people which are in Egypt, and have heard their cry by reason of their taskmasters; for I know their sorrows;
A55: Exo3:8 | B55: And I am come down to deliver them out of the hand of the Egyptians, and to bring them up out of that land unto a good land and a large, unto a land flowing with milk and honey; unto the place of the Canaanites, and the Hittites, and the Amorites, and the Perizzites, and the Hivites, and the Jebusites.
A56: Exo3:9 | B56: Now therefore, behold, the cry of the children of Israel is come unto me: and I have also seen the oppression wherewith the Egyptians oppress them.
A57: Exo3:10 | B57: Come now therefore, and I will send thee unto Pharaoh, that thou mayest bring forth my people the children of Israel out of Egypt.
A58: Exo3:11 | B58: And Moses said unto God, Who am I, that I should go unto Pharaoh, and that I should bring forth the children of Israel out of Egypt?
A59: Exo3:12 | B59: And he said, Certainly I will be with thee; and this shall be a token unto thee, that I have sent thee: When thou hast brought forth the people out of Egypt, ye shall serve God upon this mountain.
A60: Exo3:13 | B60: And Moses said unto God, Behold, when I come unto the children of Israel, and shall say unto them, The God of your fathers hath sent me unto you; and they shall say to me, What is his name? what shall I say unto them?
A61: Exo3:14 | B61: And God said unto Moses, I AM THAT I AM: and he said, Thus shalt thou say unto the children of Israel, I AM hath sent me unto you.
A62: Exo3:15 | B62: And God said moreover unto Moses, Thus shalt thou say unto the children of Israel, The LORD God of your fathers, the God of Abraham, the God of Isaac, and the God of Jacob, hath sent me unto you: this is my name for ever, and this is my memorial unto all generations.
A63: Exo3:16 | B63: Go, and gather the elders of Israel together, and say unto them, The LORD God of your fathers, the God of Abraham, of Isaac, and of Jacob, appeared unto me, saying, I have surely visited you, and seen that which is done to you in Egypt:
A64: Exo3:17 | B64: And I have said, I will bring you up out of the affliction of Egypt unto the land of the Canaanites, and the Hittites, and the Amorites, and the Perizzites, and the Hivites, and the Jebusites, unto a land flowing with milk and honey.
A65: Exo3:18 | B65: And they shall hearken to thy voice: and thou shalt come, thou and the elders of Israel, unto the king of Egypt, and ye shall say unto him, The LORD God of the Hebrews hath met with us: and now let us go, we beseech thee, three days' journey into the wilderness, that we may sacrifice to the LORD our God.
A66: Exo3:19 | B66: And I am sure that the king of Egypt will not let you go, no, not by a mighty hand.
A67: Exo3:20 | B67: And I will stretch out my hand, and smite Egypt with all my wonders which I will do in the midst thereof: and after that he will let you go.
A68: Exo3:21 | B68: And I will give this people favour in the sight of the Egyptians: and it shall come to pass, that, when ye go, ye shall not go empty:
A69: Exo3:22 | B69: But every woman shall borrow of her neighbour, and of her that sojourneth in her house, jewels of silver, and jewels of gold, and raiment: and ye shall put them upon your sons, and upon your daughters; and ye shall spoil the Egyptians.
A70: Exo4:1 | B70: And Moses answered and said, But, behold, they will not believe me, nor hearken unto my voice: for they will say, The LORD hath not appeared unto thee.
A71: Exo4:2 | B71: And the LORD said unto him, What is that in thine hand? And he said, A rod.
A72: Exo4:3 | B72: And he said, Cast it on the ground. And he cast it on the ground, and it became a serpent; and Moses fled from before it.
A73: Exo4:4 | B73: And the LORD said unto Moses, Put forth thine hand, and take it by the tail. And he put forth his hand, and caught it, and it became a rod in his hand:
A74: Exo4:5 | B74: That they may believe that the LORD God of their fathers, the God of Abraham, the God of Isaac, and the God of Jacob, hath appeared unto thee.
A75: Exo4:6 | B75: And the LORD said furthermore unto him, Put now thine hand into thy bosom. And he put his hand into his bosom: and when he took it out, behold, his hand was leprous as snow.
A76: Exo4:7 | B76: And he said, Put thine hand into thy bosom again. And he put his hand into his bosom again; and plucked it out of his bosom, and, behold, it was turned again as his other flesh.
A77: Exo4:8 | B77: And it shall come to pass, if they will not believe thee, neither hearken to the voice of the first sign, that they will believe the voice of the latter sign.
A78: Exo4:9 | B78: And it shall come to pass, if they will not believe also these two signs, neither hearken unto thy voice, that thou shalt take of the water of the river, and pour it upon the dry land: and the water which thou takest out of the river shall become blood upon the dry land.
A79: Exo4:10 | B79: And Moses said unto the LORD, O my LORD, I am not eloquent, neither heretofore, nor since thou hast spoken unto thy servant: but I am slow of speech, and of a slow tongue.
A80: Exo4:11 | B80: And the LORD said unto him, Who hath made man's mouth? or who maketh the dumb, or deaf, or the seeing, or the blind? have not I the LORD?
A81: Exo4:12 | B81: Now therefore go, and I will be with thy mouth, and teach thee what thou shalt say.
A82: Exo4:13 | B82: And he said, O my LORD, send, I pray thee, by the hand of him whom thou wilt send.
A83: Exo4:14 | B83: And the anger of the LORD was kindled against Moses, and he said, Is not Aaron the Levite thy brother? I know that he can speak well. And also, behold, he cometh forth to meet thee: and when he seeth thee, he will be glad in his heart.
A84: Exo4:15 | B84: And thou shalt speak unto him, and put words in his mouth: and I will be with thy mouth, and with his mouth, and will teach you what ye shall do.
A85: Exo4:16 | B85: And he shall be thy spokesman unto the people: and he shall be, even he shall be to thee instead of a mouth, and thou shalt be to him instead of God.
A86: Exo4:17 | B86: And thou shalt take this rod in thine hand, wherewith thou shalt do signs.
A87: Exo4:18 | B87: And Moses went and returned to Jethro his father in law, and said unto him, Let me go, I pray thee, and return unto my brethren which are in Egypt, and see whether they be yet alive. And Jethro said to Moses, Go in peace.
A88: Exo4:19 | B88: And the LORD said unto Moses in Midian, Go, return into Egypt: for all the men are dead which sought thy life.
A89: Exo4:20 | B89: And Moses took his wife and his sons, and set them upon an ass, and he returned to the land of Egypt: and Moses took the rod of God in his hand.
A90: Exo4:21 | B90: And the LORD said unto Moses, When thou goest to return into Egypt, see that thou do all those wonders before Pharaoh, which I have put in thine hand: but I will harden his heart, that he shall not let the people go.
A91: Exo4:22 | B91: And thou shalt say unto Pharaoh, Thus saith the LORD, Israel is my son, even my firstborn:
A92: Exo4:23 | B92: And I say unto thee, Let my son go, that he may serve me: and if thou refuse to let him go, behold, I will slay thy son, even thy firstborn.
A93: Exo4:24 | B93: And it came to pass by the way in the inn, that the LORD met him, and sought to kill him.
A94: Exo4:25 | B94: Then Zipporah took a sharp stone, and cut off the foreskin of her son, and cast it at his feet, and said, Surely a bloody husband art thou to me.
A95: Exo4:26 | B95: So he let him go: then she said, A bloody husband thou art, because of the circumcision.
A96: Exo4:27 | B96: And the LORD said to Aaron, Go into the wilderness to meet Moses. And he went, and met him in the mount of God, and kissed him.
A97: Exo4:28 | B97: And Moses told Aaron all the words of the LORD who had sent him, and all the signs which he had commanded him.
A98: Exo4:29 | B98: And Moses and Aaron went and gathered together all the elders of the children of Israel:
A99: Exo4:30 | B99: And Aaron spake all the words which the LORD had spoken unto Moses, and did the signs in the sight of the people.
A100: Exo4:31 | B100: And the people believed: and when they heard that the LORD had visited the children of Israel, and that he had looked upon their affliction, then they bowed their heads and worshipped.
A101: Exo5:1 | B101: And afterward Moses and Aaron went in, and told Pharaoh, Thus saith the LORD God of Israel, Let my people go, that they may hold a feast unto me in the wilderness.
A102: Exo5:2 | B102: And Pharaoh said, Who is the LORD, that I should obey his voice to let Israel go? I know not the LORD, neither will I let Israel go.
A103: Exo5:3 | B103: And they said, The God of the Hebrews hath met with us: let us go, we pray thee, three days' journey into the desert, and sacrifice unto the LORD our God; lest he fall upon us with pestilence, or with the sword.
A104: Exo5:4 | B104: And the king of Egypt said unto them, Wherefore do ye, Moses and Aaron, let the people from their works? get you unto your burdens.
A105: Exo5:5 | B105: And Pharaoh said, Behold, the people of the land now are many, and ye make them rest from their burdens.
A106: Exo5:6 | B106: And Pharaoh commanded the same day the taskmasters of the people, and their officers, saying,
A107: Exo5:7 | B107: Ye shall no more give the people straw to make brick, as heretofore: let them go and gather straw for themselves.
A108: Exo5:8 | B108: And the tale of the bricks, which they did make heretofore, ye shall lay upon them; ye shall not diminish ought thereof: for they be idle; therefore they cry, saying, Let us go and sacrifice to our God.
A109: Exo5:9 | B109: Let there more work be laid upon the men, that they may labour therein; and let them not regard vain words.
A110: Exo5:10 | B110: And the taskmasters of the people went out, and their officers, and they spake to the people, saying, Thus saith Pharaoh, I will not give you straw.
A111: Exo5:11 | B111: Go ye, get you straw where ye can find it: yet not ought of your work shall be diminished.
A112: Exo5:12 | B112: So the people were scattered abroad throughout all the land of Egypt to gather stubble instead of straw.
A113: Exo5:13 | B113: And the taskmasters hasted them, saying, Fulfil your works, your daily tasks, as when there was straw.
A114: Exo5:14 | B114: And the officers of the children of Israel, which Pharaoh's taskmasters had set over them, were beaten, and demanded, Wherefore have ye not fulfilled your task in making brick both yesterday and to day, as heretofore?
A115: Exo5:15 | B115: Then the officers of the children of Israel came and cried unto Pharaoh, saying, Wherefore dealest thou thus with thy servants?
A116: Exo5:16 | B116: There is no straw given unto thy servants, and they say to us, Make brick: and, behold, thy servants are beaten; but the fault is in thine own people.
A117: Exo5:17 | B117: But he said, Ye are idle, ye are idle: therefore ye say, Let us go and do sacrifice to the LORD.
A118: Exo5:18 | B118: Go therefore now, and work; for there shall no straw be given you, yet shall ye deliver the tale of bricks.
A119: Exo5:19 | B119: And the officers of the children of Israel did see that they were in evil case, after it was said, Ye shall not minish ought from your bricks of your daily task.
A120: Exo5:20 | B120: And they met Moses and Aaron, who stood in the way, as they came forth from Pharaoh:
A121: Exo5:21 | B121: And they said unto them, The LORD look upon you, and judge; because ye have made our savour to be abhorred in the eyes of Pharaoh, and in the eyes of his servants, to put a sword in their hand to slay us.
A122: Exo5:22 | B122: And Moses returned unto the LORD, and said, LORD, wherefore hast thou so evil entreated this people? why is it that thou hast sent me?
A123: Exo5:23 | B123: For since I came to Pharaoh to speak in thy name, he hath done evil to this people; neither hast thou delivered thy people at all.
A124: Exo6:1 | B124: Then the LORD said unto Moses, Now shalt thou see what I will do to Pharaoh: for with a strong hand shall he let them go, and with a strong hand shall he drive them out of his land.
A125: Exo6:2 | B125: And God spake unto Moses, and said unto him, I am the LORD:
A126: Exo6:3 | B126: And I appeared unto Abraham, unto Isaac, and unto Jacob, by the name of God Almighty, but by my name JEHOVAH was I not known to them.
A127: Exo6:4 | B127: And I have also established my covenant with them, to give them the land of Canaan, the land of their pilgrimage, wherein they were strangers.
A128: Exo6:5 | B128: And I have also heard the groaning of the children of Israel, whom the Egyptians keep in bondage; and I have remembered my covenant.
A129: Exo6:6 | B129: Wherefore say unto the children of Israel, I am the LORD, and I will bring you out from under the burdens of the Egyptians, and I will rid you out of their bondage, and I will redeem you with a stretched out arm, and with great judgments:
A130: Exo6:7 | B130: And I will take you to me for a people, and I will be to you a God: and ye shall know that I am the LORD your God, which bringeth you out from under the burdens of the Egyptians.
A131: Exo6:8 | B131: And I will bring you in unto the land, concerning the which I did swear to give it to Abraham, to Isaac, and to Jacob; and I will give it you for an heritage: I am the LORD.
A132: Exo6:9 | B132: And Moses spake so unto the children of Israel: but they hearkened not unto Moses for anguish of spirit, and for cruel bondage.
A133: Exo6:10 | B133: And the LORD spake unto Moses, saying,
A134: Exo6:11 | B134: Go in, speak unto Pharaoh king of Egypt, that he let the children of Israel go out of his land.
A135: Exo6:12 | B135: And Moses spake before the LORD, saying, Behold, the children of Israel have not hearkened unto me; how then shall Pharaoh hear me, who am of uncircumcised lips?
A136: Exo6:13 | B136: And the LORD spake unto Moses and unto Aaron, and gave them a charge unto the children of Israel, and unto Pharaoh king of Egypt, to bring the children of Israel out of the land of Egypt.
A137: Exo6:14 | B137: These be the heads of their fathers' houses: The sons of Reuben the firstborn of Israel; Hanoch, and Pallu, Hezron, and Carmi: these be the families of Reuben.
A138: Exo6:15 | B138: And the sons of Simeon; Jemuel, and Jamin, and Ohad, and Jachin, and Zohar, and Shaul the son of a Canaanitish woman: these are the families of Simeon.
A139: Exo6:16 | B139: And these are the names of the sons of Levi according to their generations; Gershon, and Kohath, and Merari: and the years of the life of Levi were an hundred thirty and seven years.
A140: Exo6:17 | B140: The sons of Gershon; Libni, and Shimi, according to their families.
A141: Exo6:18 | B141: And the sons of Kohath; Amram, and Izhar, and Hebron, and Uzziel: and the years of the life of Kohath were an hundred thirty and three years.
A142: Exo6:19 | B142: And the sons of Merari; Mahali and Mushi: these are the families of Levi according to their generations.
A143: Exo6:20 | B143: And Amram took him Jochebed his father's sister to wife; and she bare him Aaron and Moses: and the years of the life of Amram were an hundred and thirty and seven years.
A144: Exo6:21 | B144: And the sons of Izhar; Korah, and Nepheg, and Zichri.
A145: Exo6:22 | B145: And the sons of Uzziel; Mishael, and Elzaphan, and Zithri.
A146: Exo6:23 | B146: And Aaron took him Elisheba, daughter of Amminadab, sister of Naashon, to wife; and she bare him Nadab, and Abihu, Eleazar, and Ithamar.
A147: Exo6:24 | B147: And the sons of Korah; Assir, and Elkanah, and Abiasaph: these are the families of the Korhites.
A148: Exo6:25 | B148: And Eleazar Aaron's son took him one of the daughters of Putiel to wife; and she bare him Phinehas: these are the heads of the fathers of the Levites according to their families.
A149: Exo6:26 | B149: These are that Aaron and Moses, to whom the LORD said, Bring out the children of Israel from the land of Egypt according to their armies.
A150: Exo6:27 | B150: These are they which spake to Pharaoh king of Egypt, to bring out the children of Israel from Egypt: these are that Moses and Aaron.
A151: Exo6:28 | B151: And it came to pass on the day when the LORD spake unto Moses in the land of Egypt,
A152: Exo6:29 | B152: That the LORD spake unto Moses, saying, I am the LORD: speak thou unto Pharaoh king of Egypt all that I say unto thee.
A153: Exo6:30 | B153: And Moses said before the LORD, Behold, I am of uncircumcised lips, and how shall Pharaoh hearken unto me?
A154: Exo7:1 | B154: And the LORD said unto Moses, See, I have made thee a god to Pharaoh: and Aaron thy brother shall be thy prophet.
A155: Exo7:2 | B155: Thou shalt speak all that I command thee: and Aaron thy brother shall speak unto Pharaoh, that he send the children of Israel out of his land.
A156: Exo7:3 | B156: And I will harden Pharaoh's heart, and multiply my signs and my wonders in the land of Egypt.
A157: Exo7:4 | B157: But Pharaoh shall not hearken unto you, that I may lay my hand upon Egypt, and bring forth mine armies, and my people the children of Israel, out of the land of Egypt by great judgments.
A158: Exo7:5 | B158: And the Egyptians shall know that I am the LORD, when I stretch forth mine hand upon Egypt, and bring out the children of Israel from among them.
A159: Exo7:6 | B159: And Moses and Aaron did as the LORD commanded them, so did they.
A160: Exo7:7 | B160: And Moses was fourscore years old, and Aaron fourscore and three years old, when they spake unto Pharaoh.
A161: Exo7:8 | B161: And the LORD spake unto Moses and unto Aaron, saying,
A162: Exo7:9 | B162: When Pharaoh shall speak unto you, saying, Shew a miracle for you: then thou shalt say unto Aaron, Take thy rod, and cast it before Pharaoh, and it shall become a serpent.
A163: Exo7:10 | B163: And Moses and Aaron went in unto Pharaoh, and they did so as the LORD had commanded: and Aaron cast down his rod before Pharaoh, and before his servants, and it became a serpent.
A164: Exo7:11 | B164: Then Pharaoh also called the wise men and the sorcerers: now the magicians of Egypt, they also did in like manner with their enchantments.
A165: Exo7:12 | B165: For they cast down every man his rod, and they became serpents: but Aaron's rod swallowed up their rods.
A166: Exo7:13 | B166: And he hardened Pharaoh's heart, that he hearkened not unto them; as the LORD had said.
A167: Exo7:14 | B167: And the LORD said unto Moses, Pharaoh's heart is hardened, he refuseth to let the people go.
A168: Exo7:15 | B168: Get thee unto Pharaoh in the morning; lo, he goeth out unto the water; and thou shalt stand by the river's brink against he come; and the rod which was turned to a serpent shalt thou take in thine hand.
A169: Exo7:16 | B169: And thou shalt say unto him, The LORD God of the Hebrews hath sent me unto thee, saying, Let my people go, that they may serve me in the wilderness: and, behold, hitherto thou wouldest not hear.
A170: Exo7:17 | B170: Thus saith the LORD, In this thou shalt know that I am the LORD: behold, I will smite with the rod that is in mine hand upon the waters which are in the river, and they shall be turned to blood.
A171: Exo7:18 | B171: And the fish that is in the river shall die, and the river shall stink; and the Egyptians shall lothe to drink of the water of the river.
A172: Exo7:19 | B172: And the LORD spake unto Moses, Say unto Aaron, Take thy rod, and stretch out thine hand upon the waters of Egypt, upon their streams, upon their rivers, and upon their ponds, and upon all their pools of water, that they may become blood; and that there may be blood throughout all the land of Egypt, both in vessels of wood, and in vessels of stone.
A173: Exo7:20 | B173: And Moses and Aaron did so, as the LORD commanded; and he lifted up the rod, and smote the waters that were in the river, in the sight of Pharaoh, and in the sight of his servants; and all the waters that were in the river were turned to blood.
A174: Exo7:21 | B174: And the fish that was in the river died; and the river stank, and the Egyptians could not drink of the water of the river; and there was blood throughout all the land of Egypt.
A175: Exo7:22 | B175: And the magicians of Egypt did so with their enchantments: and Pharaoh's heart was hardened, neither did he hearken unto them; as the LORD had said.
A176: Exo7:23 | B176: And Pharaoh turned and went into his house, neither did he set his heart to this also.
A177: Exo7:24 | B177: And all the Egyptians digged round about the river for water to drink; for they could not drink of the water of the river.
A178: Exo7:25 | B178: And seven days were fulfilled, after that the LORD had smitten the river.
A179: Exo8:1 | B179: And the LORD spake unto Moses, Go unto Pharaoh, and say unto him, Thus saith the LORD, Let my people go, that they may serve me.
A180: Exo8:2 | B180: And if thou refuse to let them go, behold, I will smite all thy borders with frogs:
A181: Exo8:3 | B181: And the river shall bring forth frogs abundantly, which shall go up and come into thine house, and into thy bedchamber, and upon thy bed, and into the house of thy servants, and upon thy people, and into thine ovens, and into thy kneadingtroughs:
A182: Exo8:4 | B182: And the frogs shall come up both on thee, and upon thy people, and upon all thy servants.
A183: Exo8:5 | B183: And the LORD spake unto Moses, Say unto Aaron, Stretch forth thine hand with thy rod over the streams, over the rivers, and over the ponds, and cause frogs to come up upon the land of Egypt.
A184: Exo8:6 | B184: And Aaron stretched out his hand over the waters of Egypt; and the frogs came up, and covered the land of Egypt.
A185: Exo8:7 | B185: And the magicians did so with their enchantments, and brought up frogs upon the land of Egypt.
A186: Exo8:8 | B186: Then Pharaoh called for Moses and Aaron, and said, Intreat the LORD, that he may take away the frogs from me, and from my people; and I will let the people go, that they may do sacrifice unto the LORD.
A187: Exo8:9 | B187: And Moses said unto Pharaoh, Glory over me: when shall I intreat for thee, and for thy servants, and for thy people, to destroy the frogs from thee and thy houses, that they may remain in the river only?
A188: Exo8:10 | B188: And he said, To morrow. And he said, Be it according to thy word: that thou mayest know that there is none like unto the LORD our God.
A189: Exo8:11 | B189: And the frogs shall depart from thee, and from thy houses, and from thy servants, and from thy people; they shall remain in the river only.
A190: Exo8:12 | B190: And Moses and Aaron went out from Pharaoh: and Moses cried unto the LORD because of the frogs which he had brought against Pharaoh.
A191: Exo8:13 | B191: And the LORD did according to the word of Moses; and the frogs died out of the houses, out of the villages, and out of the fields.
A192: Exo8:14 | B192: And they gathered them together upon heaps: and the land stank.
A193: Exo8:15 | B193: But when Pharaoh saw that there was respite, he hardened his heart, and hearkened not unto them; as the LORD had said.
A194: Exo8:16 | B194: And the LORD said unto Moses, Say unto Aaron, Stretch out thy rod, and smite the dust of the land, that it may become lice throughout all the land of Egypt.
A195: Exo8:17 | B195: And they did so; for Aaron stretched out his hand with his rod, and smote the dust of the earth, and it became lice in man, and in beast; all the dust of the land became lice throughout all the land of Egypt.
A196: Exo8:18 | B196: And the magicians did so with their enchantments to bring forth lice, but they could not: so there were lice upon man, and upon beast.
A197: Exo8:19 | B197: Then the magicians said unto Pharaoh, This is the finger of God: and Pharaoh's heart was hardened, and he hearkened not unto them; as the LORD had said.
A198: Exo8:20 | B198: And the LORD said unto Moses, Rise up early in the morning, and stand before Pharaoh; lo, he cometh forth to the water; and say unto him, Thus saith the LORD, Let my people go, that they may serve me.
A199: Exo8:21 | B199: Else, if thou wilt not let my people go, behold, I will send swarms of flies upon thee, and upon thy servants, and upon thy people, and into thy houses: and the houses of the Egyptians shall be full of swarms of flies, and also the ground whereon they are.
A200: Exo8:22 | B200: And I will sever in that day the land of Goshen, in which my people dwell, that no swarms of flies shall be there; to the end thou mayest know that I am the LORD in the midst of the earth.
... 1013 more rows

Sheet Leviticus
A1: Lev1:1 | B1: And the LORD called unto Moses, and spake unto him out of the tabernacle of the congregation, saying,
A2: Lev1:2 | B2: Speak unto the children of Israel, and say unto them, If any man of you bring an offering unto the LORD, ye shall bring your offering of the cattle, even of the herd, and of the flock.
A3: Lev1:3 | B3: If his offering be a burnt sacrifice of the herd, let him offer a male without blemish: he shall offer it of his own voluntary will at the door of the tabernacle of the congregation before the LORD.
A4: Lev1:4 | B4: And he shall put his hand upon the head of the burnt offering; and it shall be accepted for him to make atonement for him.
A5: Lev1:5 | B5: And he shall kill the bullock before the LORD: and the priests, Aaron's sons, shall bring the blood, and sprinkle the blood round about upon the altar that is by the door of the tabernacle of the congregation.
A6: Lev1:6 | B6: And he shall flay the burnt offering, and cut it into his pieces.
A7: Lev1:7 | B7: And the sons of Aaron the priest shall put fire upon the altar, and lay the wood in order upon the fire:
A8: Lev1:8 | B8: And the priests, Aaron's sons, shall lay the parts, the head, and the fat, in order upon the wood that is on the fire which is upon the altar:
A9: Lev1:9 | B9: But his inwards and his legs shall he wash in water: and the priest shall burn all on the altar, to be a burnt sacrifice, an offering made by fire, of a sweet savour unto the LORD.
A10: Lev1:10 | B10: And if his offering be of the flocks, namely, of the sheep, or of the goats, for a burnt sacrifice; he shall bring it a male without blemish.
A11: Lev1:11 | B11: And he shall kill it on the side of the altar northward before the LORD: and the priests, Aaron's sons, shall sprinkle his blood round about upon the altar.
A12: Lev1:12 | B12: And he shall cut it into his pieces, with his head and his fat: and the priest shall lay them in order on the wood that is on the fire which is upon the altar:
A13: Lev1:13 | B13: But he shall wash the inwards and the legs with water: and the priest shall bring it all, and burn it upon the altar: it is a burnt sacrifice, an offering made by fire, of a sweet savour unto the LORD.
A14: Lev1:14 | B14: And if the burnt sacrifice for his offering to the LORD be of fowls, then he shall bring his offering of turtledoves, or of young pigeons.
A15: Lev1:15 | B15: And the priest shall bring it unto the altar, and wring off his head, and burn it on the altar; and the blood thereof shall be wrung out at the side of the altar:
A16: Lev1:16 | B16: And he shall pluck away his crop with his feathers, and cast it beside the altar on the east part, by the place of the ashes:
A17: Lev1:17 | B17: And he shall cleave it with the wings thereof, but shall not divide it asunder: and the priest shall burn it upon the altar, upon the wood that is upon the fire: it is a burnt sacrifice, an offering made by fire, of a sweet savour unto the LORD.
A18: Lev2:1 | B18: And when any will offer a meat offering unto the LORD, his offering shall be of fine flour; and he shall pour oil upon it, and put frankincense thereon:
A19: Lev2:2 | B19: And he shall bring it to Aaron's sons the priests: and he shall take thereout his handful of the flour thereof, and of the oil thereof, with all the frankincense thereof; and the priest shall burn the memorial of it upon the altar, to be an offering made by fire, of a sweet savour unto the LORD:
A20: Lev2:3 | B20: And the remnant of the meat offering shall be Aaron's and his sons': it is a thing most holy of the offerings of the LORD made by fire.
A21: Lev2:4 | B21: And if thou bring an oblation of a meat offering baken in the oven, it shall be unleavened cakes of fine flour mingled with oil, or unleavened wafers anointed with oil.
A22: Lev2:5 | B22: And if thy oblation be a meat offering baken in a pan, it shall be of fine flour unleavened, mingled with oil.
A23: Lev2:6 | B23: Thou shalt part it in pieces, and pour oil thereon: it is a meat offering.
A24: Lev2:7 | B24: And if thy oblation be a meat offering baken in the fryingpan, it shall be made of fine flour with oil.
A25: Lev2:8 | B25: And thou shalt bring the meat offering that is made of these things unto the LORD: and when it is presented unto the priest, he shall bring it unto the altar.
A26: Lev2:9 | B26: And the priest shall take from the meat offering a memorial thereof, and shall burn it upon the altar: it is an offering made by fire, of a sweet savour unto the LORD.
A27: Lev2:10 | B27: And that which is left of the meat offering shall be Aaron's and his sons': it is a thing most holy of the offerings of the LORD made by fire.
A28: Lev2:11 | B28: No meat offering, which ye shall bring unto the LORD, shall be made with leaven: for ye shall burn no leaven, nor any honey, in any offering of the LORD made by fire.
A29: Lev2:12 | B29: As for the oblation of the firstfruits, ye shall offer them unto the LORD: but they shall not be burnt on the altar for a sweet savour.
A30: Lev2:13 | B30: And every oblation of thy meat offering shalt thou season with salt; neither shalt thou suffer the salt of the covenant of thy God to be lacking from thy meat offering: with all thine offerings thou shalt offer salt.
A31: Lev2:14 | B31: And if thou offer a meat offering of thy firstfruits unto the LORD, thou shalt offer for the meat offering of thy firstfruits green ears of corn dried by the fire, even corn beaten out of full ears.
A32: Lev2:15 | B32: And thou shalt put oil upon it, and lay frankincense thereon: it is a meat offering.
A33: Lev2:16 | B33: And the priest shall burn the memorial of it, part of the beaten corn thereof, and part of the oil thereof, with all the frankincense thereof: it is an offering made by fire unto the LORD.
A34: Lev3:1 | B34: And if his oblation be a sacrifice of peace offering, if he offer it of the herd; whether it be a male or female, he shall offer it without blemish before the LORD.
A35: Lev3:2 | B35: And he shall lay his hand upon the head of his offering, and kill it at the door of the tabernacle of the congregation: and Aaron's sons the priests shall sprinkle the blood upon the altar round about.
A36: Lev3:3 | B36: And he shall offer of the sacrifice of the peace offering an offering made by fire unto the LORD; the fat that covereth the inwards, and all the fat that is upon the inwards,
A37: Lev3:4 | B37: And the two kidneys, and the fat that is on them, which is by the flanks, and the caul above the liver, with the kidneys, it shall he take away.
A38: Lev3:5 | B38: And Aaron's sons shall burn it on the altar upon the burnt sacrifice, which is upon the wood that is on the fire: it is an offering made by fire, of a sweet savour unto the LORD.
A39: Lev3:6 | B39: And if his offering for a sacrifice of peace offering unto the LORD be of the flock; male or female, he shall offer it without blemish.
A40: Lev3:7 | B40: If he offer a lamb for his offering, then shall he offer it before the LORD.
A41: Lev3:8 | B41: And he shall lay his hand upon the head of his offering, and kill it before the tabernacle of the congregation: and Aaron's sons shall sprinkle the blood thereof round about upon the altar.
A42: Lev3:9 | B42: And he shall offer of the sacrifice of the peace offering an offering made by fire unto the LORD; the fat thereof, and the whole rump, it shall he take off hard by the backbone; and the fat that covereth the inwards, and all the fat that is upon the inwards,
A43: Lev3:10 | B43: And the two kidneys, and the fat that is upon them, which is by the flanks, and the caul above the liver, with the kidneys, it shall he take away.
A44: Lev3:11 | B44: And the priest shall burn it upon the altar: it is the food of the offering made by fire unto the LORD.
A45: Lev3:12 | B45: And if his offering be a goat, then he shall offer it before the LORD.
A46: Lev3:13 | B46: And he shall lay his hand upon the head of it, and kill it before the tabernacle of the congregation: and the sons of Aaron shall sprinkle the blood thereof upon the altar round about.
A47: Lev3:14 | B47: And he shall offer thereof his offering, even an offering made by fire unto the LORD; the fat that covereth the inwards, and all the fat that is upon the inwards,
A48: Lev3:15 | B48: And the two kidneys, and the fat that is upon them, which is by the flanks, and the caul above the liver, with the kidneys, it shall he take away.
A49: Lev3:16 | B49: And the priest shall burn them upon the altar: it is the food of the offering made by fire for a sweet savour: all the fat is the LORD's.
A50: Lev3:17 | B50: It shall be a perpetual statute for your generations throughout all your dwellings, that ye eat neither fat nor blood.
A51: Lev4:1 | B51: And the LORD spake unto Moses, saying,
A52: Lev4:2 | B52: Speak unto the children of Israel, saying, If a soul shall sin through ignorance against any of the commandments of the LORD concerning things which ought not to be done, and shall do against any of them:
A53: Lev4:3 | B53: If the priest that is anointed do sin according to the sin of the people; then let him bring for his sin, which he hath sinned, a young bullock without blemish unto the LORD for a sin offering.
A54: Lev4:4 | B54: And he shall bring the bullock unto the door of the tabernacle of the congregation before the LORD; and shall lay his hand upon the bullock's head, and kill the bullock before the LORD.
A55: Lev4:5 | B55: And the priest that is anointed shall take of the bullock's blood, and bring it to the tabernacle of the congregation:
A56: Lev4:6 | B56: And the priest shall dip his finger in the blood, and sprinkle of the blood seven times before the LORD, before the vail of the sanctuary.
A57: Lev4:7 | B57: And the priest shall put some of the blood upon the horns of the altar of sweet incense before the LORD, which is in the tabernacle of the congregation; and shall pour all the blood of the bullock at the bottom of the altar of the burnt offering, which is at the door of the tabernacle of the congregation.
A58: Lev4:8 | B58: And he shall take off from it all the fat of the bullock for the sin offering; the fat that covereth the inwards, and all the fat that is upon the inwards,
A59: Lev4:9 | B59: And the two kidneys, and the fat that is upon them, which is by the flanks, and the caul above the liver, with the kidneys, it shall he take away,
A60: Lev4:10 | B60: As it was taken off from the bullock of the sacrifice of peace offerings: and the priest shall burn them upon the altar of the burnt offering.
A61: Lev4:11 | B61: And the skin of the bullock, and all his flesh, with his head, and with his legs, and his inwards, and his dung,
A62: Lev4:12 | B62: Even the whole bullock shall he carry forth without the camp unto a clean place, where the ashes are poured out, and burn him on the wood with fire: where the ashes are poured out shall he be burnt.
A63: Lev4:13 | B63: And if the whole congregation of Israel sin through ignorance, and the thing be hid from the eyes of the assembly, and they have done somewhat against any of the commandments of the LORD concerning things which should not be done, and are guilty;
A64: Lev4:14 | B64: When the sin, which they have sinned against it, is known, then the congregation shall offer a young bullock for the sin, and bring him before the tabernacle of the congregation.
A65: Lev4:15 | B65: And the elders of the congregation shall lay their hands upon the head of the bullock before the LORD: and the bullock shall be killed before the LORD.
A66: Lev4:16 | B66: And the priest that is anointed shall bring of the bullock's blood to the tabernacle of the congregation:
A67: Lev4:17 | B67: And the priest shall dip his finger in some of the blood, and sprinkle it seven times before the LORD, even before the vail.
A68: Lev4:18 | B68: And he shall put some of the blood upon the horns of the altar which is before the LORD, that is in the tabernacle of the congregation, and shall pour out all the blood at the bottom of the altar of the burnt offering, which is at the door of the tabernacle of the congregation.
A69: Lev4:19 | B69: And he shall take all his fat from him, and burn it upon the altar.
A70: Lev4:20 | B70: And he shall do with the bullock as he did with the bullock for a sin offering, so shall he do with this: and the priest shall make an atonement for them, and it shall be forgiven them.
A71: Lev4:21 | B71: And he shall carry forth the bullock without the camp, and burn him as he burned the first bullock: it is a sin offering for the congregation.
A72: Lev4:22 | B72: When a ruler hath sinned, and done somewhat through ignorance against any of the commandments of the LORD his God concerning things which should not be done, and is guilty;
A73: Lev4:23 | B73: Or if his sin, wherein he hath sinned, come to his knowledge; he shall bring his offering, a kid of the goats, a male without blemish:
A74: Lev4:24 | B74: And he shall lay his hand upon the head of the goat, and kill it in the place where they kill the burnt offering before the LORD: it is a sin offering.
A75: Lev4:25 | B75: And the priest shall take of the blood of the sin offering with his finger, and put it upon the horns of the altar of burnt offering, and shall pour out his blood at the bottom of the altar of burnt offering.
A76: Lev4:26 | B76: And he shall burn all his fat upon the altar, as the fat of the sacrifice of peace offerings: and the priest shall make an atonement for him as concerning his sin, and it shall be forgiven him.
A77: Lev4:27 | B77: And if any one of the common people sin through ignorance, while he doeth somewhat against any of the commandments of the LORD concerning things which ought not to be done, and be guilty;
A78: Lev4:28 | B78: Or if his sin, which he hath sinned, come to his knowledge: then he shall bring his offering, a kid of the goats, a female without blemish, for his sin which he hath sinned.
A79: Lev4:29 | B79: And he shall lay his hand upon the head of the sin offering, and slay the sin offering in the place of the burnt offering.
A80: Lev4:30 | B80: And the priest shall take of the blood thereof with his finger, and put it upon the horns of the altar of burnt offering, and shall pour out all the blood thereof at the bottom of the altar.
A81: Lev4:31 | B81: And he shall take away all the fat thereof, as the fat is taken away from off the sacrifice of peace offerings; and the priest shall burn it upon the altar for a sweet savour unto the LORD; and the priest shall make an atonement for him, and it shall be forgiven him.
A82: Lev4:32 | B82: And if he bring a lamb for a sin offering, he shall bring it a female without blemish.
A83: Lev4:33 | B83: And he shall lay his hand upon the head of the sin offering, and slay it for a sin offering in the place where they kill the burnt offering.
A84: Lev4:34 | B84: And the priest shall take of the blood of the sin offering with his finger, and put it upon the horns of the altar of burnt offering, and shall pour out all the blood thereof at the bottom of the altar:
A85: Lev4:35 | B85: And he shall take away all the fat thereof, as the fat of the lamb is taken away from the sacrifice of the peace offerings; and the priest shall burn them upon the altar, according to the offerings made by fire unto the LORD: and the priest shall make an atonement for his sin that he hath committed, and it shall be forgiven him.
A86: Lev5:1 | B86: And if a soul sin, and hear the voice of swearing, and is a witness, whether he hath seen or known of it; if he do not utter it, then he shall bear his iniquity.
A87: Lev5:2 | B87: Or if a soul touch any unclean thing, whether it be a carcase of an unclean beast, or a carcase of unclean cattle, or the carcase of unclean creeping things, and if it be hidden from him; he also shall be unclean, and guilty.
A88: Lev5:3 | B88: Or if he touch the uncleanness of man, whatsoever uncleanness it be that a man shall be defiled withal, and it be hid from him; when he knoweth of it, then he shall be guilty.
A89: Lev5:4 | B89: Or if a soul swear, pronouncing with his lips to do evil, or to do good, whatsoever it be that a man shall pronounce with an oath, and it be hid from him; when he knoweth of it, then he shall be guilty in one of these.
A90: Lev5:5 | B90: And it shall be, when he shall be guilty in one of these things, that he shall confess that he hath sinned in that thing:
A91: Lev5:6 | B91: And he shall bring his trespass offering unto the LORD for his sin which he hath sinned, a female from the flock, a lamb or a kid of the goats, for a sin offering; and the priest shall make an atonement for him concerning his sin.
A92: Lev5:7 | B92: And if he be not able to bring a lamb, then he shall bring for his trespass, which he hath committed, two turtledoves, or two young pigeons, unto the LORD; one for a sin offering, and the other for a burnt offering.
A93: Lev5:8 | B93: And he shall bring them unto the priest, who shall offer that which is for the sin offering first, and wring off his head from his neck, but shall not divide it asunder:
A94: Lev5:9 | B94: And he shall sprinkle of the blood of the sin offering upon the side of the altar; and the rest of the blood shall be wrung out at the bottom of the altar: it is a sin offering.
A95: Lev5:10 | B95: And he shall offer the second for a burnt offering, according to the manner: and the priest shall make an atonement for him for his sin which he hath sinned, and it shall be forgiven him.
A96: Lev5:11 | B96: But if he be not able to bring two turtledoves, or two young pigeons, then he that sinned shall bring for his offering the tenth part of an ephah of fine flour for a sin offering; he shall put no oil upon it, neither shall he put any frankincense thereon: for it is a sin offering.
A97: Lev5:12 | B97: Then shall he bring it to the priest, and the priest shall take his handful of it, even a memorial thereof, and burn it on the altar, according to the offerings made by fire unto the LORD: it is a sin offering.
A98: Lev5:13 | B98: And the priest shall make an atonement for him as touching his sin that he hath sinned in one of these, and it shall be forgiven him: and the remnant shall be the priest's, as a meat offering.
A99: Lev5:14 | B99: And the LORD spake unto Moses, saying,
A100: Lev5:15 | B100: If a soul commit a trespass, and sin through ignorance, in the holy things of the LORD; then he shall bring for his trespass unto the LORD a ram without blemish out of the flocks, with thy estimation by shekels of silver, after the shekel of the sanctuary, for a trespass offering:
A101: Lev5:16 | B101: And he shall make amends for the harm that he hath done in the holy thing, and shall add the fifth part thereto, and give it unto the priest: and the priest shall make an atonement for him with the ram of the trespass offering, and it shall be forgiven him.
A102: Lev5:17 | B102: And if a soul sin, and commit any of these things which are forbidden to be done by the commandments of the LORD; though he wist it not, yet is he guilty, and shall bear his iniquity.
A103: Lev5:18 | B103: And he shall bring a ram without blemish out of the flock, with thy estimation, for a trespass offering, unto the priest: and the priest shall make an atonement for him concerning his ignorance wherein he erred and wist it not, and it shall be forgiven him.
A104: Lev5:19 | B104: It is a trespass offering: he hath certainly trespassed against the LORD.
A105: Lev6:1 | B105: And the LORD spake unto Moses, saying,
A106: Lev6:2 | B106: If a soul sin, and commit a trespass against the LORD, and lie unto his neighbour in that which was delivered him to keep, or in fellowship, or in a thing taken away by violence, or hath deceived his neighbour;
A107: Lev6:3 | B107: Or have found that which was lost, and lieth concerning it, and sweareth falsely; in any of all these that a man doeth, sinning therein:
A108: Lev6:4 | B108: Then it shall be, because he hath sinned, and is guilty, that he shall restore that which he took violently away, or the thing which he hath deceitfully gotten, or that which was delivered him to keep, or the lost thing which he found,
A109: Lev6:5 | B109: Or all that about which he hath sworn falsely; he shall even restore it in the principal, and shall add the fifth part more thereto, and give it unto him to whom it appertaineth, in the day of his trespass offering.
A110: Lev6:6 | B110: And he shall bring his trespass offering unto the LORD, a ram without blemish out of the flock, with thy estimation, for a trespass offering, unto the priest:
A111: Lev6:7 | B111: And the priest shall make an atonement for him before the LORD: and it shall be forgiven him for any thing of all that he hath done in trespassing therein.
A112: Lev6:8 | B112: And the LORD spake unto Moses, saying,
A113: Lev6:9 | B113: Command Aaron and his sons, saying, This is the law of the burnt offering: It is the burnt offering, because of the burning upon the altar all night unto the morning, and the fire of the altar shall be burning in it.
A114: Lev6:10 | B114: And the priest shall put on his linen garment, and his linen breeches shall he put upon his flesh, and take up the ashes which the fire hath consumed with the burnt offering on the altar, and he shall put them beside the altar.
A115: Lev6:11 | B115: And he shall put off his garments, and put on other garments, and carry forth the ashes without the camp unto a clean place.
A116: Lev6:12 | B116: And the fire upon the altar shall be burning in it; it shall not be put out: and the priest shall burn wood on it every morning, and lay the burnt offering in order upon it; and he shall burn thereon the fat of the peace offerings.
A117: Lev6:13 | B117: The fire shall ever be burning upon the altar; it shall never go out.
A118: Lev6:14 | B118: And this is the law of the meat offering: the sons of Aaron shall offer it before the LORD, before the altar.
A119: Lev6:15 | B119: And he shall take of it his handful, of the flour of the meat offering, and of the oil thereof, and all the frankincense which is upon the meat offering, and shall burn it upon the altar for a sweet savour, even the memorial of it, unto the LORD.
A120: Lev6:16 | B120: And the remainder thereof shall Aaron and his sons eat: with unleavened bread shall it be eaten in the holy place; in the court of the tabernacle of the congregation they shall eat it.
A121: Lev6:17 | B121: It shall not be baken with leaven. I have given it unto them for their portion of my offerings made by fire; it is most holy, as is the sin offering, and as the trespass offering.
A122: Lev6:18 | B122: All the males among the children of Aaron shall eat of it. It shall be a statute for ever in your generations concerning the offerings of the LORD made by fire: every one that toucheth them shall be holy.
A123: Lev6:19 | B123: And the LORD spake unto Moses, saying,
A124: Lev6:20 | B124: This is the offering of Aaron and of his sons, which they shall offer unto the LORD in the day when he is anointed; the tenth part of an ephah of fine flour for a meat offering perpetual, half of it in the morning, and half thereof at night.
A125: Lev6:21 | B125: In a pan it shall be made with oil; and when it is baken, thou shalt bring it in: and the baken pieces of the meat offering shalt thou offer for a sweet savour unto the LORD.
A126: Lev6:22 | B126: And the priest of his sons that is anointed in his stead shall offer it: it is a statute for ever unto the LORD; it shall be wholly burnt.
A127: Lev6:23 | B127: For every meat offering for the priest shall be wholly burnt: it shall not be eaten.
A128: Lev6:24 | B128: And the LORD spake unto Moses, saying,
A129: Lev6:25 | B129: Speak unto Aaron and to his sons, saying, This is the law of the sin offering: In the place where the burnt offering is killed shall the sin offering be killed before the LORD: it is most holy.
A130: Lev6:26 | B130: The priest that offereth it for sin shall eat it: in the holy place shall it be eaten, in the court of the tabernacle of the congregation.
A131: Lev6:27 | B131: Whatsoever shall touch the flesh thereof shall be holy: and when there is sprinkled of the blood thereof upon any garment, thou shalt wash that whereon it was sprinkled in the holy place.
A132: Lev6:28 | B132: But the earthen vessel wherein it is sodden shall be broken: and if it be sodden in a brasen pot, it shall be both scoured, and rinsed in water.
A133: Lev6:29 | B133: All the males among the priests shall eat thereof: it is most holy.
A134: Lev6:30 | B134: And no sin offering, whereof any of the blood is brought into the tabernacle of the congregation to reconcile withal in the holy place, shall be eaten: it shall be burnt in the fire.
A135: Lev7:1 | B135: Likewise this is the law of the trespass offering: it is most holy.
A136: Lev7:2 | B136: In the place where they kill the burnt offering shall they kill the trespass offering: and the blood thereof shall he sprinkle round about upon the altar.
A137: Lev7:3 | B137: And he shall offer of it all the fat thereof; the rump, and the fat that covereth the inwards,
A138: Lev7:4 | B138: And the two kidneys, and the fat that is on them, which is by the flanks, and the caul that is above the liver, with the kidneys, it shall he take away:
A139: Lev7:5 | B139: And the priest shall burn them upon the altar for an offering made by fire unto the LORD: it is a trespass offering.
A140: Lev7:6 | B140: Every male among the priests shall eat thereof: it shall be eaten in the holy place: it is most holy.
A141: Lev7:7 | B141: As the sin offering is, so is the trespass offering: there is one law for them: the priest that maketh atonement therewith shall have it.
A142: Lev7:8 | B142: And the priest that offereth any man's burnt offering, even the priest shall have to himself the skin of the burnt offering which he hath offered.
A143: Lev7:9 | B143: And all the meat offering that is baken in the oven, and all that is dressed in the fryingpan, and in the pan, shall be the priest's that offereth it.
A144: Lev7:10 | B144: And every meat offering, mingled with oil, and dry, shall all the sons of Aaron have, one as much as another.
A145: Lev7:11 | B145: And this is the law of the sacrifice of peace offerings, which he shall offer unto the LORD.
A146: Lev7:12 | B146: If he offer it for a thanksgiving, then he shall offer with the sacrifice of thanksgiving unleavened cakes mingled with oil, and unleavened wafers anointed with oil, and cakes mingled with oil, of fine flour, fried.
A147: Lev7:13 | B147: Besides the cakes, he shall offer for his offering leavened bread with the sacrifice of thanksgiving of his peace offerings.
A148: Lev7:14 | B148: And of it he shall offer one out of the whole oblation for an heave offering unto the LORD, and it shall be the priest's that sprinkleth the blood of the peace offerings.
A149: Lev7:15 | B149: And the flesh of the sacrifice of his peace offerings for thanksgiving shall be eaten the same day that it is offered; he shall not leave any of it until the morning.
A150: Lev7:16 | B150: But if the sacrifice of his offering be a vow, or a voluntary offering, it shall be eaten the same day that he offereth his sacrifice: and on the morrow also the remainder of it shall be eaten:
A151: Lev7:17 | B151: But the remainder of the flesh of the sacrifice on the third day shall be burnt with fire.
A152: Lev7:18 | B152: And if any of the flesh of the sacrifice of his peace offerings be eaten at all on the third day, it shall not be accepted, neither shall it be imputed unto him that offereth it: it shall be an abomination, and the soul that eateth of it shall bear his iniquity.
A153: Lev7:19 | B153: And the flesh that toucheth any unclean thing shall not be eaten; it shall be burnt with fire: and as for the flesh, all that be clean shall eat thereof.
A154: Lev7:20 | B154: But the soul that eateth of the flesh of the sacrifice of peace offerings, that pertain unto the LORD, having his uncleanness upon him, even that soul shall be cut off from his people.
A155: Lev7:21 | B155: Moreover the soul that shall touch any unclean thing, as the uncleanness of man, or any unclean beast, or any abominable unclean thing, and eat of the flesh of the sacrifice of peace offerings, which pertain unto the LORD, even that soul shall be cut off from his people.
A156: Lev7:22 | B156: And the LORD spake unto Moses, saying,
A157: Lev7:23 | B157: Speak unto the children of Israel, saying, Ye shall eat no manner of fat, of ox, or of sheep, or of goat.
A158: Lev7:24 | B158: And the fat of the beast that dieth of itself, and the fat of that which is torn with beasts, may be used in any other use: but ye shall in no wise eat of it.
A159: Lev7:25 | B159: For whosoever eateth the fat of the beast, of which men offer an offering made by fire unto the LORD, even the soul that eateth it shall be cut off from his people.
A160: Lev7:26 | B160: Moreover ye shall eat no manner of blood, whether it be of fowl or of beast, in any of your dwellings.
A161: Lev7:27 | B161: Whatsoever soul it be that eateth any manner of blood, even that soul shall be cut off from his people.
A162: Lev7:28 | B162: And the LORD spake unto Moses, saying,
A163: Lev7:29 | B163: Speak unto the children of Israel, saying, He that offereth the sacrifice of his peace offerings unto the LORD shall bring his oblation unto the LORD of the sacrifice of his peace offerings.
A164: Lev7:30 | B164: His own hands shall bring the offerings of the LORD made by fire, the fat with the breast, it shall he bring, that the breast may be waved for a wave offering before the LORD.
A165: Lev7:31 | B165: And the priest shall burn the fat upon the altar: but the breast shall be Aaron's and his sons'.
A166: Lev7:32 | B166: And the right shoulder shall ye give unto the priest for an heave offering of the sacrifices of your peace offerings.
A167: Lev7:33 | B167: He among the sons of Aaron, that offereth the blood of the peace offerings, and the fat, shall have the right shoulder for his part.
A168: Lev7:34 | B168: For the wave breast and the heave shoulder have I taken of the children of Israel from off the sacrifices of their peace offerings, and have given them unto Aaron the priest and unto his sons by a statute for ever from among the children of Israel.
A169: Lev7:35 | B169: This is the portion of the anointing of Aaron, and of the anointing of his sons, out of the offerings of the LORD made by fire, in the day when he presented them to minister unto the LORD in the priest's office;
A170: Lev7:36 | B170: Which the LORD commanded to be given them of the children of Israel, in the day that he anointed them, by a statute for ever throughout their generations.
A171: Lev7:37 | B171: This is the law of the burnt offering, of the meat offering, and of the sin offering, and of the trespass offering, and of the consecrations, and of the sacrifice of the peace offerings;
A172: Lev7:38 | B172: Which the LORD commanded Moses in mount Sinai, in the day that he commanded the children of Israel to offer their oblations unto the LORD, in the wilderness of Sinai.
A173: Lev8:1 | B173: And the LORD spake unto Moses, saying,
A174: Lev8:2 | B174: Take Aaron and his sons with him, and the garments, and the anointing oil, and a bullock for the sin offering, and two rams, and a basket of unleavened bread;
A175: Lev8:3 | B175: And gather thou all the congregation together unto the door of the tabernacle of the congregation.
A176: Lev8:4 | B176: And Moses did as the LORD commanded him; and the assembly was gathered together unto the door of the tabernacle of the congregation.
A177: Lev8:5 | B177: And Moses said unto the congregation, This is the thing which the LORD commanded to be done.
A178: Lev8:6 | B178: And Moses brought Aaron and his sons, and washed them with water.
A179: Lev8:7 | B179: And he put upon him the coat, and girded him with the girdle, and clothed him with the robe, and put the ephod upon him, and he girded him with the curious girdle of the ephod, and bound it unto him therewith.
A180: Lev8:8 | B180: And he put the breastplate upon him: also he put in the breastplate the Urim and the Thummim.
A181: Lev8:9 | B181: And he put the mitre upon his head; also upon the mitre, even upon his forefront, did he put the golden plate, the holy crown; as the LORD commanded Moses.
A182: Lev8:10 | B182: And Moses took the anointing oil, and anointed the tabernacle and all that was therein, and sanctified them.
A183: Lev8:11 | B183: And he sprinkled thereof upon the altar seven times, and anointed the altar and all his vessels, both the laver and his foot, to sanctify them.
A184: Lev8:12 | B184: And he poured of the anointing oil upon Aaron's head, and anointed him, to sanctify him.
A185: Lev8:13 | B185: And Moses brought Aaron's sons, and put coats upon them, and girded them with girdles, and put bonnets upon them; as the LORD commanded Moses.
A186: Lev8:14 | B186: And he brought the bullock for the sin offering: and Aaron and his sons laid their hands upon the head of the bullock for the sin offering.
A187: Lev8:15 | B187: And he slew it; and Moses took the blood, and put it upon the horns of the altar round about with his finger, and purified the altar, and poured the blood at the bottom of the altar, and sanctified it, to make reconciliation upon it.
A188: Lev8:16 | B188: And he took all the fat that was upon the inwards, and the caul above the liver, and the two kidneys, and their fat, and Moses burned it upon the altar.
A189: Lev8:17 | B189: But the bullock, and his hide, his flesh, and his dung, he burnt with fire without the camp; as the LORD commanded Moses.
A190: Lev8:18 | B190: And he brought the ram for the burnt offering: and Aaron and his sons laid their hands upon the head of the ram.
A191: Lev8:19 | B191: And he killed it; and Moses sprinkled the blood upon the altar round about.
A192: Lev8:20 | B192: And he cut the ram into pieces; and Moses burnt the head, and the pieces, and the fat.
A193: Lev8:21 | B193: And he washed the inwards and the legs in water; and Moses burnt the whole ram upon the altar: it was a burnt sacrifice for a sweet savour, and an offering made by fire unto the LORD; as the LORD commanded Moses.
A194: Lev8:22 | B194: And he brought the other ram, the ram of consecration: and Aaron and his sons laid their hands upon the head of the ram.
A195: Lev8:23 | B195: And he slew it; and Moses took of the blood of it, and put it upon the tip of Aaron's right ear, and upon the thumb of his right hand, and upon the great toe of his right foot.
A196: Lev8:24 | B196: And he brought Aaron's sons, and Moses put of the blood upon the tip of their right ear, and upon the thumbs of their right hands, and upon the great toes of their right feet: and Moses sprinkled the blood upon the altar round about.
A197: Lev8:25 | B197: And he took the fat, and the rump, and all the fat that was upon the inwards, and the caul above the liver, and the two kidneys, and their fat, and the right shoulder:
A198: Lev8:26 | B198: And out of the basket of unleavened bread, that was before the LORD, he took one unleavened cake, and a cake of oiled bread, and one wafer, and put them on the fat, and upon the right shoulder:
A199: Lev8:27 | B199: And he put all upon Aaron's hands, and upon his sons' hands, and waved them for a wave offering before the LORD.
A200: Lev8:28 | B200: And Moses took them from off their hands, and burnt them on the altar upon the burnt offering: they were consecrations for a sweet savour: it is an offering made by fire unto the LORD.
... 659 more rows

Sheet Numbers
A1: Num1:1 | B1: And the LORD spake unto Moses in the wilderness of Sinai, in the tabernacle of the congregation, on the first day of the second month, in the second year after they were come out of the land of Egypt, saying,
A2: Num1:2 | B2: Take ye the sum of all the congregation of the children of Israel, after their families, by the house of their fathers, with the number of their names, every male by their polls;
A3: Num1:3 | B3: From twenty years old and upward, all that are able to go forth to war in Israel: thou and Aaron shall number them by their armies.
A4: Num1:4 | B4: And with you there shall be a man of every tribe; every one head of the house of his fathers.
A5: Num1:5 | B5: And these are the names of the men that shall stand with you: of the tribe of Reuben; Elizur the son of Shedeur.
A6: Num1:6 | B6: Of Simeon; Shelumiel the son of Zurishaddai.
A7: Num1:7 | B7: Of Judah; Nahshon the son of Amminadab.
A8: Num1:8 | B8: Of Issachar; Nethaneel the son of Zuar.
A9: Num1:9 | B9: Of Zebulun; Eliab the son of Helon.
A10: Num1:10 | B10: Of the children of Joseph: of Ephraim; Elishama the son of Ammihud: of Manasseh; Gamaliel the son of Pedahzur.
A11: Num1:11 | B11: Of Benjamin; Abidan the son of Gideoni.
A12: Num1:12 | B12: Of Dan; Ahiezer the son of Ammishaddai.
A13: Num1:13 | B13: Of Asher; Pagiel the son of Ocran.
A14: Num1:14 | B14: Of Gad; Eliasaph the son of Deuel.
A15: Num1:15 | B15: Of Naphtali; Ahira the son of Enan.
A16: Num1:16 | B16: These were the renowned of the congregation, princes of the tribes of their fathers, heads of thousands in Israel.
A17: Num1:17 | B17: And Moses and Aaron took these men which are expressed by their names:
A18: Num1:18 | B18: And they assembled all the congregation together on the first day of the second month, and they declared their pedigrees after their families, by the house of their fathers, according to the number of the names, from twenty years old and upward, by their polls.
A19: Num1:19 | B19: As the LORD commanded Moses, so he numbered them in the wilderness of Sinai.
A20: Num1:20 | B20: And the children of Reuben, Israel's eldest son, by their generations, after their families, by the house of their fathers, according to the number of the names, by their polls, every male from twenty years old and upward, all that were able to go forth to war;
A21: Num1:21 | B21: Those that were numbered of them, even of the tribe of Reuben, were forty and six thousand and five hundred.
A22: Num1:22 | B22: Of the children of Simeon, by their generations, after their families, by the house of their fathers, those that were numbered of them, according to the number of the names, by their polls, every male from twenty years old and upward, all that were able to go forth to war;
A23: Num1:23 | B23: Those that were numbered of them, even of the tribe of Simeon, were fifty and nine thousand and three hundred.
A24: Num1:24 | B24: Of the children of Gad, by their generations, after their families, by the house of their fathers, according to the number of the names, from twenty years old and upward, all that were able to go forth to war;
A25: Num1:25 | B25: Those that were numbered of them, even of the tribe of Gad, were forty and five thousand six hundred and fifty.
A26: Num1:26 | B26: Of the children of Judah, by their generations, after their families, by the house of their fathers, according to the number of the names, from twenty years old and upward, all that were able to go forth to war;
A27: Num1:27 | B27: Those that were numbered of them, even of the tribe of Judah, were threescore and fourteen thousand and six hundred.
A28: Num1:28 | B28: Of the children of Issachar, by their generations, after their families, by the house of their fathers, according to the number of the names, from twenty years old and upward, all that were able to go forth to war;
A29: Num1:29 | B29: Those that were numbered of them, even of the tribe of Issachar, were fifty and four thousand and four hundred.
A30: Num1:30 | B30: Of the children of Zebulun, by their generations, after their families, by the house of their fathers, according to the number of the names, from twenty years old and upward, all that were able to go forth to war;
A31: Num1:31 | B31: Those that were numbered of them, even of the tribe of Zebulun, were fifty and seven thousand and four hundred.
A32: Num1:32 | B32: Of the children of Joseph, namely, of the children of Ephraim, by their generations, after their families, by the house of their fathers, according to the number of the names, from twenty years old and upward, all that were able to go forth to war;
A33: Num1:33 | B33: Those that were numbered of them, even of the tribe of Ephraim, were forty thousand and five hundred.
A34: Num1:34 | B34: Of the children of Manasseh, by their generations, after their families, by the house of their fathers, according to the number of the names, from twenty years old and upward, all that were able to go forth to war;
A35: Num1:35 | B35: Those that were numbered of them, even of the tribe of Manasseh, were thirty and two thousand and two hundred.
A36: Num1:36 | B36: Of the children of Benjamin, by their generations, after their families, by the house of their fathers, according to the number of the names, from twenty years old and upward, all that were able to go forth to war;
A37: Num1:37 | B37: Those that were numbered of them, even of the tribe of Benjamin, were thirty and five thousand and four hundred.
A38: Num1:38 | B38: Of the children of Dan, by their generations, after their families, by the house of their fathers, according to the number of the names, from twenty years old and upward, all that were able to go forth to war;
A39: Num1:39 | B39: Those that were numbered of them, even of the tribe of Dan, were threescore and two thousand and seven hundred.
A40: Num1:40 | B40: Of the children of Asher, by their generations, after their families, by the house of their fathers, according to the number of the names, from twenty years old and upward, all that were able to go forth to war;
A41: Num1:41 | B41: Those that were numbered of them, even of the tribe of Asher, were forty and one thousand and five hundred.
A42: Num1:42 | B42: Of the children of Naphtali, throughout their generations, after their families, by the house of their fathers, according to the number of the names, from twenty years old and upward, all that were able to go forth to war;
A43: Num1:43 | B43: Those that were numbered of them, even of the tribe of Naphtali, were fifty and three thousand and four hundred.
A44: Num1:44 | B44: These are those that were numbered, which Moses and Aaron numbered, and the princes of Israel, being twelve men: each one was for the house of his fathers.
A45: Num1:45 | B45: So were all those that were numbered of the children of Israel, by the house of their fathers, from twenty years old and upward, all that were able to go forth to war in Israel;
A46: Num1:46 | B46: Even all they that were numbered were six hundred thousand and three thousand and five hundred and fifty.
A47: Num1:47 | B47: But the Levites after the tribe of their fathers were not numbered among them.
A48: Num1:48 | B48: For the LORD had spoken unto Moses, saying,
A49: Num1:49 | B49: Only thou shalt not number the tribe of Levi, neither take the sum of them among the children of Israel:
A50: Num1:50 | B50: But thou shalt appoint the Levites over the tabernacle of testimony, and over all the vessels thereof, and over all things that belong to it: they shall bear the tabernacle, and all the vessels thereof; and they shall minister unto it, and shall encamp round about the tabernacle.
A51: Num1:51 | B51: And when the tabernacle setteth forward, the Levites shall take it down: and when the tabernacle is to be pitched, the Levites shall set it up: and the stranger that cometh nigh shall be put to death.
A52: Num1:52 | B52: And the children of Israel shall pitch their tents, every man by his own camp, and every man by his own standard, throughout their hosts.
A53: Num1:53 | B53: But the Levites shall pitch round about the tabernacle of testimony, that there be no wrath upon the congregation of the children of Israel: and the Levites shall keep the charge of the tabernacle of testimony.
A54: Num1:54 | B54: And the children of Israel did according to all that the LORD commanded Moses, so did they.
A55: Num2:1 | B55: And the LORD spake unto Moses and unto Aaron, saying,
A56: Num2:2 | B56: Every man of the children of Israel shall pitch by his own standard, with the ensign of their father's house: far off about the tabernacle of the congregation shall they pitch.
A57: Num2:3 | B57: And on the east side toward the rising of the sun shall they of the standard of the camp of Judah pitch throughout their armies: and Nahshon the son of Amminadab shall be captain of the children of Judah.
A58: Num2:4 | B58: And his host, and those that were numbered of them, were threescore and fourteen thousand and six hundred.
A59: Num2:5 | B59: And those that do pitch next unto him shall be the tribe of Issachar: and Nethaneel the son of Zuar shall be captain of the children of Issachar.
A60: Num2:6 | B60: And his host, and those that were numbered thereof, were fifty and four thousand and four hundred.
A61: Num2:7 | B61: Then the tribe of Zebulun: and Eliab the son of Helon shall be captain of the children of Zebulun.
A62: Num2:8 | B62: And his host, and those that were numbered thereof, were fifty and seven thousand and four hundred.
A63: Num2:9 | B63: All that were numbered in the camp of Judah were an hundred thousand and fourscore thousand and six thousand and four hundred, throughout their armies. These shall first set forth.
A64: Num2:10 | B64: On the south side shall be the standard of the camp of Reuben according to their armies: and the captain of the children of Reuben shall be Elizur the son of Shedeur.
A65: Num2:11 | B65: And his host, and those that were numbered thereof, were forty and six thousand and five hundred.
A66: Num2:12 | B66: And those which pitch by him shall be the tribe of Simeon: and the captain of the children of Simeon shall be Shelumiel the son of Zurishaddai.
A67: Num2:13 | B67: And his host, and those that were numbered of them, were fifty and nine thousand and three hundred.
A68: Num2:14 | B68: Then the tribe of Gad: and the captain of the sons of Gad shall be Eliasaph the son of Reuel.
A69: Num2:15 | B69: And his host, and those that were numbered of them, were forty and five thousand and six hundred and fifty.
A70: Num2:16 | B70: All that were numbered in the camp of Reuben were an hundred thousand and fifty and one thousand and four hundred and fifty, throughout their armies. And they shall set forth in the second rank.
A71: Num2:17 | B71: Then the tabernacle of the congregation shall set forward with the camp of the Levites in the midst of the camp: as they encamp, so shall they set forward, every man in his place by their standards.
A72: Num2:18 | B72: On the west side shall be the standard of the camp of Ephraim according to their armies: and the captain of the sons of Ephraim shall be Elishama the son of Ammihud.
A73: Num2:19 | B73: And his host, and those that were numbered of them, were forty thousand and five hundred.
A74: Num2:20 | B74: And by him shall be the tribe of Manasseh: and the captain of the children of Manasseh shall be Gamaliel the son of Pedahzur.
A75: Num2:21 | B75: And his host, and those that were numbered of them, were thirty and two thousand and two hundred.
A76: Num2:22 | B76: Then the tribe of Benjamin: and the captain of the sons of Benjamin shall be Abidan the son of Gideoni.
A77: Num2:23 | B77: And his host, and those that were numbered of them, were thirty and five thousand and four hundred.
A78: Num2:24 | B78: All that were numbered of the camp of Ephraim were an hundred thousand and eight thousand and an hundred, throughout their armies. And they shall go forward in the third rank.
A79: Num2:25 | B79: The standard of the camp of Dan shall be on the north side by their armies: and the captain of the children of Dan shall be Ahiezer the son of Ammishaddai.
A80: Num2:26 | B80: And his host, and those that were numbered of them, were threescore and two thousand and seven hundred.
A81: Num2:27 | B81: And those that encamp by him shall be the tribe of Asher: and the captain of the children of Asher shall be Pagiel the son of Ocran.
A82: Num2:28 | B82: And his host, and those that were numbered of them, were forty and one thousand and five hundred.
A83: Num2:29 | B83: Then the tribe of Naphtali: and the captain of the children of Naphtali shall be Ahira the son of Enan.
A84: Num2:30 | B84: And his host, and those that were numbered of them, were fifty and three thousand and four hundred.
A85: Num2:31 | B85: All they that were numbered in the camp of Dan were an hundred thousand and fifty and seven thousand and six hundred. They shall go hindmost with their standards.
A86: Num2:32 | B86: These are those which were numbered of the children of Israel by the house of their fathers: all those that were numbered of the camps throughout their hosts were six hundred thousand and three thousand and five hundred and fifty.
A87: Num2:33 | B87: But the Levites were not numbered among the children of Israel; as the LORD commanded Moses.
A88: Num2:34 | B88: And the children of Israel did according to all that the LORD commanded Moses: so they pitched by their standards, and so they set forward, every one after their families, according to the house of their fathers.
A89: Num3:1 | B89: These also are the generations of Aaron and Moses in the day that the LORD spake with Moses in mount Sinai.
A90: Num3:2 | B90: And these are the names of the sons of Aaron; Nadab the firstborn, and Abihu, Eleazar, and Ithamar.
A91: Num3:3 | B91: These are the names of the sons of Aaron, the priests which were anointed, whom he consecrated to minister in the priest's office.
A92: Num3:4 | B92: And Nadab and Abihu died before the LORD, when they offered strange fire before the LORD, in the wilderness of Sinai, and they had no children: and Eleazar and Ithamar ministered in the priest's office in the sight of Aaron their father.
A93: Num3:5 | B93: And the LORD spake unto Moses, saying,
A94: Num3:6 | B94: Bring the tribe of Levi near, and present them before Aaron the priest, that they may minister unto him.
A95: Num3:7 | B95: And they shall keep his charge, and the charge of the whole congregation before the tabernacle of the congregation, to do the service of the tabernacle.
A96: Num3:8 | B96: And they shall keep all the instruments of the tabernacle of the congregation, and the charge of the children of Israel, to do the service of the tabernacle.
A97: Num3:9 | B97: And thou shalt give the Levites unto Aaron and to his sons: they are wholly given unto him out of the children of Israel.
A98: Num3:10 | B98: And thou shalt appoint Aaron and his sons, and they shall wait on their priest's office: and the stranger that cometh nigh shall be put to death.
A99: Num3:11 | B99: And the LORD spake unto Moses, saying,
A100: Num3:12 | B100: And I, behold, I have taken the Levites from among the children of Israel instead of all the firstborn that openeth the matrix among the children of Israel: therefore the Levites shall be mine;
A101: Num3:13 | B101: Because all the firstborn are mine; for on the day that I smote all the firstborn in the land of Egypt I hallowed unto me all the firstborn in Israel, both man and beast: mine shall they be: I am the LORD.
A102: Num3:14 | B102: And the LORD spake unto Moses in the wilderness of Sinai, saying,
A103: Num3:15 | B103: Number the children of Levi after the house of their fathers, by their families: every male from a month old and upward shalt thou number them.
A104: Num3:16 | B104: And Moses numbered them according to the word of the LORD, as he was commanded.
A105: Num3:17 | B105: And these were the sons of Levi by their names; Gershon, and Kohath, and Merari.
A106: Num3:18 | B106: And these are the names of the sons of Gershon by their families; Libni, and Shimei.
A107: Num3:19 | B107: And the sons of Kohath by their families; Amram, and Izehar, Hebron, and Uzziel.
A108: Num3:20 | B108: And the sons of Merari by their families; Mahli, and Mushi. These are the families of the Levites according to the house of their fathers.
A109: Num3:21 | B109: Of Gershon was the family of the Libnites, and the family of the Shimites: these are the families of the Gershonites.
A110: Num3:22 | B110: Those that were numbered of them, according to the number of all the males, from a month old and upward, even those that were numbered of them were seven thousand and five hundred.
A111: Num3:23 | B111: The families of the Gershonites shall pitch behind the tabernacle westward.
A112: Num3:24 | B112: And the chief of the house of the father of the Gershonites shall be Eliasaph the son of Lael.
A113: Num3:25 | B113: And the charge of the sons of Gershon in the tabernacle of the congregation shall be the tabernacle, and the tent, the covering thereof, and the hanging for the door of the tabernacle of the congregation,
A114: Num3:26 | B114: And the hangings of the court, and the curtain for the door of the court, which is by the tabernacle, and by the altar round about, and the cords of it for all the service thereof.
A115: Num3:27 | B115: And of Kohath was the family of the Amramites, and the family of the Izeharites, and the family of the Hebronites, and the family of the Uzzielites: these are the families of the Kohathites.
A116: Num3:28 | B116: In the number of all the males, from a month old and upward, were eight thousand and six hundred, keeping the charge of the sanctuary.
A117: Num3:29 | B117: The families of the sons of Kohath shall pitch on the side of the tabernacle southward.
A118: Num3:30 | B118: And the chief of the house of the father of the families of the Kohathites shall be Elizaphan the son of Uzziel.
A119: Num3:31 | B119: And their charge shall be the ark, and the table, and the candlestick, and the altars, and the vessels of the sanctuary wherewith they minister, and the hanging, and all the service thereof.
A120: Num3:32 | B120: And Eleazar the son of Aaron the priest shall be chief over the chief of the Levites, and have the oversight of them that keep the charge of the sanctuary.
A121: Num3:33 | B121: Of Merari was the family of the Mahlites, and the family of the Mushites: these are the families of Merari.
A122: Num3:34 | B122: And those that were numbered of them, according to the number of all the males, from a month old and upward, were six thousand and two hundred.
A123: Num3:35 | B123: And the chief of the house of the father of the families of Merari was Zuriel the son of Abihail: these shall pitch on the side of the tabernacle northward.
A124: Num3:36 | B124: And under the custody and charge of the sons of Merari shall be the boards of the tabernacle, and the bars thereof, and the pillars thereof, and the sockets thereof, and all the vessels thereof, and all that serveth thereto,
A125: Num3:37 | B125: And the pillars of the court round about, and their sockets, and their pins, and their cords.
A126: Num3:38 | B126: But those that encamp before the tabernacle toward the east, even before the tabernacle of the congregation eastward, shall be Moses, and Aaron and his sons, keeping the charge of the sanctuary for the charge of the children of Israel; and the stranger that cometh nigh shall be put to death.
A127: Num3:39 | B127: All that were numbered of the Levites, which Moses and Aaron numbered at the commandment of the LORD, throughout their families, all the males from a month old and upward, were twenty and two thousand.
A128: Num3:40 | B128: And the LORD said unto Moses, Number all the firstborn of the males of the children of Israel from a month old and upward, and take the number of their names.
A129: Num3:41 | B129: And thou shalt take the Levites for me (I am the LORD) instead of all the firstborn among the children of Israel; and the cattle of the Levites instead of all the firstlings among the cattle of the children of Israel.
A130: Num3:42 | B130: And Moses numbered, as the LORD commanded him, all the firstborn among the children of Israel.
A131: Num3:43 | B131: And all the firstborn males by the number of names, from a month old and upward, of those that were numbered of them, were twenty and two thousand two hundred and threescore and thirteen.
A132: Num3:44 | B132: And the LORD spake unto Moses, saying,
A133: Num3:45 | B133: Take the Levites instead of all the firstborn among the children of Israel, and the cattle of the Levites instead of their cattle; and the Levites shall be mine: I am the LORD.
A134: Num3:46 | B134: And for those that are to be redeemed of the two hundred and threescore and thirteen of the firstborn of the children of Israel, which are more than the Levites;
A135: Num3:47 | B135: Thou shalt even take five shekels apiece by the poll, after the shekel of the sanctuary shalt thou take them: (the shekel is twenty gerahs:)
A136: Num3:48 | B136: And thou shalt give the money, wherewith the odd number of them is to be redeemed, unto Aaron and to his sons.
A137: Num3:49 | B137: And Moses took the redemption money of them that were over and above them that were redeemed by the Levites:
A138: Num3:50 | B138: Of the firstborn of the children of Israel took he the money; a thousand three hundred and threescore and five shekels, after the shekel of the sanctuary:
A139: Num3:51 | B139: And Moses gave the money of them that were redeemed unto Aaron and to his sons, according to the word of the LORD, as the LORD commanded Moses.
A140: Num4:1 | B140: And the LORD spake unto Moses and unto Aaron, saying,
A141: Num4:2 | B141: Take the sum of the sons of Kohath from among the sons of Levi, after their families, by the house of their fathers,
A142: Num4:3 | B142: From thirty years old and upward even until fifty years old, all that enter into the host, to do the work in the tabernacle of the congregation.
A143: Num4:4 | B143: This shall be the service of the sons of Kohath in the tabernacle of the congregation, about the most holy things:
A144: Num4:5 | B144: And when the camp setteth forward, Aaron shall come, and his sons, and they shall take down the covering vail, and cover the ark of testimony with it:
A145: Num4:6 | B145: And shall put thereon the covering of badgers' skins, and shall spread over it a cloth wholly of blue, and shall put in the staves thereof.
A146: Num4:7 | B146: And upon the table of shewbread they shall spread a cloth of blue, and put thereon the dishes, and the spoons, and the bowls, and covers to cover withal: and the continual bread shall be thereon:
A147: Num4:8 | B147: And they shall spread upon them a cloth of scarlet, and cover the same with a covering of badgers' skins, and shall put in the staves thereof.
A148: Num4:9 | B148: And they shall take a cloth of blue, and cover the candlestick of the light, and his lamps, and his tongs, and his snuffdishes, and all the oil vessels thereof, wherewith they minister unto it:
A149: Num4:10 | B149: And they shall put it and all the vessels thereof within a covering of badgers' skins, and shall put it upon a bar.
A150: Num4:11 | B150: And upon the golden altar they shall spread a cloth of blue, and cover it with a covering of badgers' skins, and shall put to the staves thereof:
A151: Num4:12 | B151: And they shall take all the instruments of ministry, wherewith they minister in the sanctuary, and put them in a cloth of blue, and cover them with a covering of badgers' skins, and shall put them on a bar:
A152: Num4:13 | B152: And they shall take away the ashes from the altar, and spread a purple cloth thereon:
A153: Num4:14 | B153: And they shall put upon it all the vessels thereof, wherewith they minister about it, even the censers, the fleshhooks, and the shovels, and the basons, all the vessels of the altar; and they shall spread upon it a covering of badgers' skins, and put to the staves of it.
A154: Num4:15 | B154: And when Aaron and his sons have made an end of covering the sanctuary, and all the vessels of the sanctuary, as the camp is to set forward; after that, the sons of Kohath shall come to bear it: but they shall not touch any holy thing, lest they die. These things are the burden of the sons of Kohath in the tabernacle of the congregation.
A155: Num4:16 | B155: And to the office of Eleazar the son of Aaron the priest pertaineth the oil for the light, and the sweet incense, and the daily meat offering, and the anointing oil, and the oversight of all the tabernacle, and of all that therein is, in the sanctuary, and in the vessels thereof.
A156: Num4:17 | B156: And the LORD spake unto Moses and unto Aaron, saying,
A157: Num4:18 | B157: Cut ye not off the tribe of the families of the Kohathites from among the Levites:
A158: Num4:19 | B158: But thus do unto them, that they may live, and not die, when they approach unto the most holy things: Aaron and his sons shall go in, and appoint them every one to his service and to his burden:
A159: Num4:20 | B159: But they shall not go in to see when the holy things are covered, lest they die.
A160: Num4:21 | B160: And the LORD spake unto Moses, saying,
A161: Num4:22 | B161: Take also the sum of the sons of Gershon, throughout the houses of their fathers, by their families;
A162: Num4:23 | B162: From thirty years old and upward until fifty years old shalt thou number them; all that enter in to perform the service, to do the work in the tabernacle of the congregation.
A163: Num4:24 | B163: This is the service of the families of the Gershonites, to serve, and for burdens:
A164: Num4:25 | B164: And they shall bear the curtains of the tabernacle, and the tabernacle of the congregation, his covering, and the covering of the badgers' skins that is above upon it, and the hanging for the door of the tabernacle of the congregation,
A165: Num4:26 | B165: And the hangings of the court, and the hanging for the door of the gate of the court, which is by the tabernacle and by the altar round about, and their cords, and all the instruments of their service, and all that is made for them: so shall they serve.
A166: Num4:27 | B166: At the appointment of Aaron and his sons shall be all the service of the sons of the Gershonites, in all their burdens, and in all their service: and ye shall appoint unto them in charge all their burdens.
A167: Num4:28 | B167: This is the service of the families of the sons of Gershon in the tabernacle of the congregation: and their charge shall be under the hand of Ithamar the son of Aaron the priest.
A168: Num4:29 | B168: As for the sons of Merari, thou shalt number them after their families, by the house of their fathers;
A169: Num4:30 | B169: From thirty years old and upward even unto fifty years old shalt thou number them, every one that entereth into the service, to do the work of the tabernacle of the congregation.
A170: Num4:31 | B170: And this is the charge of their burden, according to all their service in the tabernacle of the congregation; the boards of the tabernacle, and the bars thereof, and the pillars thereof, and sockets thereof,
A171: Num4:32 | B171: And the pillars of the court round about, and their sockets, and their pins, and their cords, with all their instruments, and with all their service: and by name ye shall reckon the instruments of the charge of their burden.
A172: Num4:33 | B172: This is the service of the families of the sons of Merari, according to all their service, in the tabernacle of the congregation, under the hand of Ithamar the son of Aaron the priest.
A173: Num4:34 | B173: And Moses and Aaron and the chief of the congregation numbered the sons of the Kohathites after their families, and after the house of their fathers,
A174: Num4:35 | B174: From thirty years old and upward even unto fifty years old, every one that entereth into the service, for the work in the tabernacle of the congregation:
A175: Num4:36 | B175: And those that were numbered of them by their families were two thousand seven hundred and fifty.
A176: Num4:37 | B176: These were they that were numbered of the families of the Kohathites, all that might do service in the tabernacle of the congregation, which Moses and Aaron did number according to the commandment of the LORD by the hand of Moses.
A177: Num4:38 | B177: And those that were numbered of the sons of Gershon, throughout their families, and by the house of their fathers,
A178: Num4:39 | B178: From thirty years old and upward even unto fifty years old, every one that entereth into the service, for the work in the tabernacle of the congregation,
A179: Num4:40 | B179: Even those that were numbered of them, throughout their families, by the house of their fathers, were two thousand and six hundred and thirty.
A180: Num4:41 | B180: These are they that were numbered of the families of the sons of Gershon, of all that might do service in the tabernacle of the congregation, whom Moses and Aaron did number according to the commandment of the LORD.
A181: Num4:42 | B181: And those that were numbered of the families of the sons of Merari, throughout their families, by the house of their fathers,
A182: Num4:43 | B182: From thirty years old and upward even unto fifty years old, every one that entereth into the service, for the work in the tabernacle of the congregation,
A183: Num4:44 | B183: Even those that were numbered of them after their families, were three thousand and two hundred.
A184: Num4:45 | B184: These be those that were numbered of the families of the sons of Merari, whom Moses and Aaron numbered according to the word of the LORD by the hand of Moses.
A185: Num4:46 | B185: All those that were numbered of the Levites, whom Moses and Aaron and the chief of Israel numbered, after their families, and after the house of their fathers,
A186: Num4:47 | B186: From thirty years old and upward even unto fifty years old, every one that came to do the service of the ministry, and the service of the burden in the tabernacle of the congregation,
A187: Num4:48 | B187: Even those that were numbered of them, were eight thousand and five hundred and fourscore.
A188: Num4:49 | B188: According to the commandment of the LORD they were numbered by the hand of Moses, every one according to his service, and according to his burden: thus were they numbered of him, as the LORD commanded Moses.
A189: Num5:1 | B189: And the LORD spake unto Moses, saying,
A190: Num5:2 | B190: Command the children of Israel, that they put out of the camp every leper, and every one that hath an issue, and whosoever is defiled by the dead:
A191: Num5:3 | B191: Both male and female shall ye put out, without the camp shall ye put them; that they defile not their camps, in the midst whereof I dwell.
A192: Num5:4 | B192: And the children of Israel did so, and put them out without the camp: as the LORD spake unto Moses, so did the children of Israel.
A193: Num5:5 | B193: And the LORD spake unto Moses, saying,
A194: Num5:6 | B194: Speak unto the children of Israel, When a man or woman shall commit any sin that men commit, to do a trespass against the LORD, and that person be guilty;
A195: Num5:7 | B195: Then they shall confess their sin which they have done: and he shall recompense his trespass with the principal thereof, and add unto it the fifth part thereof, and give it unto him against whom he hath trespassed.
A196: Num5:8 | B196: But if the man have no kinsman to recompense the trespass unto, let the trespass be recompensed unto the LORD, even to the priest; beside the ram of the atonement, whereby an atonement shall be made for him.
A197: Num5:9 | B197: And every offering of all the holy things of the children of Israel, which they bring unto the priest, shall be his.
A198: Num5:10 | B198: And every man's hallowed things shall be his: whatsoever any man giveth the priest, it shall be his.
A199: Num5:11 | B199: And the LORD spake unto Moses, saying,
A200: Num5:12 | B200: Speak unto the children of Israel, and say unto them, If any man's wife go aside, and commit a trespass against him,
... 1088 more rows

Sheet Deuteronomy
A1: Deu1:1 | B1: These be the words which Moses spake unto all Israel on this side Jordan in the wilderness, in the plain over against the Red sea, between Paran, and Tophel, and Laban, and Hazeroth, and Dizahab.
A2: Deu1:2 | B2: (There are eleven days' journey from Horeb by the way of mount Seir unto Kadeshbarnea.)
A3: Deu1:3 | B3: And it came to pass in the fortieth year, in the eleventh month, on the first day of the month, that Moses spake unto the children of Israel, according unto all that the LORD had given him in commandment unto them;
A4: Deu1:4 | B4: After he had slain Sihon the king of the Amorites, which dwelt in Heshbon, and Og the king of Bashan, which dwelt at Astaroth in Edrei:
A5: Deu1:5 | B5: On this side Jordan, in the land of Moab, began Moses to declare this law, saying,
A6: Deu1:6 | B6: The LORD our God spake unto us in Horeb, saying, Ye have dwelt long enough in this mount:
A7: Deu1:7 | B7: Turn you, and take your journey, and go to the mount of the Amorites, and unto all the places nigh thereunto, in the plain, in the hills, and in the vale, and in the south, and by the sea side, to the land of the Canaanites, and unto Lebanon, unto the great river, the river Euphrates.
A8: Deu1:8 | B8: Behold, I have set the land before you: go in and possess the land which the LORD sware unto your fathers, Abraham, Isaac, and Jacob, to give unto them and to their seed after them.
A9: Deu1:9 | B9: And I spake unto you at that time, saying, I am not able to bear you myself alone:
A10: Deu1:10 | B10: The LORD your God hath multiplied you, and, behold, ye are this day as the stars of heaven for multitude.
A11: Deu1:11 | B11: (The LORD God of your fathers make you a thousand times so many more as ye are, and bless you, as he hath promised you!)
A12: Deu1:12 | B12: How can I myself alone bear your cumbrance, and your burden, and your strife?
A13: Deu1:13 | B13: Take you wise men, and understanding, and known among your tribes, and I will make them rulers over you.
A14: Deu1:14 | B14: And ye answered me, and said, The thing which thou hast spoken is good for us to do.
A15: Deu1:15 | B15: So I took the chief of your tribes, wise men, and known, and made them heads over you, captains over thousands, and captains over hundreds, and captains over fifties, and captains over tens, and officers among your tribes.
A16: Deu1:16 | B16: And I charged your judges at that time, saying, Hear the causes between your brethren, and judge righteously between every man and his brother, and the stranger that is with him.
A17: Deu1:17 | B17: Ye shall not respect persons in judgment; but ye shall hear the small as well as the great; ye shall not be afraid of the face of man; for the judgment is God's: and the cause that is too hard for you, bring it unto me, and I will hear it.
A18: Deu1:18 | B18: And I commanded you at that time all the things which ye should do.
A19: Deu1:19 | B19: And when we departed from Horeb, we went through all that great and terrible wilderness, which ye saw by the way of the mountain of the Amorites, as the LORD our God commanded us; and we came to Kadeshbarnea.
A20: Deu1:20 | B20: And I said unto you, Ye are come unto the mountain of the Amorites, which the LORD our God doth give unto us.
A21: Deu1:21 | B21: Behold, the LORD thy God hath set the land before thee: go up and possess it, as the LORD God of thy fathers hath said unto thee; fear not, neither be discouraged.
A22: Deu1:22 | B22: And ye came near unto me every one of you, and said, We will send men before us, and they shall search us out the land, and bring us word again by what way we must go up, and into what cities we shall come.
A23: Deu1:23 | B23: And the saying pleased me well: and I took twelve men of you, one of a tribe:
A24: Deu1:24 | B24: And they turned and went up into the mountain, and came unto the valley of Eshcol, and searched it out.
A25: Deu1:25 | B25: And they took of the fruit of the land in their hands, and brought it down unto us, and brought us word again, and said, It is a good land which the LORD our God doth give us.
A26: Deu1:26 | B26: Notwithstanding ye would not go up, but rebelled against the commandment of the LORD your God:
A27: Deu1:27 | B27: And ye murmured in your tents, and said, Because the LORD hated us, he hath brought us forth out of the land of Egypt, to deliver us into the hand of the Amorites, to destroy us.
A28: Deu1:28 | B28: Whither shall we go up? our brethren have discouraged our heart, saying, The people is greater and taller than we; the cities are great and walled up to heaven; and moreover we have seen the sons of the Anakims there.
A29: Deu1:29 | B29: Then I said unto you, Dread not, neither be afraid of them.
A30: Deu1:30 | B30: The LORD your God which goeth before you, he shall fight for you, according to all that he did for you in Egypt before your eyes;
A31: Deu1:31 | B31: And in the wilderness, where thou hast seen how that the LORD thy God bare thee, as a man doth bear his son, in all the way that ye went, until ye came into this place.
A32: Deu1:32 | B32: Yet in this thing ye did not believe the LORD your God,
A33: Deu1:33 | B33: Who went in the way before you, to search you out a place to pitch your tents in, in fire by night, to shew you by what way ye should go, and in a cloud by day.
A34: Deu1:34 | B34: And the LORD heard the voice of your words, and was wroth, and sware, saying,
A35: Deu1:35 | B35: Surely there shall not one of these men of this evil generation see that good land, which I sware to give unto your fathers,
A36: Deu1:36 | B36: Save Caleb the son of Jephunneh; he shall see it, and to him will I give the land that he hath trodden upon, and to his children, because he hath wholly followed the LORD.
A37: Deu1:37 | B37: Also the LORD was angry with me for your sakes, saying, Thou also shalt not go in thither.
A38: Deu1:38 | B38: But Joshua the son of Nun, which standeth before thee, he shall go in thither: encourage him: for he shall cause Israel to inherit it.
A39: Deu1:39 | B39: Moreover your little ones, which ye said should be a prey, and your children, which in that day had no knowledge between good and evil, they shall go in thither, and unto them will I give it, and they shall possess it.
A40: Deu1:40 | B40: But as for you, turn you, and take your journey into the wilderness by the way of the Red sea.
A41: Deu1:41 | B41: Then ye answered and said unto me, We have sinned against the LORD, we will go up and fight, according to all that the LORD our God commanded us. And when ye had girded on every man his weapons of war, ye were ready to go up into the hill.
A42: Deu1:42 | B42: And the LORD said unto me, Say unto them, Go not up, neither fight; for I am not among you; lest ye be smitten before your enemies.
A43: Deu1:43 | B43: So I spake unto you; and ye would not hear, but rebelled against the commandment of the LORD, and went presumptuously up into the hill.
A44: Deu1:44 | B44: And the Amorites, which dwelt in that mountain, came out against you, and chased you, as bees do, and destroyed you in Seir, even unto Hormah.
A45: Deu1:45 | B45: And ye returned and wept before the LORD; but the LORD would not hearken to your voice, nor give ear unto you.
A46: Deu1:46 | B46: So ye abode in Kadesh many days, according unto the days that ye abode there.
A47: Deu2:1 | B47: Then we turned, and took our journey into the wilderness by the way of the Red sea, as the LORD spake unto me: and we compassed mount Seir many days.
A48: Deu2:2 | B48: And the LORD spake unto me, saying,
A49: Deu2:3 | B49: Ye have compassed this mountain long enough: turn you northward.
A50: Deu2:4 | B50: And command thou the people, saying, Ye are to pass through the coast of your brethren the children of Esau, which dwell in Seir; and they shall be afraid of you: take ye good heed unto yourselves therefore:
A51: Deu2:5 | B51: Meddle not with them; for I will not give you of their land, no, not so much as a foot breadth; because I have given mount Seir unto Esau for a possession.
A52: Deu2:6 | B52: Ye shall buy meat of them for money, that ye may eat; and ye shall also buy water of them for money, that ye may drink.
A53: Deu2:7 | B53: For the LORD thy God hath blessed thee in all the works of thy hand: he knoweth thy walking through this great wilderness: these forty years the LORD thy God hath been with thee; thou hast lacked nothing.
A54: Deu2:8 | B54: And when we passed by from our brethren the children of Esau, which dwelt in Seir, through the way of the plain from Elath, and from Eziongaber, we turned and passed by the way of the wilderness of Moab.
A55: Deu2:9 | B55: And the LORD said unto me, Distress not the Moabites, neither contend with them in battle: for I will not give thee of their land for a possession; because I have given Ar unto the children of Lot for a possession.
A56: Deu2:10 | B56: The Emims dwelt therein in times past, a people great, and many, and tall, as the Anakims;
A57: Deu2:11 | B57: Which also were accounted giants, as the Anakims; but the Moabites call them Emims.
A58: Deu2:12 | B58: The Horims also dwelt in Seir beforetime; but the children of Esau succeeded them, when they had destroyed them from before them, and dwelt in their stead; as Israel did unto the land of his possession, which the LORD gave unto them.
A59: Deu2:13 | B59: Now rise up, said I, and get you over the brook Zered. And we went over the brook Zered.
A60: Deu2:14 | B60: And the space in which we came from Kadeshbarnea, until we were come over the brook Zered, was thirty and eight years; until all the generation of the men of war were wasted out from among the host, as the LORD sware unto them.
A61: Deu2:15 | B61: For indeed the hand of the LORD was against them, to destroy them from among the host, until they were consumed.
A62: Deu2:16 | B62: So it came to pass, when all the men of war were consumed and dead from among the people,
A63: Deu2:17 | B63: That the LORD spake unto me, saying,
A64: Deu2:18 | B64: Thou art to pass over through Ar, the coast of Moab, this day:
A65: Deu2:19 | B65: And when thou comest nigh over against the children of Ammon, distress them not, nor meddle with them: for I will not give thee of the land of the children of Ammon any possession; because I have given it unto the children of Lot for a possession.
A66: Deu2:20 | B66: (That also was accounted a land of giants: giants dwelt therein in old time; and the Ammonites call them Zamzummims;
A67: Deu2:21 | B67: A people great, and many, and tall, as the Anakims; but the LORD destroyed them before them; and they succeeded them, and dwelt in their stead:
A68: Deu2:22 | B68: As he did to the children of Esau, which dwelt in Seir, when he destroyed the Horims from before them; and they succeeded them, and dwelt in their stead even unto this day:
A69: Deu2:23 | B69: And the Avims which dwelt in Hazerim, even unto Azzah, the Caphtorims, which came forth out of Caphtor, destroyed them, and dwelt in their stead.)
A70: Deu2:24 | B70: Rise ye up, take your journey, and pass over the river Arnon: behold, I have given into thine hand Sihon the Amorite, king of Heshbon, and his land: begin to possess it, and contend with him in battle.
A71: Deu2:25 | B71: This day will I begin to put the dread of thee and the fear of thee upon the nations that are under the whole heaven, who shall hear report of thee, and shall tremble, and be in anguish because of thee.
A72: Deu2:26 | B72: And I sent messengers out of the wilderness of Kedemoth unto Sihon king of Heshbon with words of peace, saying,
A73: Deu2:27 | B73: Let me pass through thy land: I will go along by the high way, I will neither turn unto the right hand nor to the left.
A74: Deu2:28 | B74: Thou shalt sell me meat for money, that I may eat; and give me water for money, that I may drink: only I will pass through on my feet;
A75: Deu2:29 | B75: (As the children of Esau which dwell in Seir, and the Moabites which dwell in Ar, did unto me;) until I shall pass over Jordan into the land which the LORD our God giveth us.
A76: Deu2:30 | B76: But Sihon king of Heshbon would not let us pass by him: for the LORD thy God hardened his spirit, and made his heart obstinate, that he might deliver him into thy hand, as appeareth this day.
A77: Deu2:31 | B77: And the LORD said unto me, Behold, I have begun to give Sihon and his land before thee: begin to possess, that thou mayest inherit his land.
A78: Deu2:32 | B78: Then Sihon came out against us, he and all his people, to fight at Jahaz.
A79: Deu2:33 | B79: And the LORD our God delivered him before us; and we smote him, and his sons, and all his people.
A80: Deu2:34 | B80: And we took all his cities at that time, and utterly destroyed the men, and the women, and the little ones, of every city, we left none to remain:
A81: Deu2:35 | B81: Only the cattle we took for a prey unto ourselves, and the spoil of the cities which we took.
A82: Deu2:36 | B82: From Aroer, which is by the brink of the river of Arnon, and from the city that is by the river, even unto Gilead, there was not one city too strong for us: the LORD our God delivered all unto us:
A83: Deu2:37 | B83: Only unto the land of the children of Ammon thou camest not, nor unto any place of the river Jabbok, nor unto the cities in the mountains, nor unto whatsoever the LORD our God forbad us.
A84: Deu3:1 | B84: Then we turned, and went up the way to Bashan: and Og the king of Bashan came out against us, he and all his people, to battle at Edrei.
A85: Deu3:2 | B85: And the LORD said unto me, Fear him not: for I will deliver him, and all his people, and his land, into thy hand; and thou shalt do unto him as thou didst unto Sihon king of the Amorites, which dwelt at Heshbon.
A86: Deu3:3 | B86: So the LORD our God delivered into our hands Og also, the king of Bashan, and all his people: and we smote him until none was left to him remaining.
A87: Deu3:4 | B87: And we took all his cities at that time, there was not a city which we took not from them, threescore cities, all the region of Argob, the kingdom of Og in Bashan.
A88: Deu3:5 | B88: All these cities were fenced with high walls, gates, and bars; beside unwalled towns a great many.
A89: Deu3:6 | B89: And we utterly destroyed them, as we did unto Sihon king of Heshbon, utterly destroying the men, women, and children, of every city.
A90: Deu3:7 | B90: But all the cattle, and the spoil of the cities, we took for a prey to ourselves.
A91: Deu3:8 | B91: And we took at that time out of the hand of the two kings of the Amorites the land that was on this side Jordan, from the river of Arnon unto mount Hermon;
A92: Deu3:9 | B92: (Which Hermon the Sidonians call Sirion; and the Amorites call it Shenir;)
A93: Deu3:10 | B93: All the cities of the plain, and all Gilead, and all Bashan, unto Salchah and Edrei, cities of the kingdom of Og in Bashan.
A94: Deu3:11 | B94: For only Og king of Bashan remained of the remnant of giants; behold, his bedstead was a bedstead of iron; is it not in Rabbath of the children of Ammon? nine cubits was the length thereof, and four cubits the breadth of it, after the cubit of a man.
A95: Deu3:12 | B95: And this land, which we possessed at that time, from Aroer, which is by the river Arnon, and half mount Gilead, and the cities thereof, gave I unto the Reubenites and to the Gadites.
A96: Deu3:13 | B96: And the rest of Gilead, and all Bashan, being the kingdom of Og, gave I unto the half tribe of Manasseh; all the region of Argob, with all Bashan, which was called the land of giants.
A97: Deu3:14 | B97: Jair the son of Manasseh took all the country of Argob unto the coasts of Geshuri and Maachathi; and called them after his own name, Bashanhavothjair, unto this day.
A98: Deu3:15 | B98: And I gave Gilead unto Machir.
A99: Deu3:16 | B99: And unto the Reubenites and unto the Gadites I gave from Gilead even unto the river Arnon half the valley, and the border even unto the river Jabbok, which is the border of the children of Ammon;
A100: Deu3:17 | B100: The plain also, and Jordan, and the coast thereof, from Chinnereth even unto the sea of the plain, even the salt sea, under Ashdothpisgah eastward.
A101: Deu3:18 | B101: And I commanded you at that time, saying, The LORD your God hath given you this land to possess it: ye shall pass over armed before your brethren the children of Israel, all that are meet for the war.
A102: Deu3:19 | B102: But your wives, and your little ones, and your cattle, (for I know that ye have much cattle,) shall abide in your cities which I have given you;
A103: Deu3:20 | B103: Until the LORD have given rest unto your brethren, as well as unto you, and until they also possess the land which the LORD your God hath given them beyond Jordan: and then shall ye return every man unto his possession, which I have given you.
A104: Deu3:21 | B104: And I commanded Joshua at that time, saying, Thine eyes have seen all that the LORD your God hath done unto these two kings: so shall the LORD do unto all the kingdoms whither thou passest.
A105: Deu3:22 | B105: Ye shall not fear them: for the LORD your God he shall fight for you.
A106: Deu3:23 | B106: And I besought the LORD at that time, saying,
A107: Deu3:24 | B107: O Lord GOD, thou hast begun to shew thy servant thy greatness, and thy mighty hand: for what God is there in heaven or in earth, that can do according to thy works, and according to thy might?
A108: Deu3:25 | B108: I pray thee, let me go over, and see the good land that is beyond Jordan, that goodly mountain, and Lebanon.
A109: Deu3:26 | B109: But the LORD was wroth with me for your sakes, and would not hear me: and the LORD said unto me, Let it suffice thee; speak no more unto me of this matter.
A110: Deu3:27 | B110: Get thee up into the top of Pisgah, and lift up thine eyes westward, and northward, and southward, and eastward, and behold it with thine eyes: for thou shalt not go over this Jordan.
A111: Deu3:28 | B111: But charge Joshua, and encourage him, and strengthen him: for he shall go over before this people, and he shall cause them to inherit the land which thou shalt see.
A112: Deu3:29 | B112: So we abode in the valley over against Bethpeor.
A113: Deu4:1 | B113: Now therefore hearken, O Israel, unto the statutes and unto the judgments, which I teach you, for to do them, that ye may live, and go in and possess the land which the LORD God of your fathers giveth you.
A114: Deu4:2 | B114: Ye shall not add unto the word which I command you, neither shall ye diminish ought from it, that ye may keep the commandments of the LORD your God which I command you.
A115: Deu4:3 | B115: Your eyes have seen what the LORD did because of Baalpeor: for all the men that followed Baalpeor, the LORD thy God hath destroyed them from among you.
A116: Deu4:4 | B116: But ye that did cleave unto the LORD your God are alive every one of you this day.
A117: Deu4:5 | B117: Behold, I have taught you statutes and judgments, even as the LORD my God commanded me, that ye should do so in the land whither ye go to possess it.
A118: Deu4:6 | B118: Keep therefore and do them; for this is your wisdom and your understanding in the sight of the nations, which shall hear all these statutes, and say, Surely this great nation is a wise and understanding people.
A119: Deu4:7 | B119: For what nation is there so great, who hath God so nigh unto them, as the LORD our God is in all things that we call upon him for?
A120: Deu4:8 | B120: And what nation is there so great, that hath statutes and judgments so righteous as all this law, which I set before you this day?
A121: Deu4:9 | B121: Only take heed to thyself, and keep thy soul diligently, lest thou forget the things which thine eyes have seen, and lest they depart from thy heart all the days of thy life: but teach them thy sons, and thy sons' sons;
A122: Deu4:10 | B122: Specially the day that thou stoodest before the LORD thy God in Horeb, when the LORD said unto me, Gather me the people together, and I will make them hear my words, that they may learn to fear me all the days that they shall live upon the earth, and that they may teach their children.
A123: Deu4:11 | B123: And ye came near and stood under the mountain; and the mountain burned with fire unto the midst of heaven, with darkness, clouds, and thick darkness.
A124: Deu4:12 | B124: And the LORD spake unto you out of the midst of the fire: ye heard the voice of the words, but saw no similitude; only ye heard a voice.
A125: Deu4:13 | B125: And he declared unto you his covenant, which he commanded you to perform, even ten commandments; and he wrote them upon two tables of stone.
A126: Deu4:14 | B126: And the LORD commanded me at that time to teach you statutes and judgments, that ye might do them in the land whither ye go over to possess it.
A127: Deu4:15 | B127: Take ye therefore good heed unto yourselves; for ye saw no manner of similitude on the day that the LORD spake unto you in Horeb out of the midst of the fire:
A128: Deu4:16 | B128: Lest ye corrupt yourselves, and make you a graven image, the similitude of any figure, the likeness of male or female,
A129: Deu4:17 | B129: The likeness of any beast that is on the earth, the likeness of any winged fowl that flieth in the air,
A130: Deu4:18 | B130: The likeness of any thing that creepeth on the ground, the likeness of any fish that is in the waters beneath the earth:
A131: Deu4:19 | B131: And lest thou lift up thine eyes unto heaven, and when thou seest the sun, and the moon, and the stars, even all the host of heaven, shouldest be driven to worship them, and serve them, which the LORD thy God hath divided unto all nations under the whole heaven.
A132: Deu4:20 | B132: But the LORD hath taken you, and brought you forth out of the iron furnace, even out of Egypt, to be unto him a people of inheritance, as ye are this day.
A133: Deu4:21 | B133: Furthermore the LORD was angry with me for your sakes, and sware that I should not go over Jordan, and that I should not go in unto that good land, which the LORD thy God giveth thee for an inheritance:
A134: Deu4:22 | B134: But I must die in this land, I must not go over Jordan: but ye shall go over, and possess that good land.
A135: Deu4:23 | B135: Take heed unto yourselves, lest ye forget the covenant of the LORD your God, which he made with you, and make you a graven image, or the likeness of any thing, which the LORD thy God hath forbidden thee.
A136: Deu4:24 | B136: For the LORD thy God is a consuming fire, even a jealous God.
A137: Deu4:25 | B137: When thou shalt beget children, and children's children, and ye shall have remained long in the land, and shall corrupt yourselves, and make a graven image, or the likeness of any thing, and shall do evil in the sight of the LORD thy God, to provoke him to anger:
A138: Deu4:26 | B138: I call heaven and earth to witness against you this day, that ye shall soon utterly perish from off the land whereunto ye go over Jordan to possess it; ye shall not prolong your days upon it, but shall utterly be destroyed.
A139: Deu4:27 | B139: And the LORD shall scatter you among the nations, and ye shall be left few in number among the heathen, whither the LORD shall lead you.
A140: Deu4:28 | B140: And there ye shall serve gods, the work of men's hands, wood and stone, which neither see, nor hear, nor eat, nor smell.
A141: Deu4:29 | B141: But if from thence thou shalt seek the LORD thy God, thou shalt find him, if thou seek him with all thy heart and with all thy soul.
A142: Deu4:30 | B142: When thou art in tribulation, and all these things are come upon thee, even in the latter days, if thou turn to the LORD thy God, and shalt be obedient unto his voice;
A143: Deu4:31 | B143: (For the LORD thy God is a merciful God;) he will not forsake thee, neither destroy thee, nor forget the covenant of thy fathers which he sware unto them.
A144: Deu4:32 | B144: For ask now of the days that are past, which were before thee, since the day that God created man upon the earth, and ask from the one side of heaven unto the other, whether there hath been any such thing as this great thing is, or hath been heard like it?
A145: Deu4:33 | B145: Did ever people hear the voice of God speaking out of the midst of the fire, as thou hast heard, and live?
A146: Deu4:34 | B146: Or hath God assayed to go and take him a nation from the midst of another nation, by temptations, by signs, and by wonders, and by war, and by a mighty hand, and by a stretched out arm, and by great terrors, according to all that the LORD your God did for you in Egypt before your eyes?
A147: Deu4:35 | B147: Unto thee it was shewed, that thou mightest know that the LORD he is God; there is none else beside him.
A148: Deu4:36 | B148: Out of heaven he made thee to hear his voice, that he might instruct thee: and upon earth he shewed thee his great fire; and thou heardest his words out of the midst of the fire.
A149: Deu4:37 | B149: And because he loved thy fathers, therefore he chose their seed after them, and brought thee out in his sight with his mighty power out of Egypt;
A150: Deu4:38 | B150: To drive out nations from before thee greater and mightier than thou art, to bring thee in, to give thee their land for an inheritance, as it is this day.
A151: Deu4:39 | B151: Know therefore this day, and consider it in thine heart, that the LORD he is God in heaven above, and upon the earth beneath: there is none else.
A152: Deu4:40 | B152: Thou shalt keep therefore his statutes, and his commandments, which I command thee this day, that it may go well with thee, and with thy children after thee, and that thou mayest prolong thy days upon the earth, which the LORD thy God giveth thee, for ever.
A153: Deu4:41 | B153: Then Moses severed three cities on this side Jordan toward the sunrising;
A154: Deu4:42 | B154: That the slayer might flee thither, which should kill his neighbour unawares, and hated him not in times past; and that fleeing unto one of these cities he might live:
A155: Deu4:43 | B155: Namely, Bezer in the wilderness, in the plain country, of the Reubenites; and Ramoth in Gilead, of the Gadites; and Golan in Bashan, of the Manassites.
A156: Deu4:44 | B156: And this is the law which Moses set before the children of Israel:
A157: Deu4:45 | B157: These are the testimonies, and the statutes, and the judgments, which Moses spake unto the children of Israel, after they came forth out of Egypt,
A158: Deu4:46 | B158: On this side Jordan, in the valley over against Bethpeor, in the land of Sihon king of the Amorites, who dwelt at Heshbon, whom Moses and the children of Israel smote, after they were come forth out of Egypt:
A159: Deu4:47 | B159: And they possessed his land, and the land of Og king of Bashan, two kings of the Amorites, which were on this side Jordan toward the sunrising;
A160: Deu4:48 | B160: From Aroer, which is by the bank of the river Arnon, even unto mount Sion, which is Hermon,
A161: Deu4:49 | B161: And all the plain on this side Jordan eastward, even unto the sea of the plain, under the springs of Pisgah.
A162: Deu5:1 | B162: And Moses called all Israel, and said unto them, Hear, O Israel, the statutes and judgments which I speak in your ears this day, that ye may learn them, and keep, and do them.
A163: Deu5:2 | B163: The LORD our God made a covenant with us in Horeb.
A164: Deu5:3 | B164: The LORD made not this covenant with our fathers, but with us, even us, who are all of us here alive this day.
A165: Deu5:4 | B165: The LORD talked with you face to face in the mount out of the midst of the fire,
A166: Deu5:5 | B166: (I stood between the LORD and you at that time, to shew you the word of the LORD: for ye were afraid by reason of the fire, and went not up into the mount;) saying,
A167: Deu5:6 | B167: I am the LORD thy God, which brought thee out of the land of Egypt, from the house of bondage.
A168: Deu5:7 | B168: Thou shalt have none other gods before me.
A169: Deu5:8 | B169: Thou shalt not make thee any graven image, or any likeness of any thing that is in heaven above, or that is in the earth beneath, or that is in the waters beneath the earth:
A170: Deu5:9 | B170: Thou shalt not bow down thyself unto them, nor serve them: for I the LORD thy God am a jealous God, visiting the iniquity of the fathers upon the children unto the third and fourth generation of them that hate me,
A171: Deu5:10 | B171: And shewing mercy unto thousands of them that love me and keep my commandments.
A172: Deu5:11 | B172: Thou shalt not take the name of the LORD thy God in vain: for the LORD will not hold him guiltless that taketh his name in vain.
A173: Deu5:12 | B173: Keep the sabbath day to sanctify it, as the LORD thy God hath commanded thee.
A174: Deu5:13 | B174: Six days thou shalt labour, and do all thy work:
A175: Deu5:14 | B175: But the seventh day is the sabbath of the LORD thy God: in it thou shalt not do any work, thou, nor thy son, nor thy daughter, nor thy manservant, nor thy maidservant, nor thine ox, nor thine ass, nor any of thy cattle, nor thy stranger that is within thy gates; that thy manservant and thy maidservant may rest as well as thou.
A176: Deu5:15 | B176: And remember that thou wast a servant in the land of Egypt, and that the LORD thy God brought thee out thence through a mighty hand and by a stretched out arm: therefore the LORD thy God commanded thee to keep the sabbath day.
A177: Deu5:16 | B177: Honour thy father and thy mother, as the LORD thy God hath commanded thee; that thy days may be prolonged, and that it may go well with thee, in the land which the LORD thy God giveth thee.
A178: Deu5:17 | B178: Thou shalt not kill.
A179: Deu5:18 | B179: Neither shalt thou commit adultery.
A180: Deu5:19 | B180: Neither shalt thou steal.
A181: Deu5:20 | B181: Neither shalt thou bear false witness against thy neighbour.
A182: Deu5:21 | B182: Neither shalt thou desire thy neighbour's wife, neither shalt thou covet thy neighbour's house, his field, or his manservant, or his maidservant, his ox, or his ass, or any thing that is thy neighbour's.
A183: Deu5:22 | B183: These words the LORD spake unto all your assembly in the mount out of the midst of the fire, of the cloud, and of the thick darkness, with a great voice: and he added no more. And he wrote them in two tables of stone, and delivered them unto me.
A184: Deu5:23 | B184: And it came to pass, when ye heard the voice out of the midst of the darkness, (for the mountain did burn with fire,) that ye came near unto me, even all the heads of your tribes, and your elders;
A185: Deu5:24 | B185: And ye said, Behold, the LORD our God hath shewed us his glory and his greatness, and we have heard his voice out of the midst of the fire: we have seen this day that God doth talk with man, and he liveth.
A186: Deu5:25 | B186: Now therefore why should we die? for this great fire will consume us: if we hear the voice of the LORD our God any more, then we shall die.
A187: Deu5:26 | B187: For who is there of all flesh, that hath heard the voice of the living God speaking out of the midst of the fire, as we have, and lived?
A188: Deu5:27 | B188: Go thou near, and hear all that the LORD our God shall say: and speak thou unto us all that the LORD our God shall speak unto thee; and we will hear it, and do it.
A189: Deu5:28 | B189: And the LORD heard the voice of your words, when ye spake unto me; and the LORD said unto me, I have heard the voice of the words of this people, which they have spoken unto thee: they have well said all that they have spoken.
A190: Deu5:29 | B190: O that there were such an heart in them, that they would fear me, and keep all my commandments always, that it might be well with them, and with their children for ever!
A191: Deu5:30 | B191: Go say to them, Get you into your tents again.
A192: Deu5:31 | B192: But as for thee, stand thou here by me, and I will speak unto thee all the commandments, and the statutes, and the judgments, which thou shalt teach them, that they may do them in the land which I give them to possess it.
A193: Deu5:32 | B193: Ye shall observe to do therefore as the LORD your God hath commanded you: ye shall not turn aside to the right hand or to the left.
A194: Deu5:33 | B194: Ye shall walk in all the ways which the LORD your God hath commanded you, that ye may live, and that it may be well with you, and that ye may prolong your days in the land which ye shall possess.
A195: Deu6:1 | B195: Now these are the commandments, the statutes, and the judgments, which the LORD your God commanded to teach you, that ye might do them in the land whither ye go to possess it:
A196: Deu6:2 | B196: That thou mightest fear the LORD thy God, to keep all his statutes and his commandments, which I command thee, thou, and thy son, and thy son's son, all the days of thy life; and that thy days may be prolonged.
A197: Deu6:3 | B197: Hear therefore, O Israel, and observe to do it; that it may be well with thee, and that ye may increase mightily, as the LORD God of thy fathers hath promised thee, in the land that floweth with milk and honey.
A198: Deu6:4 | B198: Hear, O Israel: The LORD our God is one LORD:
A199: Deu6:5 | B199: And thou shalt love the LORD thy God with all thine heart, and with all thy soul, and with all thy might.
A200: Deu6:6 | B200: And these words, which I command thee this day, shall be in thine heart:
... 759 more rows

Sheet Joshua
A1: Josh1:1 | B1: Now after the death of Moses the servant of the LORD it came to pass, that the LORD spake unto Joshua the son of Nun, Moses' minister, saying,
A2: Josh1:2 | B2: Moses my servant is dead; now therefore arise, go over this Jordan, thou, and all this people, unto the land which I do give to them, even to the children of Israel.
A3: Josh1:3 | B3: Every place that the sole of your foot shall tread upon, that have I given unto you, as I said unto Moses.
A4: Josh1:4 | B4: From the wilderness and this Lebanon even unto the great river, the river Euphrates, all the land of the Hittites, and unto the great sea toward the going down of the sun, shall be your coast.
A5: Josh1:5 | B5: There shall not any man be able to stand before thee all the days of thy life: as I was with Moses, so I will be with thee: I will not fail thee, nor forsake thee.
A6: Josh1:6 | B6: Be strong and of a good courage: for unto this people shalt thou divide for an inheritance the land, which I sware unto their fathers to give them.
A7: Josh1:7 | B7: Only be thou strong and very courageous, that thou mayest observe to do according to all the law, which Moses my servant commanded thee: turn not from it to the right hand or to the left, that thou mayest prosper whithersoever thou goest.
A8: Josh1:8 | B8: This book of the law shall not depart out of thy mouth; but thou shalt meditate therein day and night, that thou mayest observe to do according to all that is written therein: for then thou shalt make thy way prosperous, and then thou shalt have good success.
A9: Josh1:9 | B9: Have not I commanded thee? Be strong and of a good courage; be not afraid, neither be thou dismayed: for the LORD thy God is with thee whithersoever thou goest.
A10: Josh1:10 | B10: Then Joshua commanded the officers of the people, saying,
A11: Josh1:11 | B11: Pass through the host, and command the people, saying, Prepare you victuals; for within three days ye shall pass over this Jordan, to go in to possess the land, which the LORD your God giveth you to possess it.
A12: Josh1:12 | B12: And to the Reubenites, and to the Gadites, and to half the tribe of Manasseh, spake Joshua, saying,
A13: Josh1:13 | B13: Remember the word which Moses the servant of the LORD commanded you, saying, The LORD your God hath given you rest, and hath given you this land.
A14: Josh1:14 | B14: Your wives, your little ones, and your cattle, shall remain in the land which Moses gave you on this side Jordan; but ye shall pass before your brethren armed, all the mighty men of valour, and help them;
A15: Josh1:15 | B15: Until the LORD have given your brethren rest, as he hath given you, and they also have possessed the land which the LORD your God giveth them: then ye shall return unto the land of your possession, and enjoy it, which Moses the LORD's servant gave you on this side Jordan toward the sunrising.
A16: Josh1:16 | B16: And they answered Joshua, saying, All that thou commandest us we will do, and whithersoever thou sendest us, we will go.
A17: Josh1:17 | B17: According as we hearkened unto Moses in all things, so will we hearken unto thee: only the LORD thy God be with thee, as he was with Moses.
A18: Josh1:18 | B18: Whosoever he be that doth rebel against thy commandment, and will not hearken unto thy words in all that thou commandest him, he shall be put to death: only be strong and of a good courage.
A19: Josh2:1 | B19: And Joshua the son of Nun sent out of Shittim two men to spy secretly, saying, Go view the land, even Jericho. And they went, and came into an harlot's house, named Rahab, and lodged there.
A20: Josh2:2 | B20: And it was told the king of Jericho, saying, Behold, there came men in hither to night of the children of Israel to search out the country.
A21: Josh2:3 | B21: And the king of Jericho sent unto Rahab, saying, Bring forth the men that are come to thee, which are entered into thine house: for they be come to search out all the country.
A22: Josh2:4 | B22: And the woman took the two men, and hid them, and said thus, There came men unto me, but I wist not whence they were:
A23: Josh2:5 | B23: And it came to pass about the time of shutting of the gate, when it was dark, that the men went out: whither the men went I wot not: pursue after them quickly; for ye shall overtake them.
A24: Josh2:6 | B24: But she had brought them up to the roof of the house, and hid them with the stalks of flax, which she had laid in order upon the roof.
A25: Josh2:7 | B25: And the men pursued after them the way to Jordan unto the fords: and as soon as they which pursued after them were gone out, they shut the gate.
A26: Josh2:8 | B26: And before they were laid down, she came up unto them upon the roof;
A27: Josh2:9 | B27: And she said unto the men, I know that the LORD hath given you the land, and that your terror is fallen upon us, and that all the inhabitants of the land faint because of you.
A28: Josh2:10 | B28: For we have heard how the LORD dried up the water of the Red sea for you, when ye came out of Egypt; and what ye did unto the two kings of the Amorites, that were on the other side Jordan, Sihon and Og, whom ye utterly destroyed.
A29: Josh2:11 | B29: And as soon as we had heard these things, our hearts did melt, neither did there remain any more courage in any man, because of you: for the LORD your God, he is God in heaven above, and in earth beneath.
A30: Josh2:12 | B30: Now therefore, I pray you, swear unto me by the LORD, since I have shewed you kindness, that ye will also shew kindness unto my father's house, and give me a true token:
A31: Josh2:13 | B31: And that ye will save alive my father, and my mother, and my brethren, and my sisters, and all that they have, and deliver our lives from death.
A32: Josh2:14 | B32: And the men answered her, Our life for yours, if ye utter not this our business. And it shall be, when the LORD hath given us the land, that we will deal kindly and truly with thee.
A33: Josh2:15 | B33: Then she let them down by a cord through the window: for her house was upon the town wall, and she dwelt upon the wall.
A34: Josh2:16 | B34: And she said unto them, Get you to the mountain, lest the pursuers meet you; and hide yourselves there three days, until the pursuers be returned: and afterward may ye go your way.
A35: Josh2:17 | B35: And the men said unto her, We will be blameless of this thine oath which thou hast made us swear.
A36: Josh2:18 | B36: Behold, when we come into the land, thou shalt bind this line of scarlet thread in the window which thou didst let us down by: and thou shalt bring thy father, and thy mother, and thy brethren, and all thy father's household, home unto thee.
A37: Josh2:19 | B37: And it shall be, that whosoever shall go out of the doors of thy house into the street, his blood shall be upon his head, and we will be guiltless: and whosoever shall be with thee in the house, his blood shall be on our head, if any hand be upon him.
A38: Josh2:20 | B38: And if thou utter this our business, then we will be quit of thine oath which thou hast made us to swear.
A39: Josh2:21 | B39: And she said, According unto your words, so be it. And she sent them away, and they departed: and she bound the scarlet line in the window.
A40: Josh2:22 | B40: And they went, and came unto the mountain, and abode there three days, until the pursuers were returned: and the pursuers sought them throughout all the way, but found them not.
A41: Josh2:23 | B41: So the two men returned, and descended from the mountain, and passed over, and came to Joshua the son of Nun, and told him all things that befell them:
A42: Josh2:24 | B42: And they said unto Joshua, Truly the LORD hath delivered into our hands all the land; for even all the inhabitants of the country do faint because of us.
A43: Josh3:1 | B43: And Joshua rose early in the morning; and they removed from Shittim, and came to Jordan, he and all the children of Israel, and lodged there before they passed over.
A44: Josh3:2 | B44: And it came to pass after three days, that the officers went through the host;
A45: Josh3:3 | B45: And they commanded the people, saying, When ye see the ark of the covenant of the LORD your God, and the priests the Levites bearing it, then ye shall remove from your place, and go after it.
A46: Josh3:4 | B46: Yet there shall be a space between you and it, about two thousand cubits by measure: come not near unto it, that ye may know the way by which ye must go: for ye have not passed this way heretofore.
A47: Josh3:5 | B47: And Joshua said unto the people, Sanctify yourselves: for to morrow the LORD will do wonders among you.
A48: Josh3:6 | B48: And Joshua spake unto the priests, saying, Take up the ark of the covenant, and pass over before the people. And they took up the ark of the covenant, and went before the people.
A49: Josh3:7 | B49: And the LORD said unto Joshua, This day will I begin to magnify thee in the sight of all Israel, that they may know that, as I was with Moses, so I will be with thee.
A50: Josh3:8 | B50: And thou shalt command the priests that bear the ark of the covenant, saying, When ye are come to the brink of the water of Jordan, ye shall stand still in Jordan.
A51: Josh3:9 | B51: And Joshua said unto the children of Israel, Come hither, and hear the words of the LORD your God.
A52: Josh3:10 | B52: And Joshua said, Hereby ye shall know that the living God is among you, and that he will without fail drive out from before you the Canaanites, and the Hittites, and the Hivites, and the Perizzites, and the Girgashites, and the Amorites, and the Jebusites.
A53: Josh3:11 | B53: Behold, the ark of the covenant of the LORD of all the earth passeth over before you into Jordan.
A54: Josh3:12 | B54: Now therefore take you twelve men out of the tribes of Israel, out of every tribe a man.
A55: Josh3:13 | B55: And it shall come to pass, as soon as the soles of the feet of the priests that bear the ark of the LORD, the LORD of all the earth, shall rest in the waters of Jordan, that the waters of Jordan shall be cut off from the waters that come down from above; and they shall stand upon an heap.
A56: Josh3:14 | B56: And it came to pass, when the people removed from their tents, to pass over Jordan, and the priests bearing the ark of the covenant before the people;
A57: Josh3:15 | B57: And as they that bare the ark were come unto Jordan, and the feet of the priests that bare the ark were dipped in the brim of the water, (for Jordan overfloweth all his banks all the time of harvest,)
A58: Josh3:16 | B58: That the waters which came down from above stood and rose up upon an heap very far from the city Adam, that is beside Zaretan: and those that came down toward the sea of the plain, even the salt sea, failed, and were cut off: and the people passed over right against Jericho.
A59: Josh3:17 | B59: And the priests that bare the ark of the covenant of the LORD stood firm on dry ground in the midst of Jordan, and all the Israelites passed over on dry ground, until all the people were passed clean over Jordan.
A60: Josh4:1 | B60: And it came to pass, when all the people were clean passed over Jordan, that the LORD spake unto Joshua, saying,
A61: Josh4:2 | B61: Take you twelve men out of the people, out of every tribe a man,
A62: Josh4:3 | B62: And command ye them, saying, Take you hence out of the midst of Jordan, out of the place where the priests' feet stood firm, twelve stones, and ye shall carry them over with you, and leave them in the lodging place, where ye shall lodge this night.
A63: Josh4:4 | B63: Then Joshua called the twelve men, whom he had prepared of the children of Israel, out of every tribe a man:
A64: Josh4:5 | B64: And Joshua said unto them, Pass over before the ark of the LORD your God into the midst of Jordan, and take you up every man of you a stone upon his shoulder, according unto the number of the tribes of the children of Israel:
A65: Josh4:6 | B65: That this may be a sign among you, that when your children ask their fathers in time to come, saying, What mean ye by these stones?
A66: Josh4:7 | B66: Then ye shall answer them, That the waters of Jordan were cut off before the ark of the covenant of the LORD; when it passed over Jordan, the waters of Jordan were cut off: and these stones shall be for a memorial unto the children of Israel for ever.
A67: Josh4:8 | B67: And the children of Israel did so as Joshua commanded, and took up twelve stones out of the midst of Jordan, as the LORD spake unto Joshua, according to the number of the tribes of the children of Israel, and carried them over with them unto the place where they lodged, and laid them down there.
A68: Josh4:9 | B68: And Joshua set up twelve stones in the midst of Jordan, in the place where the feet of the priests which bare the ark of the covenant stood: and they are there unto this day.
A69: Josh4:10 | B69: For the priests which bare the ark stood in the midst of Jordan, until everything was finished that the LORD commanded Joshua to speak unto the people, according to all that Moses commanded Joshua: and the people hasted and passed over.
A70: Josh4:11 | B70: And it came to pass, when all the people were clean passed over, that the ark of the LORD passed over, and the priests, in the presence of the people.
A71: Josh4:12 | B71: And the children of Reuben, and the children of Gad, and half the tribe of Manasseh, passed over armed before the children of Israel, as Moses spake unto them:
A72: Josh4:13 | B72: About forty thousand prepared for war passed over before the LORD unto battle, to the plains of Jericho.
A73: Josh4:14 | B73: On that day the LORD magnified Joshua in the sight of all Israel; and they feared him, as they feared Moses, all the days of his life.
A74: Josh4:15 | B74: And the LORD spake unto Joshua, saying,
A75: Josh4:16 | B75: Command the priests that bear the ark of the testimony, that they come up out of Jordan.
A76: Josh4:17 | B76: Joshua therefore commanded the priests, saying, Come ye up out of Jordan.
A77: Josh4:18 | B77: And it came to pass, when the priests that bare the ark of the covenant of the LORD were come up out of the midst of Jordan, and the soles of the priests' feet were lifted up unto the dry land, that the waters of Jordan returned unto their place, and flowed over all his banks, as they did before.
A78: Josh4:19 | B78: And the people came up out of Jordan on the tenth day of the first month, and encamped in Gilgal, in the east border of Jericho.
A79: Josh4:20 | B79: And those twelve stones, which they took out of Jordan, did Joshua pitch in Gilgal.
A80: Josh4:21 | B80: And he spake unto the children of Israel, saying, When your children shall ask their fathers in time to come, saying, What mean these stones?
A81: Josh4:22 | B81: Then ye shall let your children know, saying, Israel came over this Jordan on dry land.
A82: Josh4:23 | B82: For the LORD your God dried up the waters of Jordan from before you, until ye were passed over, as the LORD your God did to the Red sea, which he dried up from before us, until we were gone over:
A83: Josh4:24 | B83: That all the people of the earth might know the hand of the LORD, that it is mighty: that ye might fear the LORD your God for ever.
A84: Josh5:1 | B84: And it came to pass, when all the kings of the Amorites, which were on the side of Jordan westward, and all the kings of the Canaanites, which were by the sea, heard that the LORD had dried up the waters of Jordan from before the children of Israel, until we were passed over, that their heart melted, neither was there spirit in them any more, because of the children of Israel.
A85: Josh5:2 | B85: At that time the LORD said unto Joshua, Make thee sharp knives, and circumcise again the children of Israel the second time.
A86: Josh5:3 | B86: And Joshua made him sharp knives, and circumcised the children of Israel at the hill of the foreskins.
A87: Josh5:4 | B87: And this is the cause why Joshua did circumcise: All the people that came out of Egypt, that were males, even all the men of war, died in the wilderness by the way, after they came out of Egypt.
A88: Josh5:5 | B88: Now all the people that came out were circumcised: but all the people that were born in the wilderness by the way as they came forth out of Egypt, them they had not circumcised.
A89: Josh5:6 | B89: For the children of Israel walked forty years in the wilderness, till all the people that were men of war, which came out of Egypt, were consumed, because they obeyed not the voice of the LORD: unto whom the LORD sware that he would not shew them the land, which the LORD sware unto their fathers that he would give us, a land that floweth with milk and honey.
A90: Josh5:7 | B90: And their children, whom he raised up in their stead, them Joshua circumcised: for they were uncircumcised, because they had not circumcised them by the way.
A91: Josh5:8 | B91: And it came to pass, when they had done circumcising all the people, that they abode in their places in the camp, till they were whole.
A92: Josh5:9 | B92: And the LORD said unto Joshua, This day have I rolled away the reproach of Egypt from off you. Wherefore the name of the place is called Gilgal unto this day.
A93: Josh5:10 | B93: And the children of Israel encamped in Gilgal, and kept the passover on the fourteenth day of the month at even in the plains of Jericho.
A94: Josh5:11 | B94: And they did eat of the old corn of the land on the morrow after the passover, unleavened cakes, and parched corn in the selfsame day.
A95: Josh5:12 | B95: And the manna ceased on the morrow after they had eaten of the old corn of the land; neither had the children of Israel manna any more; but they did eat of the fruit of the land of Canaan that year.
A96: Josh5:13 | B96: And it came to pass, when Joshua was by Jericho, that he lifted up his eyes and looked, and, behold, there stood a man over against him with his sword drawn in his hand: and Joshua went unto him, and said unto him, Art thou for us, or for our adversaries?
A97: Josh5:14 | B97: And he said, Nay; but as captain of the host of the LORD am I now come. And Joshua fell on his face to the earth, and did worship, and said unto him, What saith my lord unto his servant?
A98: Josh5:15 | B98: And the captain of the LORD's host said unto Joshua, Loose thy shoe from off thy foot; for the place whereon thou standest is holy. And Joshua did so.
A99: Josh6:1 | B99: Now Jericho was straitly shut up because of the children of Israel: none went out, and none came in.
A100: Josh6:2 | B100: And the LORD said unto Joshua, See, I have given into thine hand Jericho, and the king thereof, and the mighty men of valour.
A101: Josh6:3 | B101: And ye shall compass the city, all ye men of war, and go round about the city once. Thus shalt thou do six days.
A102: Josh6:4 | B102: And seven priests shall bear before the ark seven trumpets of rams' horns: and the seventh day ye shall compass the city seven times, and the priests shall blow with the trumpets.
A103: Josh6:5 | B103: And it shall come to pass, that when they make a long blast with the ram's horn, and when ye hear the sound of the trumpet, all the people shall shout with a great shout; and the wall of the city shall fall down flat, and the people shall ascend up every man straight before him.
A104: Josh6:6 | B104: And Joshua the son of Nun called the priests, and said unto them, Take up the ark of the covenant, and let seven priests bear seven trumpets of rams' horns before the ark of the LORD.
A105: Josh6:7 | B105: And he said unto the people, Pass on, and compass the city, and let him that is armed pass on before the ark of the LORD.
A106: Josh6:8 | B106: And it came to pass, when Joshua had spoken unto the people, that the seven priests bearing the seven trumpets of rams' horns passed on before the LORD, and blew with the trumpets: and the ark of the covenant of the LORD followed them.
A107: Josh6:9 | B107: And the armed men went before the priests that blew with the trumpets, and the rereward came after the ark, the priests going on, and blowing with the trumpets.
A108: Josh6:10 | B108: And Joshua had commanded the people, saying, Ye shall not shout, nor make any noise with your voice, neither shall any word proceed out of your mouth, until the day I bid you shout; then shall ye shout.
A109: Josh6:11 | B109: So the ark of the LORD compassed the city, going about it once: and they came into the camp, and lodged in the camp.
A110: Josh6:12 | B110: And Joshua rose early in the morning, and the priests took up the ark of the LORD.
A111: Josh6:13 | B111: And seven priests bearing seven trumpets of rams' horns before the ark of the LORD went on continually, and blew with the trumpets: and the armed men went before them; but the rereward came after the ark of the LORD, the priests going on, and blowing with the trumpets.
A112: Josh6:14 | B112: And the second day they compassed the city once, and returned into the camp: so they did six days.
A113: Josh6:15 | B113: And it came to pass on the seventh day, that they rose early about the dawning of the day, and compassed the city after the same manner seven times: only on that day they compassed the city seven times.
A114: Josh6:16 | B114: And it came to pass at the seventh time, when the priests blew with the trumpets, Joshua said unto the people, Shout; for the LORD hath given you the city.
A115: Josh6:17 | B115: And the city shall be accursed, even it, and all that are therein, to the LORD: only Rahab the harlot shall live, she and all that are with her in the house, because she hid the messengers that we sent.
A116: Josh6:18 | B116: And ye, in any wise keep yourselves from the accursed thing, lest ye make yourselves accursed, when ye take of the accursed thing, and make the camp of Israel a curse, and trouble it.
A117: Josh6:19 | B117: But all the silver, and gold, and vessels of brass and iron, are consecrated unto the LORD: they shall come into the treasury of the LORD.
A118: Josh6:20 | B118: So the people shouted when the priests blew with the trumpets: and it came to pass, when the people heard the sound of the trumpet, and the people shouted with a great shout, that the wall fell down flat, so that the people went up into the city, every man straight before him, and they took the city.
A119: Josh6:21 | B119: And they utterly destroyed all that was in the city, both man and woman, young and old, and ox, and sheep, and ass, with the edge of the sword.
A120: Josh6:22 | B120: But Joshua had said unto the two men that had spied out the country, Go into the harlot's house, and bring out thence the woman, and all that she hath, as ye sware unto her.
A121: Josh6:23 | B121: And the young men that were spies went in, and brought out Rahab, and her father, and her mother, and her brethren, and all that she had; and they brought out all her kindred, and left them without the camp of Israel.
A122: Josh6:24 | B122: And they burnt the city with fire, and all that was therein: only the silver, and the gold, and the vessels of brass and of iron, they put into the treasury of the house of the LORD.
A123: Josh6:25 | B123: And Joshua saved Rahab the harlot alive, and her father's household, and all that she had; and she dwelleth in Israel even unto this day; because she hid the messengers, which Joshua sent to spy out Jericho.
A124: Josh6:26 | B124: And Joshua adjured them at that time, saying, Cursed be the man before the LORD, that riseth up and buildeth this city Jericho: he shall lay the foundation thereof in his firstborn, and in his youngest son shall he set up the gates of it.
A125: Josh6:27 | B125: So the LORD was with Joshua; and his fame was noised throughout all the country.
A126: Josh7:1 | B126: But the children of Israel committed a trespass in the accursed thing: for Achan, the son of Carmi, the son of Zabdi, the son of Zerah, of the tribe of Judah, took of the accursed thing: and the anger of the LORD was kindled against the children of Israel.
A127: Josh7:2 | B127: And Joshua sent men from Jericho to Ai, which is beside Bethaven, on the east side of Bethel, and spake unto them, saying, Go up and view the country. And the men went up and viewed Ai.
A128: Josh7:3 | B128: And they returned to Joshua, and said unto him, Let not all the people go up; but let about two or three thousand men go up and smite Ai; and make not all the people to labour thither; for they are but few.
A129: Josh7:4 | B129: So there went up thither of the people about three thousand men: and they fled before the men of Ai.
A130: Josh7:5 | B130: And the men of Ai smote of them about thirty and six men: for they chased them from before the gate even unto Shebarim, and smote them in the going down: wherefore the hearts of the people melted, and became as water.
A131: Josh7:6 | B131: And Joshua rent his clothes, and fell to the earth upon his face before the ark of the LORD until the eventide, he and the elders of Israel, and put dust upon their heads.
A132: Josh7:7 | B132: And Joshua said, Alas, O LORD God, wherefore hast thou at all brought this people over Jordan, to deliver us into the hand of the Amorites, to destroy us? would to God we had been content, and dwelt on the other side Jordan!
A133: Josh7:8 | B133: O LORD, what shall I say, when Israel turneth their backs before their enemies!
A134: Josh7:9 | B134: For the Canaanites and all the inhabitants of the land shall hear of it, and shall environ us round, and cut off our name from the earth: and what wilt thou do unto thy great name?
A135: Josh7:10 | B135: And the LORD said unto Joshua, Get thee up; wherefore liest thou thus upon thy face?
A136: Josh7:11 | B136: Israel hath sinned, and they have also transgressed my covenant which I commanded them: for they have even taken of the accursed thing, and have also stolen, and dissembled also, and they have put it even among their own stuff.
A137: Josh7:12 | B137: Therefore the children of Israel could not stand before their enemies, but turned their backs before their enemies, because they were accursed: neither will I be with you any more, except ye destroy the accursed from among you.
A138: Josh7:13 | B138: Up, sanctify the people, and say, Sanctify yourselves against to morrow: for thus saith the LORD God of Israel, There is an accursed thing in the midst of thee, O Israel: thou canst not stand before thine enemies, until ye take away the accursed thing from among you.
A139: Josh7:14 | B139: In the morning therefore ye shall be brought according to your tribes: and it shall be, that the tribe which the LORD taketh shall come according to the families thereof; and the family which the LORD shall take shall come by households; and the household which the LORD shall take shall come man by man.
A140: Josh7:15 | B140: And it shall be, that he that is taken with the accursed thing shall be burnt with fire, he and all that he hath: because he hath transgressed the covenant of the LORD, and because he hath wrought folly in Israel.
A141: Josh7:16 | B141: So Joshua rose up early in the morning, and brought Israel by their tribes; and the tribe of Judah was taken:
A142: Josh7:17 | B142: And he brought the family of Judah; and he took the family of the Zarhites: and he brought the family of the Zarhites man by man; and Zabdi was taken:
A143: Josh7:18 | B143: And he brought his household man by man; and Achan, the son of Carmi, the son of Zabdi, the son of Zerah, of the tribe of Judah, was taken.
A144: Josh7:19 | B144: And Joshua said unto Achan, My son, give, I pray thee, glory to the LORD God of Israel, and make confession unto him; and tell me now what thou hast done; hide it not from me.
A145: Josh7:20 | B145: And Achan answered Joshua, and said, Indeed I have sinned against the LORD God of Israel, and thus and thus have I done:
A146: Josh7:21 | B146: When I saw among the spoils a goodly Babylonish garment, and two hundred shekels of silver, and a wedge of gold of fifty shekels weight, then I coveted them, and took them; and, behold, they are hid in the earth in the midst of my tent, and the silver under it.
A147: Josh7:22 | B147: So Joshua sent messengers, and they ran unto the tent; and, behold, it was hid in his tent, and the silver under it.
A148: Josh7:23 | B148: And they took them out of the midst of the tent, and brought them unto Joshua, and unto all the children of Israel, and laid them out before the LORD.
A149: Josh7:24 | B149: And Joshua, and all Israel with him, took Achan the son of Zerah, and the silver, and the garment, and the wedge of gold, and his sons, and his daughters, and his oxen, and his asses, and his sheep, and his tent, and all that he had: and they brought them unto the valley of Achor.
A150: Josh7:25 | B150: And Joshua said, Why hast thou troubled us? the LORD shall trouble thee this day. And all Israel stoned him with stones, and burned them with fire, after they had stoned them with stones.
A151: Josh7:26 | B151: And they raised over him a great heap of stones unto this day. So the LORD turned from the fierceness of his anger. Wherefore the name of that place was called, The valley of Achor, unto this day.
A152: Josh8:1 | B152: And the LORD said unto Joshua, Fear not, neither be thou dismayed: take all the people of war with thee, and arise, go up to Ai: see, I have given into thy hand the king of Ai, and his people, and his city, and his land:
A153: Josh8:2 | B153: And thou shalt do to Ai and her king as thou didst unto Jericho and her king: only the spoil thereof, and the cattle thereof, shall ye take for a prey unto yourselves: lay thee an ambush for the city behind it.
A154: Josh8:3 | B154: So Joshua arose, and all the people of war, to go up against Ai: and Joshua chose out thirty thousand mighty men of valour, and sent them away by night.
A155: Josh8:4 | B155: And he commanded them, saying, Behold, ye shall lie in wait against the city, even behind the city: go not very far from the city, but be ye all ready:
A156: Josh8:5 | B156: And I, and all the people that are with me, will approach unto the city: and it shall come to pass, when they come out against us, as at the first, that we will flee before them,
A157: Josh8:6 | B157: (For they will come out after us) till we have drawn them from the city; for they will say, They flee before us, as at the first: therefore we will flee before them.
A158: Josh8:7 | B158: Then ye shall rise up from the ambush, and seize upon the city: for the LORD your God will deliver it into your hand.
A159: Josh8:8 | B159: And it shall be, when ye have taken the city, that ye shall set the city on fire: according to the commandment of the LORD shall ye do. See, I have commanded you.
A160: Josh8:9 | B160: Joshua therefore sent them forth: and they went to lie in ambush, and abode between Bethel and Ai, on the west side of Ai: but Joshua lodged that night among the people.
A161: Josh8:10 | B161: And Joshua rose up early in the morning, and numbered the people, and went up, he and the elders of Israel, before the people to Ai.
A162: Josh8:11 | B162: And all the people, even the people of war that were with him, went up, and drew nigh, and came before the city, and pitched on the north side of Ai: now there was a valley between them and Ai.
A163: Josh8:12 | B163: And he took about five thousand men, and set them to lie in ambush between Bethel and Ai, on the west side of the city.
A164: Josh8:13 | B164: And when they had set the people, even all the host that was on the north of the city, and their liers in wait on the west of the city, Joshua went that night into the midst of the valley.
A165: Josh8:14 | B165: And it came to pass, when the king of Ai saw it, that they hasted and rose up early, and the men of the city went out against Israel to battle, he and all his people, at a time appointed, before the plain; but he wist not that there were liers in ambush against him behind the city.
A166: Josh8:15 | B166: And Joshua and all Israel made as if they were beaten before them, and fled by the way of the wilderness.
A167: Josh8:16 | B167: And all the people that were in Ai were called together to pursue after them: and they pursued after Joshua, and were drawn away from the city.
A168: Josh8:17 | B168: And there was not a man left in Ai or Bethel, that went not out after Israel: and they left the city open, and pursued after Israel.
A169: Josh8:18 | B169: And the LORD said unto Joshua, Stretch out the spear that is in thy hand toward Ai; for I will give it into thine hand. And Joshua stretched out the spear that he had in his hand toward the city.
A170: Josh8:19 | B170: And the ambush arose quickly out of their place, and they ran as soon as he had stretched out his hand: and they entered into the city, and took it, and hasted and set the city on fire.
A171: Josh8:20 | B171: And when the men of Ai looked behind them, they saw, and, behold, the smoke of the city ascended up to heaven, and they had no power to flee this way or that way: and the people that fled to the wilderness turned back upon the pursuers.
A172: Josh8:21 | B172: And when Joshua and all Israel saw that the ambush had taken the city, and that the smoke of the city ascended, then they turned again, and slew the men of Ai.
A173: Josh8:22 | B173: And the other issued out of the city against them; so they were in the midst of Israel, some on this side, and some on that side: and they smote them, so that they let none of them remain or escape.
A174: Josh8:23 | B174: And the king of Ai they took alive, and brought him to Joshua.
A175: Josh8:24 | B175: And it came to pass, when Israel had made an end of slaying all the inhabitants of Ai in the field, in the wilderness wherein they chased them, and when they were all fallen on the edge of the sword, until they were consumed, that all the Israelites returned unto Ai, and smote it with the edge of the sword.
A176: Josh8:25 | B176: And so it was, that all that fell that day, both of men and women, were twelve thousand, even all the men of Ai.
A177: Josh8:26 | B177: For Joshua drew not his hand back, wherewith he stretched out the spear, until he had utterly destroyed all the inhabitants of Ai.
A178: Josh8:27 | B178: Only the cattle and the spoil of that city Israel took for a prey unto themselves, according unto the word of the LORD which he commanded Joshua.
A179: Josh8:28 | B179: And Joshua burnt Ai, and made it an heap for ever, even a desolation unto this day.
A180: Josh8:29 | B180: And the king of Ai he hanged on a tree until eventide: and as soon as the sun was down, Joshua commanded that they should take his carcase down from the tree, and cast it at the entering of the gate of the city, and raise thereon a great heap of stones, that remaineth unto this day.
A181: Josh8:30 | B181: Then Joshua built an altar unto the LORD God of Israel in mount Ebal,
A182: Josh8:31 | B182: As Moses the servant of the LORD commanded the children of Israel, as it is written in the book of the law of Moses, an altar of whole stones, over which no man hath lift up any iron: and they offered thereon burnt offerings unto the LORD, and sacrificed peace offerings.
A183: Josh8:32 | B183: And he wrote there upon the stones a copy of the law of Moses, which he wrote in the presence of the children of Israel.
A184: Josh8:33 | B184: And all Israel, and their elders, and officers, and their judges, stood on this side the ark and on that side before the priests the Levites, which bare the ark of the covenant of the LORD, as well the stranger, as he that was born among them; half of them over against mount Gerizim, and half of them over against mount Ebal; as Moses the servant of the LORD had commanded before, that they should bless the people of Israel.
A185: Josh8:34 | B185: And afterward he read all the words of the law, the blessings and cursings, according to all that is written in the book of the law.
A186: Josh8:35 | B186: There was not a word of all that Moses commanded, which Joshua read not before all the congregation of Israel, with the women, and the little ones, and the strangers that were conversant among them.
A187: Josh9:1 | B187: And it came to pass, when all the kings which were on this side Jordan, in the hills, and in the valleys, and in all the coasts of the great sea over against Lebanon, the Hittite, and the Amorite, the Canaanite, the Perizzite, the Hivite, and the Jebusite, heard thereof;
A188: Josh9:2 | B188: That they gathered themselves together, to fight with Joshua and with Israel, with one accord.
A189: Josh9:3 | B189: And when the inhabitants of Gibeon heard what Joshua had done unto Jericho and to Ai,
A190: Josh9:4 | B190: They did work wilily, and went and made as if they had been ambassadors, and took old sacks upon their asses, and wine bottles, old, and rent, and bound up;
A191: Josh9:5 | B191: And old shoes and clouted upon their feet, and old garments upon them; and all the bread of their provision was dry and mouldy.
A192: Josh9:6 | B192: And they went to Joshua unto the camp at Gilgal, and said unto him, and to the men of Israel, We be come from a far country: now therefore make ye a league with us.
A193: Josh9:7 | B193: And the men of Israel said unto the Hivites, Peradventure ye dwell among us; and how shall we make a league with you?
A194: Josh9:8 | B194: And they said unto Joshua, We are thy servants. And Joshua said unto them, Who are ye? and from whence come ye?
A195: Josh9:9 | B195: And they said unto him, From a very far country thy servants are come because of the name of the LORD thy God: for we have heard the fame of him, and all that he did in Egypt,
A196: Josh9:10 | B196: And all that he did to the two kings of the Amorites, that were beyond Jordan, to Sihon king of Heshbon, and to Og king of Bashan, which was at Ashtaroth.
A197: Josh9:11 | B197: Wherefore our elders and all the inhabitants of our country spake to us, saying, Take victuals with you for the journey, and go to meet them, and say unto them, We are your servants: therefore now make ye a league with us.
A198: Josh9:12 | B198: This our bread we took hot for our provision out of our houses on the day we came forth to go unto you; but now, behold, it is dry, and it is mouldy:
A199: Josh9:13 | B199: And these bottles of wine, which we filled, were new; and, behold, they be rent: and these our garments and our shoes are become old by reason of the very long journey.
A200: Josh9:14 | B200: And the men took of their victuals, and asked not counsel at the mouth of the LORD.
... 458 more rows

Sheet Judges
A1: Jdgs1:1 | B1: Now after the death of Joshua it came to pass, that the children of Israel asked the LORD, saying, Who shall go up for us against the Canaanites first, to fight against them?
A2: Jdgs1:2 | B2: And the LORD said, Judah shall go up: behold, I have delivered the land into his hand.
A3: Jdgs1:3 | B3: And Judah said unto Simeon his brother, Come up with me into my lot, that we may fight against the Canaanites; and I likewise will go with thee into thy lot. So Simeon went with him.
A4: Jdgs1:4 | B4: And Judah went up; and the LORD delivered the Canaanites and the Perizzites into their hand: and they slew of them in Bezek ten thousand men.
A5: Jdgs1:5 | B5: And they found Adonibezek in Bezek: and they fought against him, and they slew the Canaanites and the Perizzites.
A6: Jdgs1:6 | B6: But Adonibezek fled; and they pursued after him, and caught him, and cut off his thumbs and his great toes.
A7: Jdgs1:7 | B7: And Adonibezek said, Threescore and ten kings, having their thumbs and their great toes cut off, gathered their meat under my table: as I have done, so God hath requited me. And they brought him to Jerusalem, and there he died.
A8: Jdgs1:8 | B8: Now the children of Judah had fought against Jerusalem, and had taken it, and smitten it with the edge of the sword, and set the city on fire.
A9: Jdgs1:9 | B9: And afterward the children of Judah went down to fight against the Canaanites, that dwelt in the mountain, and in the south, and in the valley.
A10: Jdgs1:10 | B10: And Judah went against the Canaanites that dwelt in Hebron: (now the name of Hebron before was Kirjatharba:) and they slew Sheshai, and Ahiman, and Talmai.
A11: Jdgs1:11 | B11: And from thence he went against the inhabitants of Debir: and the name of Debir before was Kirjathsepher:
A12: Jdgs1:12 | B12: And Caleb said, He that smiteth Kirjathsepher, and taketh it, to him will I give Achsah my daughter to wife.
A13: Jdgs1:13 | B13: And Othniel the son of Kenaz, Caleb's younger brother, took it: and he gave him Achsah his daughter to wife.
A14: Jdgs1:14 | B14: And it came to pass, when she came to him, that she moved him to ask of her father a field: and she lighted from off her ass; and Caleb said unto her, What wilt thou?
A15: Jdgs1:15 | B15: And she said unto him, Give me a blessing: for thou hast given me a south land; give me also springs of water. And Caleb gave her the upper springs and the nether springs.
A16: Jdgs1:16 | B16: And the children of the Kenite, Moses' father in law, went up out of the city of palm trees with the children of Judah into the wilderness of Judah, which lieth in the south of Arad; and they went and dwelt among the people.
A17: Jdgs1:17 | B17: And Judah went with Simeon his brother, and they slew the Canaanites that inhabited Zephath, and utterly destroyed it. And the name of the city was called Hormah.
A18: Jdgs1:18 | B18: Also Judah took Gaza with the coast thereof, and Askelon with the coast thereof, and Ekron with the coast thereof.
A19: Jdgs1:19 | B19: And the LORD was with Judah; and he drave out the inhabitants of the mountain; but could not drive out the inhabitants of the valley, because they had chariots of iron.
A20: Jdgs1:20 | B20: And they gave Hebron unto Caleb, as Moses said: and he expelled thence the three sons of Anak.
A21: Jdgs1:21 | B21: And the children of Benjamin did not drive out the Jebusites that inhabited Jerusalem; but the Jebusites dwell with the children of Benjamin in Jerusalem unto this day.
A22: Jdgs1:22 | B22: And the house of Joseph, they also went up against Bethel: and the LORD was with them.
A23: Jdgs1:23 | B23: And the house of Joseph sent to descry Bethel. (Now the name of the city before was Luz.)
A24: Jdgs1:24 | B24: And the spies saw a man come forth out of the city, and they said unto him, Shew us, we pray thee, the entrance into the city, and we will shew thee mercy.
A25: Jdgs1:25 | B25: And when he shewed them the entrance into the city, they smote the city with the edge of the sword; but they let go the man and all his family.
A26: Jdgs1:26 | B26: And the man went into the land of the Hittites, and built a city, and called the name thereof Luz: which is the name thereof unto this day.
A27: Jdgs1:27 | B27: Neither did Manasseh drive out the inhabitants of Bethshean and her towns, nor Taanach and her towns, nor the inhabitants of Dor and her towns, nor the inhabitants of Ibleam and her towns, nor the inhabitants of Megiddo and her towns: but the Canaanites would dwell in that land.
A28: Jdgs1:28 | B28: And it came to pass, when Israel was strong, that they put the Canaanites to tribute, and did not utterly drive them out.
A29: Jdgs1:29 | B29: Neither did Ephraim drive out the Canaanites that dwelt in Gezer; but the Canaanites dwelt in Gezer among them.
A30: Jdgs1:30 | B30: Neither did Zebulun drive out the inhabitants of Kitron, nor the inhabitants of Nahalol; but the Canaanites dwelt among them, and became tributaries.
A31: Jdgs1:31 | B31: Neither did Asher drive out the inhabitants of Accho, nor the inhabitants of Zidon, nor of Ahlab, nor of Achzib, nor of Helbah, nor of Aphik, nor of Rehob:
A32: Jdgs1:32 | B32: But the Asherites dwelt among the Canaanites, the inhabitants of the land: for they did not drive them out.
A33: Jdgs1:33 | B33: Neither did Naphtali drive out the inhabitants of Bethshemesh, nor the inhabitants of Bethanath; but he dwelt among the Canaanites, the inhabitants of the land: nevertheless the inhabitants of Bethshemesh and of Bethanath became tributaries unto them.
A34: Jdgs1:34 | B34: And the Amorites forced the children of Dan into the mountain: for they would not suffer them to come down to the valley:
A35: Jdgs1:35 | B35: But the Amorites would dwell in mount Heres in Aijalon, and in Shaalbim: yet the hand of the house of Joseph prevailed, so that they became tributaries.
A36: Jdgs1:36 | B36: And the coast of the Amorites was from the going up to Akrabbim, from the rock, and upward.
A37: Jdgs2:1 | B37: And an angel of the LORD came up from Gilgal to Bochim, and said, I made you to go up out of Egypt, and have brought you unto the land which I sware unto your fathers; and I said, I will never break my covenant with you.
A38: Jdgs2:2 | B38: And ye shall make no league with the inhabitants of this land; ye shall throw down their altars: but ye have not obeyed my voice: why have ye done this?
A39: Jdgs2:3 | B39: Wherefore I also said, I will not drive them out from before you; but they shall be as thorns in your sides, and their gods shall be a snare unto you.
A40: Jdgs2:4 | B40: And it came to pass, when the angel of the LORD spake these words unto all the children of Israel, that the people lifted up their voice, and wept.
A41: Jdgs2:5 | B41: And they called the name of that place Bochim: and they sacrificed there unto the LORD.
A42: Jdgs2:6 | B42: And when Joshua had let the people go, the children of Israel went every man unto his inheritance to possess the land.
A43: Jdgs2:7 | B43: And the people served the LORD all the days of Joshua, and all the days of the elders that outlived Joshua, who had seen all the great works of the LORD, that he did for Israel.
A44: Jdgs2:8 | B44: And Joshua the son of Nun, the servant of the LORD, died, being an hundred and ten years old.
A45: Jdgs2:9 | B45: And they buried him in the border of his inheritance in Timnathheres, in the mount of Ephraim, on the north side of the hill Gaash.
A46: Jdgs2:10 | B46: And also all that generation were gathered unto their fathers: and there arose another generation after them, which knew not the LORD, nor yet the works which he had done for Israel.
A47: Jdgs2:11 | B47: And the children of Israel did evil in the sight of the LORD, and served Baalim:
A48: Jdgs2:12 | B48: And they forsook the LORD God of their fathers, which brought them out of the land of Egypt, and followed other gods, of the gods of the people that were round about them, and bowed themselves unto them, and provoked the LORD to anger.
A49: Jdgs2:13 | B49: And they forsook the LORD, and served Baal and Ashtaroth.
A50: Jdgs2:14 | B50: And the anger of the LORD was hot against Israel, and he delivered them into the hands of spoilers that spoiled them, and he sold them into the hands of their enemies round about, so that they could not any longer stand before their enemies.
A51: Jdgs2:15 | B51: Whithersoever they went out, the hand of the LORD was against them for evil, as the LORD had said, and as the LORD had sworn unto them: and they were greatly distressed.
A52: Jdgs2:16 | B52: Nevertheless the LORD raised up judges, which delivered them out of the hand of those that spoiled them.
A53: Jdgs2:17 | B53: And yet they would not hearken unto their judges, but they went a whoring after other gods, and bowed themselves unto them: they turned quickly out of the way which their fathers walked in, obeying the commandments of the LORD; but they did not so.
A54: Jdgs2:18 | B54: And when the LORD raised them up judges, then the LORD was with the judge, and delivered them out of the hand of their enemies all the days of the judge: for it repented the LORD because of their groanings by reason of them that oppressed them and vexed them.
A55: Jdgs2:19 | B55: And it came to pass, when the judge was dead, that they returned, and corrupted themselves more than their fathers, in following other gods to serve them, and to bow down unto them; they ceased not from their own doings, nor from their stubborn way.
A56: Jdgs2:20 | B56: And the anger of the LORD was hot against Israel; and he said, Because that this people hath transgressed my covenant which I commanded their fathers, and have not hearkened unto my voice;
A57: Jdgs2:21 | B57: I also will not henceforth drive out any from before them of the nations which Joshua left when he died:
A58: Jdgs2:22 | B58: That through them I may prove Israel, whether they will keep the way of the LORD to walk therein, as their fathers did keep it, or not.
A59: Jdgs2:23 | B59: Therefore the LORD left those nations, without driving them out hastily; neither delivered he them into the hand of Joshua.
A60: Jdgs3:1 | B60: Now these are the nations which the LORD left, to prove Israel by them, even as many of Israel as had not known all the wars of Canaan;
A61: Jdgs3:2 | B61: Only that the generations of the children of Israel might know, to teach them war, at the least such as before knew nothing thereof;
A62: Jdgs3:3 | B62: Namely, five lords of the Philistines, and all the Canaanites, and the Sidonians, and the Hivites that dwelt in mount Lebanon, from mount Baalhermon unto the entering in of Hamath.
A63: Jdgs3:4 | B63: And they were to prove Israel by them, to know whether they would hearken unto the commandments of the LORD, which he commanded their fathers by the hand of Moses.
A64: Jdgs3:5 | B64: And the children of Israel dwelt among the Canaanites, Hittites, and Amorites, and Perizzites, and Hivites, and Jebusites:
A65: Jdgs3:6 | B65: And they took their daughters to be their wives, and gave their daughters to their sons, and served their gods.
A66: Jdgs3:7 | B66: And the children of Israel did evil in the sight of the LORD, and forgat the LORD their God, and served Baalim and the groves.
A67: Jdgs3:8 | B67: Therefore the anger of the LORD was hot against Israel, and he sold them into the hand of Chushanrishathaim king of Mesopotamia: and the children of Israel served Chushanrishathaim eight years.
A68: Jdgs3:9 | B68: And when the children of Israel cried unto the LORD, the LORD raised up a deliverer to the children of Israel, who delivered them, even Othniel the son of Kenaz, Caleb's younger brother.
A69: Jdgs3:10 | B69: And the Spirit of the LORD came upon him, and he judged Israel, and went out to war: and the LORD delivered Chushanrishathaim king of Mesopotamia into his hand; and his hand prevailed against Chushanrishathaim.
A70: Jdgs3:11 | B70: And the land had rest forty years. And Othniel the son of Kenaz died.
A71: Jdgs3:12 | B71: And the children of Israel did evil again in the sight of the LORD: and the LORD strengthened Eglon the king of Moab against Israel, because they had done evil in the sight of the LORD.
A72: Jdgs3:13 | B72: And he gathered unto him the children of Ammon and Amalek, and went and smote Israel, and possessed the city of palm trees.
A73: Jdgs3:14 | B73: So the children of Israel served Eglon the king of Moab eighteen years.
A74: Jdgs3:15 | B74: But when the children of Israel cried unto the LORD, the LORD raised them up a deliverer, Ehud the son of Gera, a Benjamite, a man lefthanded: and by him the children of Israel sent a present unto Eglon the king of Moab.
A75: Jdgs3:16 | B75: But Ehud made him a dagger which had two edges, of a cubit length; and he did gird it under his raiment upon his right thigh.
A76: Jdgs3:17 | B76: And he brought the present unto Eglon king of Moab: and Eglon was a very fat man.
A77: Jdgs3:18 | B77: And when he had made an end to offer the present, he sent away the people that bare the present.
A78: Jdgs3:19 | B78: But he himself turned again from the quarries that were by Gilgal, and said, I have a secret errand unto thee, O king: who said, Keep silence. And all that stood by him went out from him.
A79: Jdgs3:20 | B79: And Ehud came unto him; and he was sitting in a summer parlour, which he had for himself alone. And Ehud said, I have a message from God unto thee. And he arose out of his seat.
A80: Jdgs3:21 | B80: And Ehud put forth his left hand, and took the dagger from his right thigh, and thrust it into his belly:
A81: Jdgs3:22 | B81: And the haft also went in after the blade; and the fat closed upon the blade, so that he could not draw the dagger out of his belly; and the dirt came out.
A82: Jdgs3:23 | B82: Then Ehud went forth through the porch, and shut the doors of the parlour upon him, and locked them.
A83: Jdgs3:24 | B83: When he was gone out, his servants came; and when they saw that, behold, the doors of the parlour were locked, they said, Surely he covereth his feet in his summer chamber.
A84: Jdgs3:25 | B84: And they tarried till they were ashamed: and, behold, he opened not the doors of the parlour; therefore they took a key, and opened them: and, behold, their lord was fallen down dead on the earth.
A85: Jdgs3:26 | B85: And Ehud escaped while they tarried, and passed beyond the quarries, and escaped unto Seirath.
A86: Jdgs3:27 | B86: And it came to pass, when he was come, that he blew a trumpet in the mountain of Ephraim, and the children of Israel went down with him from the mount, and he before them.
A87: Jdgs3:28 | B87: And he said unto them, Follow after me: for the LORD hath delivered your enemies the Moabites into your hand. And they went down after him, and took the fords of Jordan toward Moab, and suffered not a man to pass over.
A88: Jdgs3:29 | B88: And they slew of Moab at that time about ten thousand men, all lusty, and all men of valour; and there escaped not a man.
A89: Jdgs3:30 | B89: So Moab was subdued that day under the hand of Israel. And the land had rest fourscore years.
A90: Jdgs3:31 | B90: And after him was Shamgar the son of Anath, which slew of the Philistines six hundred men with an ox goad: and he also delivered Israel.
A91: Jdgs4:1 | B91: And the children of Israel again did evil in the sight of the LORD, when Ehud was dead.
A92: Jdgs4:2 | B92: And the LORD sold them into the hand of Jabin king of Canaan, that reigned in Hazor; the captain of whose host was Sisera, which dwelt in Harosheth of the Gentiles.
A93: Jdgs4:3 | B93: And the children of Israel cried unto the LORD: for he had nine hundred chariots of iron; and twenty years he mightily oppressed the children of Israel.
A94: Jdgs4:4 | B94: And Deborah, a prophetess, the wife of Lapidoth, she judged Israel at that time.
A95: Jdgs4:5 | B95: And she dwelt under the palm tree of Deborah between Ramah and Bethel in mount Ephraim: and the children of Israel came up to her for judgment.
A96: Jdgs4:6 | B96: And she sent and called Barak the son of Abinoam out of Kedeshnaphtali, and said unto him, Hath not the LORD God of Israel commanded, saying, Go and draw toward mount Tabor, and take with thee ten thousand men of the children of Naphtali and of the children of Zebulun?
A97: Jdgs4:7 | B97: And I will draw unto thee to the river Kishon Sisera, the captain of Jabin's army, with his chariots and his multitude; and I will deliver him into thine hand.
A98: Jdgs4:8 | B98: And Barak said unto her, If thou wilt go with me, then I will go: but if thou wilt not go with me, then I will not go.
A99: Jdgs4:9 | B99: And she said, I will surely go with thee: notwithstanding the journey that thou takest shall not be for thine honour; for the LORD shall sell Sisera into the hand of a woman. And Deborah arose, and went with Barak to Kedesh.
A100: Jdgs4:10 | B100: And Barak called Zebulun and Naphtali to Kedesh; and he went up with ten thousand men at his feet: and Deborah went up with him.
A101: Jdgs4:11 | B101: Now Heber the Kenite, which was of the children of Hobab the father in law of Moses, had severed himself from the Kenites, and pitched his tent unto the plain of Zaanaim, which is by Kedesh.
A102: Jdgs4:12 | B102: And they shewed Sisera that Barak the son of Abinoam was gone up to mount Tabor.
A103: Jdgs4:13 | B103: And Sisera gathered together all his chariots, even nine hundred chariots of iron, and all the people that were with him, from Harosheth of the Gentiles unto the river of Kishon.
A104: Jdgs4:14 | B104: And Deborah said unto Barak, Up; for this is the day in which the LORD hath delivered Sisera into thine hand: is not the LORD gone out before thee? So Barak went down from mount Tabor, and ten thousand men after him.
A105: Jdgs4:15 | B105: And the LORD discomfited Sisera, and all his chariots, and all his host, with the edge of the sword before Barak; so that Sisera lighted down off his chariot, and fled away on his feet.
A106: Jdgs4:16 | B106: But Barak pursued after the chariots, and after the host, unto Harosheth of the Gentiles: and all the host of Sisera fell upon the edge of the sword; and there was not a man left.
A107: Jdgs4:17 | B107: Howbeit Sisera fled away on his feet to the tent of Jael the wife of Heber the Kenite: for there was peace between Jabin the king of Hazor and the house of Heber the Kenite.
A108: Jdgs4:18 | B108: And Jael went out to meet Sisera, and said unto him, Turn in, my lord, turn in to me; fear not. And when he had turned in unto her into the tent, she covered him with a mantle.
A109: Jdgs4:19 | B109: And he said unto her, Give me, I pray thee, a little water to drink; for I am thirsty. And she opened a bottle of milk, and gave him drink, and covered him.
A110: Jdgs4:20 | B110: Again he said unto her, Stand in the door of the tent, and it shall be, when any man doth come and enquire of thee, and say, Is there any man here? that thou shalt say, No.
A111: Jdgs4:21 | B111: Then Jael Heber's wife took a nail of the tent, and took an hammer in her hand, and went softly unto him, and smote the nail into his temples, and fastened it into the ground: for he was fast asleep and weary. So he died.
A112: Jdgs4:22 | B112: And, behold, as Barak pursued Sisera, Jael came out to meet him, and said unto him, Come, and I will shew thee the man whom thou seekest. And when he came into her tent, behold, Sisera lay dead, and the nail was in his temples.
A113: Jdgs4:23 | B113: So God subdued on that day Jabin the king of Canaan before the children of Israel.
A114: Jdgs4:24 | B114: And the hand of the children of Israel prospered, and prevailed against Jabin the king of Canaan, until they had destroyed Jabin king of Canaan.
A115: Jdgs5:1 | B115: Then sang Deborah and Barak the son of Abinoam on that day, saying,
A116: Jdgs5:2 | B116: Praise ye the LORD for the avenging of Israel, when the people willingly offered themselves.
A117: Jdgs5:3 | B117: Hear, O ye kings; give ear, O ye princes; I, even I, will sing unto the LORD; I will sing praise to the LORD God of Israel.
A118: Jdgs5:4 | B118: LORD, when thou wentest out of Seir, when thou marchedst out of the field of Edom, the earth trembled, and the heavens dropped, the clouds also dropped water.
A119: Jdgs5:5 | B119: The mountains melted from before the LORD, even that Sinai from before the LORD God of Israel.
A120: Jdgs5:6 | B120: In the days of Shamgar the son of Anath, in the days of Jael, the highways were unoccupied, and the travellers walked through byways.
A121: Jdgs5:7 | B121: The inhabitants of the villages ceased, they ceased in Israel, until that I Deborah arose, that I arose a mother in Israel.
A122: Jdgs5:8 | B122: They chose new gods; then was war in the gates: was there a shield or spear seen among forty thousand in Israel?
A123: Jdgs5:9 | B123: My heart is toward the governors of Israel, that offered themselves willingly among the people. Bless ye the LORD.
A124: Jdgs5:10 | B124: Speak, ye that ride on white asses, ye that sit in judgment, and walk by the way.
A125: Jdgs5:11 | B125: They that are delivered from the noise of archers in the places of drawing water, there shall they rehearse the righteous acts of the LORD, even the righteous acts toward the inhabitants of his villages in Israel: then shall the people of the LORD go down to the gates.
A126: Jdgs5:12 | B126: Awake, awake, Deborah: awake, awake, utter a song: arise, Barak, and lead thy captivity captive, thou son of Abinoam.
A127: Jdgs5:13 | B127: Then he made him that remaineth have dominion over the nobles among the people: the LORD made me have dominion over the mighty.
A128: Jdgs5:14 | B128: Out of Ephraim was there a root of them against Amalek; after thee, Benjamin, among thy people; out of Machir came down governors, and out of Zebulun they that handle the pen of the writer.
A129: Jdgs5:15 | B129: And the princes of Issachar were with Deborah; even Issachar, and also Barak: he was sent on foot into the valley. For the divisions of Reuben there were great thoughts of heart.
A130: Jdgs5:16 | B130: Why abodest thou among the sheepfolds, to hear the bleatings of the flocks? For the divisions of Reuben there were great searchings of heart.
A131: Jdgs5:17 | B131: Gilead abode beyond Jordan: and why did Dan remain in ships? Asher continued on the sea shore, and abode in his breaches.
A132: Jdgs5:18 | B132: Zebulun and Naphtali were a people that jeoparded their lives unto the death in the high places of the field.
A133: Jdgs5:19 | B133: The kings came and fought, then fought the kings of Canaan in Taanach by the waters of Megiddo; they took no gain of money.
A134: Jdgs5:20 | B134: They fought from heaven; the stars in their courses fought against Sisera.
A135: Jdgs5:21 | B135: The river of Kishon swept them away, that ancient river, the river Kishon. O my soul, thou hast trodden down strength.
A136: Jdgs5:22 | B136: Then were the horsehoofs broken by the means of the pransings, the pransings of their mighty ones.
A137: Jdgs5:23 | B137: Curse ye Meroz, said the angel of the LORD, curse ye bitterly the inhabitants thereof; because they came not to the help of the LORD, to the help of the LORD against the mighty.
A138: Jdgs5:24 | B138: Blessed above women shall Jael the wife of Heber the Kenite be, blessed shall she be above women in the tent.
A139: Jdgs5:25 | B139: He asked water, and she gave him milk; she brought forth butter in a lordly dish.
A140: Jdgs5:26 | B140: She put her hand to the nail, and her right hand to the workmen's hammer; and with the hammer she smote Sisera, she smote off his head, when she had pierced and stricken through his temples.
A141: Jdgs5:27 | B141: At her feet he bowed, he fell, he lay down: at her feet he bowed, he fell: where he bowed, there he fell down dead.
A142: Jdgs5:28 | B142: The mother of Sisera looked out at a window, and cried through the lattice, Why is his chariot so long in coming? why tarry the wheels of his chariots?
A143: Jdgs5:29 | B143: Her wise ladies answered her, yea, she returned answer to herself,
A144: Jdgs5:30 | B144: Have they not sped? have they not divided the prey; to every man a damsel or two; to Sisera a prey of divers colours, a prey of divers colours of needlework, of divers colours of needlework on both sides, meet for the necks of them that take the spoil?
A145: Jdgs5:31 | B145: So let all thine enemies perish, O LORD: but let them that love him be as the sun when he goeth forth in his might. And the land had rest forty years.
A146: Jdgs6:1 | B146: And the children of Israel did evil in the sight of the LORD: and the LORD delivered them into the hand of Midian seven years.
A147: Jdgs6:2 | B147: And the hand of Midian prevailed against Israel: and because of the Midianites the children of Israel made them the dens which are in the mountains, and caves, and strong holds.
A148: Jdgs6:3 | B148: And so it was, when Israel had sown, that the Midianites came up, and the Amalekites, and the children of the east, even they came up against them;
A149: Jdgs6:4 | B149: And they encamped against them, and destroyed the increase of the earth, till thou come unto Gaza, and left no sustenance for Israel, neither sheep, nor ox, nor ass.
A150: Jdgs6:5 | B150: For they came up with their cattle and their tents, and they came as grasshoppers for multitude; for both they and their camels were without number: and they entered into the land to destroy it.
A151: Jdgs6:6 | B151: And Israel was greatly impoverished because of the Midianites; and the children of Israel cried unto the LORD.
A152: Jdgs6:7 | B152: And it came to pass, when the children of Israel cried unto the LORD because of the Midianites,
A153: Jdgs6:8 | B153: That the LORD sent a prophet unto the children of Israel, which said unto them, Thus saith the LORD God of Israel, I brought you up from Egypt, and brought you forth out of the house of bondage;
A154: Jdgs6:9 | B154: And I delivered you out of the hand of the Egyptians, and out of the hand of all that oppressed you, and drave them out from before you, and gave you their land;
A155: Jdgs6:10 | B155: And I said unto you, I am the LORD your God; fear not the gods of the Amorites, in whose land ye dwell: but ye have not obeyed my voice.
A156: Jdgs6:11 | B156: And there came an angel of the LORD, and sat under an oak which was in Ophrah, that pertained unto Joash the Abiezrite: and his son Gideon threshed wheat by the winepress, to hide it from the Midianites.
A157: Jdgs6:12 | B157: And the angel of the LORD appeared unto him, and said unto him, The LORD is with thee, thou mighty man of valour.
A158: Jdgs6:13 | B158: And Gideon said unto him, Oh my Lord, if the LORD be with us, why then is all this befallen us? and where be all his miracles which our fathers told us of, saying, Did not the LORD bring us up from Egypt? but now the LORD hath forsaken us, and delivered us into the hands of the Midianites.
A159: Jdgs6:14 | B159: And the LORD looked upon him, and said, Go in this thy might, and thou shalt save Israel from the hand of the Midianites: have not I sent thee?
A160: Jdgs6:15 | B160: And he said unto him, Oh my Lord, wherewith shall I save Israel? behold, my family is poor in Manasseh, and I am the least in my father's house.
A161: Jdgs6:16 | B161: And the LORD said unto him, Surely I will be with thee, and thou shalt smite the Midianites as one man.
A162: Jdgs6:17 | B162: And he said unto him, If now I have found grace in thy sight, then shew me a sign that thou talkest with me.
A163: Jdgs6:18 | B163: Depart not hence, I pray thee, until I come unto thee, and bring forth my present, and set it before thee. And he said, I will tarry until thou come again.
A164: Jdgs6:19 | B164: And Gideon went in, and made ready a kid, and unleavened cakes of an ephah of flour: the flesh he put in a basket, and he put the broth in a pot, and brought it out unto him under the oak, and presented it.
A165: Jdgs6:20 | B165: And the angel of God said unto him, Take the flesh and the unleavened cakes, and lay them upon this rock, and pour out the broth. And he did so.
A166: Jdgs6:21 | B166: Then the angel of the LORD put forth the end of the staff that was in his hand, and touched the flesh and the unleavened cakes; and there rose up fire out of the rock, and consumed the flesh and the unleavened cakes. Then the angel of the LORD departed out of his sight.
A167: Jdgs6:22 | B167: And when Gideon perceived that he was an angel of the LORD, Gideon said, Alas, O LORD God! for because I have seen an angel of the LORD face to face.
A168: Jdgs6:23 | B168: And the LORD said unto him, Peace be unto thee; fear not: thou shalt not die.
A169: Jdgs6:24 | B169: Then Gideon built an altar there unto the LORD, and called it Jehovahshalom: unto this day it is yet in Ophrah of the Abiezrites.
A170: Jdgs6:25 | B170: And it came to pass the same night, that the LORD said unto him, Take thy father's young bullock, even the second bullock of seven years old, and throw down the altar of Baal that thy father hath, and cut down the grove that is by it:
A171: Jdgs6:26 | B171: And build an altar unto the LORD thy God upon the top of this rock, in the ordered place, and take the second bullock, and offer a burnt sacrifice with the wood of the grove which thou shalt cut down.
A172: Jdgs6:27 | B172: Then Gideon took ten men of his servants, and did as the LORD had said unto him: and so it was, because he feared his father's household, and the men of the city, that he could not do it by day, that he did it by night.
A173: Jdgs6:28 | B173: And when the men of the city arose early in the morning, behold, the altar of Baal was cast down, and the grove was cut down that was by it, and the second bullock was offered upon the altar that was built.
A174: Jdgs6:29 | B174: And they said one to another, Who hath done this thing? And when they enquired and asked, they said, Gideon the son of Joash hath done this thing.
A175: Jdgs6:30 | B175: Then the men of the city said unto Joash, Bring out thy son, that he may die: because he hath cast down the altar of Baal, and because he hath cut down the grove that was by it.
A176: Jdgs6:31 | B176: And Joash said unto all that stood against him, Will ye plead for Baal? will ye save him? he that will plead for him, let him be put to death whilst it is yet morning: if he be a god, let him plead for himself, because one hath cast down his altar.
A177: Jdgs6:32 | B177: Therefore on that day he called him Jerubbaal, saying, Let Baal plead against him, because he hath thrown down his altar.
A178: Jdgs6:33 | B178: Then all the Midianites and the Amalekites and the children of the east were gathered together, and went over, and pitched in the valley of Jezreel.
A179: Jdgs6:34 | B179: But the Spirit of the LORD came upon Gideon, and he blew a trumpet; and Abiezer was gathered after him.
A180: Jdgs6:35 | B180: And he sent messengers throughout all Manasseh; who also was gathered after him: and he sent messengers unto Asher, and unto Zebulun, and unto Naphtali; and they came up to meet them.
A181: Jdgs6:36 | B181: And Gideon said unto God, If thou wilt save Israel by mine hand, as thou hast said,
A182: Jdgs6:37 | B182: Behold, I will put a fleece of wool in the floor; and if the dew be on the fleece only, and it be dry upon all the earth beside, then shall I know that thou wilt save Israel by mine hand, as thou hast said.
A183: Jdgs6:38 | B183: And it was so: for he rose up early on the morrow, and thrust the fleece together, and wringed the dew out of the fleece, a bowl full of water.
A184: Jdgs6:39 | B184: And Gideon said unto God, Let not thine anger be hot against me, and I will speak but this once: let me prove, I pray thee, but this once with the fleece; let it now be dry only upon the fleece, and upon all the ground let there be dew.
A185: Jdgs6:40 | B185: And God did so that night: for it was dry upon the fleece only, and there was dew on all the ground.
A186: Jdgs7:1 | B186: Then Jerubbaal, who is Gideon, and all the people that were with him, rose up early, and pitched beside the well of Harod: so that the host of the Midianites were on the north side of them, by the hill of Moreh, in the valley.
A187: Jdgs7:2 | B187: And the LORD said unto Gideon, The people that are with thee are too many for me to give the Midianites into their hands, lest Israel vaunt themselves against me, saying, Mine own hand hath saved me.
A188: Jdgs7:3 | B188: Now therefore go to, proclaim in the ears of the people, saying, Whosoever is fearful and afraid, let him return and depart early from mount Gilead. And there returned of the people twenty and two thousand; and there remained ten thousand.
A189: Jdgs7:4 | B189: And the LORD said unto Gideon, The people are yet too many; bring them down unto the water, and I will try them for thee there: and it shall be, that of whom I say unto thee, This shall go with thee, the same shall go with thee; and of whomsoever I say unto thee, This shall not go with thee, the same shall not go.
A190: Jdgs7:5 | B190: So he brought down the people unto the water: and the LORD said unto Gideon, Every one that lappeth of the water with his tongue, as a dog lappeth, him shalt thou set by himself; likewise every one that boweth down upon his knees to drink.
A191: Jdgs7:6 | B191: And the number of them that lapped, putting their hand to their mouth, were three hundred men: but all the rest of the people bowed down upon their knees to drink water.
A192: Jdgs7:7 | B192: And the LORD said unto Gideon, By the three hundred men that lapped will I save you, and deliver the Midianites into thine hand: and let all the other people go every man unto his place.
A193: Jdgs7:8 | B193: So the people took victuals in their hand, and their trumpets: and he sent all the rest of Israel every man unto his tent, and retained those three hundred men: and the host of Midian was beneath him in the valley.
A194: Jdgs7:9 | B194: And it came to pass the same night, that the LORD said unto him, Arise, get thee down unto the host; for I have delivered it into thine hand.
A195: Jdgs7:10 | B195: But if thou fear to go down, go thou with Phurah thy servant down to the host:
A196: Jdgs7:11 | B196: And thou shalt hear what they say; and afterward shall thine hands be strengthened to go down unto the host. Then went he down with Phurah his servant unto the outside of the armed men that were in the host.
A197: Jdgs7:12 | B197: And the Midianites and the Amalekites and all the children of the east lay along in the valley like grasshoppers for multitude; and their camels were without number, as the sand by the sea side for multitude.
A198: Jdgs7:13 | B198: And when Gideon was come, behold, there was a man that told a dream unto his fellow, and said, Behold, I dreamed a dream, and, lo, a cake of barley bread tumbled into the host of Midian, and came unto a tent, and smote it that it fell, and overturned it, that the tent lay along.
A199: Jdgs7:14 | B199: And his fellow answered and said, This is nothing else save the sword of Gideon the son of Joash, a man of Israel: for into his hand hath God delivered Midian, and all the host.
A200: Jdgs7:15 | B200: And it was so, when Gideon heard the telling of the dream, and the interpretation thereof, that he worshipped, and returned into the host of Israel, and said, Arise; for the LORD hath delivered into your hand the host of Midian.
... 418 more rows

Sheet Ruth
A1: Ruth1:1 | B1: Now it came to pass in the days when the judges ruled, that there was a famine in the land. And a certain man of Bethlehemjudah went to sojourn in the country of Moab, he, and his wife, and his two sons.
A2: Ruth1:2 | B2: And the name of the man was Elimelech, and the name of his wife Naomi, and the name of his two sons Mahlon and Chilion, Ephrathites of Bethlehemjudah. And they came into the country of Moab, and continued there.
A3: Ruth1:3 | B3: And Elimelech Naomi's husband died; and she was left, and her two sons.
A4: Ruth1:4 | B4: And they took them wives of the women of Moab; the name of the one was Orpah, and the name of the other Ruth: and they dwelled there about ten years.
A5: Ruth1:5 | B5: And Mahlon and Chilion died also both of them; and the woman was left of her two sons and her husband.
A6: Ruth1:6 | B6: Then she arose with her daughters in law, that she might return from the country of Moab: for she had heard in the country of Moab how that the LORD had visited his people in giving them bread.
A7: Ruth1:7 | B7: Wherefore she went forth out of the place where she was, and her two daughters in law with her; and they went on the way to return unto the land of Judah.
A8: Ruth1:8 | B8: And Naomi said unto her two daughters in law, Go, return each to her mother's house: the LORD deal kindly with you, as ye have dealt with the dead, and with me.
A9: Ruth1:9 | B9: The LORD grant you that ye may find rest, each of you in the house of her husband. Then she kissed them; and they lifted up their voice, and wept.
A10: Ruth1:10 | B10: And they said unto her, Surely we will return with thee unto thy people.
A11: Ruth1:11 | B11: And Naomi said, Turn again, my daughters: why will ye go with me? are there yet any more sons in my womb, that they may be your husbands?
A12: Ruth1:12 | B12: Turn again, my daughters, go your way; for I am too old to have an husband. If I should say, I have hope, if I should have an husband also to night, and should also bear sons;
A13: Ruth1:13 | B13: Would ye tarry for them till they were grown? would ye stay for them from having husbands? nay, my daughters; for it grieveth me much for your sakes that the hand of the LORD is gone out against me.
A14: Ruth1:14 | B14: And they lifted up their voice, and wept again: and Orpah kissed her mother in law; but Ruth clave unto her.
A15: Ruth1:15 | B15: And she said, Behold, thy sister in law is gone back unto her people, and unto her gods: return thou after thy sister in law.
A16: Ruth1:16 | B16: And Ruth said, Intreat me not to leave thee, or to return from following after thee: for whither thou goest, I will go; and where thou lodgest, I will lodge: thy people shall be my people, and thy God my God:
A17: Ruth1:17 | B17: Where thou diest, will I die, and there will I be buried: the LORD do so to me, and more also, if ought but death part thee and me.
A18: Ruth1:18 | B18: When she saw that she was stedfastly minded to go with her, then she left speaking unto her.
A19: Ruth1:19 | B19: So they two went until they came to Bethlehem. And it came to pass, when they were come to Bethlehem, that all the city was moved about them, and they said, Is this Naomi?
A20: Ruth1:20 | B20: And she said unto them, Call me not Naomi, call me Mara: for the Almighty hath dealt very bitterly with me.
A21: Ruth1:21 | B21: I went out full, and the LORD hath brought me home again empty: why then call ye me Naomi, seeing the LORD hath testified against me, and the Almighty hath afflicted me?
A22: Ruth1:22 | B22: So Naomi returned, and Ruth the Moabitess, her daughter in law, with her, which returned out of the country of Moab: and they came to Bethlehem in the beginning of barley harvest.
A23: Ruth2:1 | B23: And Naomi had a kinsman of her husband's, a mighty man of wealth, of the family of Elimelech; and his name was Boaz.
A24: Ruth2:2 | B24: And Ruth the Moabitess said unto Naomi, Let me now go to the field, and glean ears of corn after him in whose sight I shall find grace. And she said unto her, Go, my daughter.
A25: Ruth2:3 | B25: And she went, and came, and gleaned in the field after the reapers: and her hap was to light on a part of the field belonging unto Boaz, who was of the kindred of Elimelech.
A26: Ruth2:4 | B26: And, behold, Boaz came from Bethlehem, and said unto the reapers, The LORD be with you. And they answered him, The LORD bless thee.
A27: Ruth2:5 | B27: Then said Boaz unto his servant that was set over the reapers, Whose damsel is this?
A28: Ruth2:6 | B28: And the servant that was set over the reapers answered and said, It is the Moabitish damsel that came back with Naomi out of the country of Moab:
A29: Ruth2:7 | B29: And she said, I pray you, let me glean and gather after the reapers among the sheaves: so she came, and hath continued even from the morning until now, that she tarried a little in the house.
A30: Ruth2:8 | B30: Then said Boaz unto Ruth, Hearest thou not, my daughter? Go not to glean in another field, neither go from hence, but abide here fast by my maidens:
A31: Ruth2:9 | B31: Let thine eyes be on the field that they do reap, and go thou after them: have I not charged the young men that they shall not touch thee? and when thou art athirst, go unto the vessels, and drink of that which the young men have drawn.
A32: Ruth2:10 | B32: Then she fell on her face, and bowed herself to the ground, and said unto him, Why have I found grace in thine eyes, that thou shouldest take knowledge of me, seeing I am a stranger?
A33: Ruth2:11 | B33: And Boaz answered and said unto her, It hath fully been shewed me, all that thou hast done unto thy mother in law since the death of thine husband: and how thou hast left thy father and thy mother, and the land of thy nativity, and art come unto a people which thou knewest not heretofore.
A34: Ruth2:12 | B34: The LORD recompense thy work, and a full reward be given thee of the LORD God of Israel, under whose wings thou art come to trust.
A35: Ruth2:13 | B35: Then she said, Let me find favour in thy sight, my lord; for that thou hast comforted me, and for that thou hast spoken friendly unto thine handmaid, though I be not like unto one of thine handmaidens.
A36: Ruth2:14 | B36: And Boaz said unto her, At mealtime come thou hither, and eat of the bread, and dip thy morsel in the vinegar. And she sat beside the reapers: and he reached her parched corn, and she did eat, and was sufficed, and left.
A37: Ruth2:15 | B37: And when she was risen up to glean, Boaz commanded his young men, saying, Let her glean even among the sheaves, and reproach her not:
A38: Ruth2:16 | B38: And let fall also some of the handfuls of purpose for her, and leave them, that she may glean them, and rebuke her not.
A39: Ruth2:17 | B39: So she gleaned in the field until even, and beat out that she had gleaned: and it was about an ephah of barley.
A40: Ruth2:18 | B40: And she took it up, and went into the city: and her mother in law saw what she had gleaned: and she brought forth, and gave to her that she had reserved after she was sufficed.
A41: Ruth2:19 | B41: And her mother in law said unto her, Where hast thou gleaned to day? and where wroughtest thou? blessed be he that did take knowledge of thee. And she shewed her mother in law with whom she had wrought, and said, The man's name with whom I wrought to day is Boaz.
A42: Ruth2:20 | B42: And Naomi said unto her daughter in law, Blessed be he of the LORD, who hath not left off his kindness to the living and to the dead. And Naomi said unto her, The man is near of kin unto us, one of our next kinsmen.
A43: Ruth2:21 | B43: And Ruth the Moabitess said, He said unto me also, Thou shalt keep fast by my young men, until they have ended all my harvest.
A44: Ruth2:22 | B44: And Naomi said unto Ruth her daughter in law, It is good, my daughter, that thou go out with his maidens, that they meet thee not in any other field.
A45: Ruth2:23 | B45: So she kept fast by the maidens of Boaz to glean unto the end of barley harvest and of wheat harvest; and dwelt with her mother in law.
A46: Ruth3:1 | B46: Then Naomi her mother in law said unto her, My daughter, shall I not seek rest for thee, that it may be well with thee?
A47: Ruth3:2 | B47: And now is not Boaz of our kindred, with whose maidens thou wast? Behold, he winnoweth barley to night in the threshingfloor.
A48: Ruth3:3 | B48: Wash thyself therefore, and anoint thee, and put thy raiment upon thee, and get thee down to the floor: but make not thyself known unto the man, until he shall have done eating and drinking.
A49: Ruth3:4 | B49: And it shall be, when he lieth down, that thou shalt mark the place where he shall lie, and thou shalt go in, and uncover his feet, and lay thee down; and he will tell thee what thou shalt do.
A50: Ruth3:5 | B50: And she said unto her, All that thou sayest unto me I will do.
A51: Ruth3:6 | B51: And she went down unto the floor, and did according to all that her mother in law bade her.
A52: Ruth3:7 | B52: And when Boaz had eaten and drunk, and his heart was merry, he went to lie down at the end of the heap of corn: and she came softly, and uncovered his feet, and laid her down.
A53: Ruth3:8 | B53: And it came to pass at midnight, that the man was afraid, and turned himself: and, behold, a woman lay at his feet.
A54: Ruth3:9 | B54: And he said, Who art thou? And she answered, I am Ruth thine handmaid: spread therefore thy skirt over thine handmaid; for thou art a near kinsman.
A55: Ruth3:10 | B55: And he said, Blessed be thou of the LORD, my daughter: for thou hast shewed more kindness in the latter end than at the beginning, inasmuch as thou followedst not young men, whether poor or rich.
A56: Ruth3:11 | B56: And now, my daughter, fear not; I will do to thee all that thou requirest: for all the city of my people doth know that thou art a virtuous woman.
A57: Ruth3:12 | B57: And now it is true that I am thy near kinsman: howbeit there is a kinsman nearer than I.
A58: Ruth3:13 | B58: Tarry this night, and it shall be in the morning, that if he will perform unto thee the part of a kinsman, well; let him do the kinsman's part: but if he will not do the part of a kinsman to thee, then will I do the part of a kinsman to thee, as the LORD liveth: lie down until the morning.
A59: Ruth3:14 | B59: And she lay at his feet until the morning: and she rose up before one could know another. And he said, Let it not be known that a woman came into the floor.
A60: Ruth3:15 | B60: Also he said, Bring the vail that thou hast upon thee, and hold it. And when she held it, he measured six measures of barley, and laid it on her: and she went into the city.
A61: Ruth3:16 | B61: And when she came to her mother in law, she said, Who art thou, my daughter? And she told her all that the man had done to her.
A62: Ruth3:17 | B62: And she said, These six measures of barley gave he me; for he said to me, Go not empty unto thy mother in law.
A63: Ruth3:18 | B63: Then said she, Sit still, my daughter, until thou know how the matter will fall: for the man will not be in rest, until he have finished the thing this day.
A64: Ruth4:1 | B64: Then went Boaz up to the gate, and sat him down there: and, behold, the kinsman of whom Boaz spake came by; unto whom he said, Ho, such a one! turn aside, sit down here. And he turned aside, and sat down.
A65: Ruth4:2 | B65: And he took ten men of the elders of the city, and said, Sit ye down here. And they sat down.
A66: Ruth4:3 | B66: And he said unto the kinsman, Naomi, that is come again out of the country of Moab, selleth a parcel of land, which was our brother Elimelech's:
A67: Ruth4:4 | B67: And I thought to advertise thee, saying, Buy it before the inhabitants, and before the elders of my people. If thou wilt redeem it, redeem it: but if thou wilt not redeem it, then tell me, that I may know: for there is none to redeem it beside thee; and I am after thee. And he said, I will redeem it.
A68: Ruth4:5 | B68: Then said Boaz, What day thou buyest the field of the hand of Naomi, thou must buy it also of Ruth the Moabitess, the wife of the dead, to raise up the name of the dead upon his inheritance.
A69: Ruth4:6 | B69: And the kinsman said, I cannot redeem it for myself, lest I mar mine own inheritance: redeem thou my right to thyself; for I cannot redeem it.
A70: Ruth4:7 | B70: Now this was the manner in former time in Israel concerning redeeming and concerning changing, for to confirm all things; a man plucked off his shoe, and gave it to his neighbour: and this was a testimony in Israel.
A71: Ruth4:8 | B71: Therefore the kinsman said unto Boaz, Buy it for thee. So he drew off his shoe.
A72: Ruth4:9 | B72: And Boaz said unto the elders, and unto all the people, Ye are witnesses this day, that I have bought all that was Elimelech's, and all that was Chilion's and Mahlon's, of the hand of Naomi.
A73: Ruth4:10 | B73: Moreover Ruth the Moabitess, the wife of Mahlon, have I purchased to be my wife, to raise up the name of the dead upon his inheritance, that the name of the dead be not cut off from among his brethren, and from the gate of his place: ye are witnesses this day.
A74: Ruth4:11 | B74: And all the people that were in the gate, and the elders, said, We are witnesses. The LORD make the woman that is come into thine house like Rachel and like Leah, which two did build the house of Israel: and do thou worthily in Ephratah, and be famous in Bethlehem:
A75: Ruth4:12 | B75: And let thy house be like the house of Pharez, whom Tamar bare unto Judah, of the seed which the LORD shall give thee of this young woman.
A76: Ruth4:13 | B76: So Boaz took Ruth, and she was his wife: and when he went in unto her, the LORD gave her conception, and she bare a son.
A77: Ruth4:14 | B77: And the women said unto Naomi, Blessed be the LORD, which hath not left thee this day without a kinsman, that his name may be famous in Israel.
A78: Ruth4:15 | B78: And he shall be unto thee a restorer of thy life, and a nourisher of thine old age: for thy daughter in law, which loveth thee, which is better to thee than seven sons, hath born him.
A79: Ruth4:16 | B79: And Naomi took the child, and laid it in her bosom, and became nurse unto it.
A80: Ruth4:17 | B80: And the women her neighbours gave it a name, saying, There is a son born to Naomi; and they called his name Obed: he is the father of Jesse, the father of David.
A81: Ruth4:18 | B81: Now these are the generations of Pharez: Pharez begat Hezron,
A82: Ruth4:19 | B82: And Hezron begat Ram, and Ram begat Amminadab,
A83: Ruth4:20 | B83: And Amminadab begat Nahshon, and Nahshon begat Salmon,
A84: Ruth4:21 | B84: And Salmon begat Boaz, and Boaz begat Obed,
A85: Ruth4:22 | B85: And Obed begat Jesse, and Jesse begat David.

Sheet 1 Samuel
A1: 1Sm1:1 | B1: Now there was a certain man of Ramathaimzophim, of mount Ephraim, and his name was Elkanah, the son of Jeroham, the son of Elihu, the son of Tohu, the son of Zuph, an Ephrathite:
A2: 1Sm1:2 | B2: And he had two wives; the name of the one was Hannah, and the name of the other Peninnah: and Peninnah had children, but Hannah had no children.
A3: 1Sm1:3 | B3: And this man went up out of his city yearly to worship and to sacrifice unto the LORD of hosts in Shiloh. And the two sons of Eli, Hophni and Phinehas, the priests of the LORD, were there.
A4: 1Sm1:4 | B4: And when the time was that Elkanah offered, he gave to Peninnah his wife, and to all her sons and her daughters, portions:
A5: 1Sm1:5 | B5: But unto Hannah he gave a worthy portion; for he loved Hannah: but the LORD had shut up her womb.
A6: 1Sm1:6 | B6: And her adversary also provoked her sore, for to make her fret, because the LORD had shut up her womb.
A7: 1Sm1:7 | B7: And as he did so year by year, when she went up to the house of the LORD, so she provoked her; therefore she wept, and did not eat.
A8: 1Sm1:8 | B8: Then said Elkanah her husband to her, Hannah, why weepest thou? and why eatest thou not? and why is thy heart grieved? am not I better to thee than ten sons?
A9: 1Sm1:9 | B9: So Hannah rose up after they had eaten in Shiloh, and after they had drunk. Now Eli the priest sat upon a seat by a post of the temple of the LORD.
A10: 1Sm1:10 | B10: And she was in bitterness of soul, and prayed unto the LORD, and wept sore.
A11: 1Sm1:11 | B11: And she vowed a vow, and said, O LORD of hosts, if thou wilt indeed look on the affliction of thine handmaid, and remember me, and not forget thine handmaid, but wilt give unto thine handmaid a man child, then I will give him unto the LORD all the days of his life, and there shall no razor come upon his head.
A12: 1Sm1:12 | B12: And it came to pass, as she continued praying before the LORD, that Eli marked her mouth.
A13: 1Sm1:13 | B13: Now Hannah, she spake in her heart; only her lips moved, but her voice was not heard: therefore Eli thought she had been drunken.
A14: 1Sm1:14 | B14: And Eli said unto her, How long wilt thou be drunken? put away thy wine from thee.
A15: 1Sm1:15 | B15: And Hannah answered and said, No, my lord, I am a woman of a sorrowful spirit: I have drunk neither wine nor strong drink, but have poured out my soul before the LORD.
A16: 1Sm1:16 | B16: Count not thine handmaid for a daughter of Belial: for out of the abundance of my complaint and grief have I spoken hitherto.
A17: 1Sm1:17 | B17: Then Eli answered and said, Go in peace: and the God of Israel grant thee thy petition that thou hast asked of him.
A18: 1Sm1:18 | B18: And she said, Let thine handmaid find grace in thy sight. So the woman went her way, and did eat, and her countenance was no more sad.
A19: 1Sm1:19 | B19: And they rose up in the morning early, and worshipped before the LORD, and returned, and came to their house to Ramah: and Elkanah knew Hannah his wife; and the LORD remembered her.
A20: 1Sm1:20 | B20: Wherefore it came to pass, when the time was come about after Hannah had conceived, that she bare a son, and called his name Samuel, saying, Because I have asked him of the LORD.
A21: 1Sm1:21 | B21: And the man Elkanah, and all his house, went up to offer unto the LORD the yearly sacrifice, and his vow.
A22: 1Sm1:22 | B22: But Hannah went not up; for she said unto her husband, I will not go up until the child be weaned, and then I will bring him, that he may appear before the LORD, and there abide for ever.
A23: 1Sm1:23 | B23: And Elkanah her husband said unto her, Do what seemeth thee good; tarry until thou have weaned him; only the LORD establish his word. So the woman abode, and gave her son suck until she weaned him.
A24: 1Sm1:24 | B24: And when she had weaned him, she took him up with her, with three bullocks, and one ephah of flour, and a bottle of wine, and brought him unto the house of the LORD in Shiloh: and the child was young.
A25: 1Sm1:25 | B25: And they slew a bullock, and brought the child to Eli.
A26: 1Sm1:26 | B26: And she said, Oh my lord, as thy soul liveth, my lord, I am the woman that stood by thee here, praying unto the LORD.
A27: 1Sm1:27 | B27: For this child I prayed; and the LORD hath given me my petition which I asked of him:
A28: 1Sm1:28 | B28: Therefore also I have lent him to the LORD; as long as he liveth he shall be lent to the LORD. And he worshipped the LORD there.
A29: 1Sm2:1 | B29: And Hannah prayed, and said, My heart rejoiceth in the LORD, mine horn is exalted in the LORD: my mouth is enlarged over mine enemies; because I rejoice in thy salvation.
A30: 1Sm2:2 | B30: There is none holy as the LORD: for there is none beside thee: neither is there any rock like our God.
A31: 1Sm2:3 | B31: Talk no more so exceeding proudly; let not arrogancy come out of your mouth: for the LORD is a God of knowledge, and by him actions are weighed.
A32: 1Sm2:4 | B32: The bows of the mighty men are broken, and they that stumbled are girded with strength.
A33: 1Sm2:5 | B33: They that were full have hired out themselves for bread; and they that were hungry ceased: so that the barren hath born seven; and she that hath many children is waxed feeble.
A34: 1Sm2:6 | B34: The LORD killeth, and maketh alive: he bringeth down to the grave, and bringeth up.
A35: 1Sm2:7 | B35: The LORD maketh poor, and maketh rich: he bringeth low, and lifteth up.
A36: 1Sm2:8 | B36: He raiseth up the poor out of the dust, and lifteth up the beggar from the dunghill, to set them among princes, and to make them inherit the throne of glory: for the pillars of the earth are the LORD's, and he hath set the world upon them.
A37: 1Sm2:9 | B37: He will keep the feet of his saints, and the wicked shall be silent in darkness; for by strength shall no man prevail.
A38: 1Sm2:10 | B38: The adversaries of the LORD shall be broken to pieces; out of heaven shall he thunder upon them: the LORD shall judge the ends of the earth; and he shall give strength unto his king, and exalt the horn of his anointed.
A39: 1Sm2:11 | B39: And Elkanah went to Ramah to his house. And the child did minister unto the LORD before Eli the priest.
A40: 1Sm2:12 | B40: Now the sons of Eli were sons of Belial; they knew not the LORD.
A41: 1Sm2:13 | B41: And the priests' custom with the people was, that, when any man offered sacrifice, the priest's servant came, while the flesh was in seething, with a fleshhook of three teeth in his hand;
A42: 1Sm2:14 | B42: And he struck it into the pan, or kettle, or caldron, or pot; all that the fleshhook brought up the priest took for himself. So they did in Shiloh unto all the Israelites that came thither.
A43: 1Sm2:15 | B43: Also before they burnt the fat, the priest's servant came, and said to the man that sacrificed, Give flesh to roast for the priest; for he will not have sodden flesh of thee, but raw.
A44: 1Sm2:16 | B44: And if any man said unto him, Let them not fail to burn the fat presently, and then take as much as thy soul desireth; then he would answer him, Nay; but thou shalt give it me now: and if not, I will take it by force.
A45: 1Sm2:17 | B45: Wherefore the sin of the young men was very great before the LORD: for men abhorred the offering of the LORD.
A46: 1Sm2:18 | B46: But Samuel ministered before the LORD, being a child, girded with a linen ephod.
A47: 1Sm2:19 | B47: Moreover his mother made him a little coat, and brought it to him from year to year, when she came up with her husband to offer the yearly sacrifice.
A48: 1Sm2:20 | B48: And Eli blessed Elkanah and his wife, and said, The LORD give thee seed of this woman for the loan which is lent to the LORD. And they went unto their own home.
A49: 1Sm2:21 | B49: And the LORD visited Hannah, so that she conceived, and bare three sons and two daughters. And the child Samuel grew before the LORD.
A50: 1Sm2:22 | B50: Now Eli was very old, and heard all that his sons did unto all Israel; and how they lay with the women that assembled at the door of the tabernacle of the congregation.
A51: 1Sm2:23 | B51: And he said unto them, Why do ye such things? for I hear of your evil dealings by all this people.
A52: 1Sm2:24 | B52: Nay, my sons; for it is no good report that I hear: ye make the LORD's people to transgress.
A53: 1Sm2:25 | B53: If one man sin against another, the judge shall judge him: but if a man sin against the LORD, who shall intreat for him? Notwithstanding they hearkened not unto the voice of their father, because the LORD would slay them.
A54: 1Sm2:26 | B54: And the child Samuel grew on, and was in favour both with the LORD, and also with men.
A55: 1Sm2:27 | B55: And there came a man of God unto Eli, and said unto him, Thus saith the LORD, Did I plainly appear unto the house of thy father, when they were in Egypt in Pharaoh's house?
A56: 1Sm2:28 | B56: And did I choose him out of all the tribes of Israel to be my priest, to offer upon mine altar, to burn incense, to wear an ephod before me? and did I give unto the house of thy father all the offerings made by fire of the children of Israel?
A57: 1Sm2:29 | B57: Wherefore kick ye at my sacrifice and at mine offering, which I have commanded in my habitation; and honourest thy sons above me, to make yourselves fat with the chiefest of all the offerings of Israel my people?
A58: 1Sm2:30 | B58: Wherefore the LORD God of Israel saith, I said indeed that thy house, and the house of thy father, should walk before me for ever: but now the LORD saith, Be it far from me; for them that honour me I will honour, and they that despise me shall be lightly esteemed.
A59: 1Sm2:31 | B59: Behold, the days come, that I will cut off thine arm, and the arm of thy father's house, that there shall not be an old man in thine house.
A60: 1Sm2:32 | B60: And thou shalt see an enemy in my habitation, in all the wealth which God shall give Israel: and there shall not be an old man in thine house for ever.
A61: 1Sm2:33 | B61: And the man of thine, whom I shall not cut off from mine altar, shall be to consume thine eyes, and to grieve thine heart: and all the increase of thine house shall die in the flower of their age.
A62: 1Sm2:34 | B62: And this shall be a sign unto thee, that shall come upon thy two sons, on Hophni and Phinehas; in one day they shall die both of them.
A63: 1Sm2:35 | B63: And I will raise me up a faithful priest, that shall do according to that which is in mine heart and in my mind: and I will build him a sure house; and he shall walk before mine anointed for ever.
A64: 1Sm2:36 | B64: And it shall come to pass, that every one that is left in thine house shall come and crouch to him for a piece of silver and a morsel of bread, and shall say, Put me, I pray thee, into one of the priests' offices, that I may eat a piece of bread.
A65: 1Sm3:1 | B65: And the child Samuel ministered unto the LORD before Eli. And the word of the LORD was precious in those days; there was no open vision.
A66: 1Sm3:2 | B66: And it came to pass at that time, when Eli was laid down in his place, and his eyes began to wax dim, that he could not see;
A67: 1Sm3:3 | B67: And ere the lamp of God went out in the temple of the LORD, where the ark of God was, and Samuel was laid down to sleep;
A68: 1Sm3:4 | B68: That the LORD called Samuel: and he answered, Here am I.
A69: 1Sm3:5 | B69: And he ran unto Eli, and said, Here am I; for thou calledst me. And he said, I called not; lie down again. And he went and lay down.
A70: 1Sm3:6 | B70: And the LORD called yet again, Samuel. And Samuel arose and went to Eli, and said, Here am I; for thou didst call me. And he answered, I called not, my son; lie down again.
A71: 1Sm3:7 | B71: Now Samuel did not yet know the LORD, neither was the word of the LORD yet revealed unto him.
A72: 1Sm3:8 | B72: And the LORD called Samuel again the third time. And he arose and went to Eli, and said, Here am I; for thou didst call me. And Eli perceived that the LORD had called the child.
A73: 1Sm3:9 | B73: Therefore Eli said unto Samuel, Go, lie down: and it shall be, if he call thee, that thou shalt say, Speak, LORD; for thy servant heareth. So Samuel went and lay down in his place.
A74: 1Sm3:10 | B74: And the LORD came, and stood, and called as at other times, Samuel, Samuel. Then Samuel answered, Speak; for thy servant heareth.
A75: 1Sm3:11 | B75: And the LORD said to Samuel, Behold, I will do a thing in Israel, at which both the ears of every one that heareth it shall tingle.
A76: 1Sm3:12 | B76: In that day I will perform against Eli all things which I have spoken concerning his house: when I begin, I will also make an end.
A77: 1Sm3:13 | B77: For I have told him that I will judge his house for ever for the iniquity which he knoweth; because his sons made themselves vile, and he restrained them not.
A78: 1Sm3:14 | B78: And therefore I have sworn unto the house of Eli, that the iniquity of Eli's house shall not be purged with sacrifice nor offering for ever.
A79: 1Sm3:15 | B79: And Samuel lay until the morning, and opened the doors of the house of the LORD. And Samuel feared to shew Eli the vision.
A80: 1Sm3:16 | B80: Then Eli called Samuel, and said, Samuel, my son. And he answered, Here am I.
A81: 1Sm3:17 | B81: And he said, What is the thing that the LORD hath said unto thee? I pray thee hide it not from me: God do so to thee, and more also, if thou hide any thing from me of all the things that he said unto thee.
A82: 1Sm3:18 | B82: And Samuel told him every whit, and hid nothing from him. And he said, It is the LORD: let him do what seemeth him good.
A83: 1Sm3:19 | B83: And Samuel grew, and the LORD was with him, and did let none of his words fall to the ground.
A84: 1Sm3:20 | B84: And all Israel from Dan even to Beersheba knew that Samuel was established to be a prophet of the LORD.
A85: 1Sm3:21 | B85: And the LORD appeared again in Shiloh: for the LORD revealed himself to Samuel in Shiloh by the word of the LORD.
A86: 1Sm4:1 | B86: And the word of Samuel came to all Israel. Now Israel went out against the Philistines to battle, and pitched beside Ebenezer: and the Philistines pitched in Aphek.
A87: 1Sm4:2 | B87: And the Philistines put themselves in array against Israel: and when they joined battle, Israel was smitten before the Philistines: and they slew of the army in the field about four thousand men.
A88: 1Sm4:3 | B88: And when the people were come into the camp, the elders of Israel said, Wherefore hath the LORD smitten us to day before the Philistines? Let us fetch the ark of the covenant of the LORD out of Shiloh unto us, that, when it cometh among us, it may save us out of the hand of our enemies.
A89: 1Sm4:4 | B89: So the people sent to Shiloh, that they might bring from thence the ark of the covenant of the LORD of hosts, which dwelleth between the cherubims: and the two sons of Eli, Hophni and Phinehas, were there with the ark of the covenant of God.
A90: 1Sm4:5 | B90: And when the ark of the covenant of the LORD came into the camp, all Israel shouted with a great shout, so that the earth rang again.
A91: 1Sm4:6 | B91: And when the Philistines heard the noise of the shout, they said, What meaneth the noise of this great shout in the camp of the Hebrews? And they understood that the ark of the LORD was come into the camp.
A92: 1Sm4:7 | B92: And the Philistines were afraid, for they said, God is come into the camp. And they said, Woe unto us! for there hath not been such a thing heretofore.
A93: 1Sm4:8 | B93: Woe unto us! who shall deliver us out of the hand of these mighty Gods? these are the Gods that smote the Egyptians with all the plagues in the wilderness.
A94: 1Sm4:9 | B94: Be strong, and quit yourselves like men, O ye Philistines, that ye be not servants unto the Hebrews, as they have been to you: quit yourselves like men, and fight.
